Body Name,Body,Date,Department,Beneficiary,Summary of Purpose (SeRCOP),Amount,Merchant Code,Transaction Number
Sandwell Metropolitan Borough Council,http://www.sandwell.gov.uk/info/200202/performance_and_spending/3233/government_procurement_cards,05-Oct-20,Childrens Services,OFFICE DEPOT UK,Childrens Services,18.4,Printing Stationery&Gen Office,2020-21Oct_PC00001
Sandwell Metropolitan Borough Council,http://www.sandwell.gov.uk/info/200202/performance_and_spending/3233/government_procurement_cards,05-Oct-20,Adult Social Care Health and Wellbeing - Total,OFFICE DEPOT UK,Total Adult Social Care,29.1,Printing Stationery&Gen Office,2020-21Oct_PC00002
Sandwell Metropolitan Borough Council,http://www.sandwell.gov.uk/info/200202/performance_and_spending/3233/government_procurement_cards,05-Oct-20,Resources (Inc SIU),OFFICE DEPOT UK,Assistant Chief Executive (Excl SIU),19.12,Printing Stationery&Gen Office,2020-21Oct_PC00003
Sandwell Metropolitan Borough Council,http://www.sandwell.gov.uk/info/200202/performance_and_spending/3233/government_procurement_cards,05-Oct-20,Housing & Communities,WILKO RETAIL LIMITED,Neighbourhoods,25,Equipment & Furniture,2020-21Oct_PC00004
Sandwell Metropolitan Borough Council,http://www.sandwell.gov.uk/info/200202/performance_and_spending/3233/government_procurement_cards,05-Oct-20,Resources (Inc SIU),EB  ONLINE TRAINING CH,Assistant Chief Executive (Excl SIU),70,Conference Expenses,2020-21Oct_PC00005
Sandwell Metropolitan Borough Council,http://www.sandwell.gov.uk/info/200202/performance_and_spending/3233/government_procurement_cards,05-Oct-20,Housing & Communities,AUTO TRADER,Neighbourhoods,33.29,Ind. Emp Exp-Advertising,2020-21Oct_PC00006
Sandwell Metropolitan Borough Council,http://www.sandwell.gov.uk/info/200202/performance_and_spending/3233/government_procurement_cards,05-Oct-20,Resources (Inc SIU),Amazon.co.uk 608LM4XA5,Assistant Chief Executive (Excl SIU),58.53,Printing Stationery&Gen Office,2020-21Oct_PC00007
Sandwell Metropolitan Borough Council,http://www.sandwell.gov.uk/info/200202/performance_and_spending/3233/government_procurement_cards,05-Oct-20,Childrens Services,Amazon.co.uk MO55X1J25,Childrens Services,135.97,Equipment & Furniture,2020-21Oct_PC00008
Sandwell Metropolitan Borough Council,http://www.sandwell.gov.uk/info/200202/performance_and_spending/3233/government_procurement_cards,05-Oct-20,Housing & Communities,AMZNMKTPLACE AMAZON.CO,Neighbourhoods,303.58,Printing Stationery&Gen Office,2020-21Oct_PC00009
Sandwell Metropolitan Borough Council,http://www.sandwell.gov.uk/info/200202/performance_and_spending/3233/government_procurement_cards,05-Oct-20,Housing & Communities,BLACK COUNTRY CHAMBER,Neighbourhoods,117,Subscriptions,2020-21Oct_PC00010
Sandwell Metropolitan Borough Council,http://www.sandwell.gov.uk/info/200202/performance_and_spending/3233/government_procurement_cards,05-Oct-20,Adult Social Care Health and Wellbeing - Total,PAYPAL  VALUEPRODUC,Total Adult Social Care,269,Materials & Consumables,2020-21Oct_PC00011
Sandwell Metropolitan Borough Council,http://www.sandwell.gov.uk/info/200202/performance_and_spending/3233/government_procurement_cards,05-Oct-20,Resources (Inc SIU),OFFICE DEPOT UK,Assistant Chief Executive (Excl SIU),42.06,Printing Stationery&Gen Office,2020-21Oct_PC00012
Sandwell Metropolitan Borough Council,http://www.sandwell.gov.uk/info/200202/performance_and_spending/3233/government_procurement_cards,05-Oct-20,Total Housing Revenue Account,AMZNMKTPLACE AMAZON.CO,Total Housing Revenue Account,134.99,Employee Expenses,2020-21Oct_PC00013
Sandwell Metropolitan Borough Council,http://www.sandwell.gov.uk/info/200202/performance_and_spending/3233/government_procurement_cards,05-Oct-20,Housing & Communities,AMZNWarranty,Neighbourhoods,2.99,Equipment & Furniture,2020-21Oct_PC00014
Sandwell Metropolitan Borough Council,http://www.sandwell.gov.uk/info/200202/performance_and_spending/3233/government_procurement_cards,05-Oct-20,Childrens Services,B & Q 1276,Childrens Services,12.5,Materials & Consumables,2020-21Oct_PC00015
Sandwell Metropolitan Borough Council,http://www.sandwell.gov.uk/info/200202/performance_and_spending/3233/government_procurement_cards,05-Oct-20,Total Housing Revenue Account,AMZNMktplace,Total Housing Revenue Account,17.86,Telephones,2020-21Oct_PC00016
Sandwell Metropolitan Borough Council,http://www.sandwell.gov.uk/info/200202/performance_and_spending/3233/government_procurement_cards,05-Oct-20,Housing & Communities,AMZNMktplace,Neighbourhoods,25.53,Grounds Maint&Improvements,2020-21Oct_PC00017
Sandwell Metropolitan Borough Council,http://www.sandwell.gov.uk/info/200202/performance_and_spending/3233/government_procurement_cards,06-Oct-20,Resources (Inc SIU),AMZNMKTPLACE AMAZON.CO,Assistant Chief Executive (Excl SIU),22.49,Printing Stationery&Gen Office,2020-21Oct_PC00018
Sandwell Metropolitan Borough Council,http://www.sandwell.gov.uk/info/200202/performance_and_spending/3233/government_procurement_cards,06-Oct-20,Resources (Inc SIU),AMZNMktplace,Assistant Chief Executive (Excl SIU),24.56,Printing Stationery&Gen Office,2020-21Oct_PC00019
Sandwell Metropolitan Borough Council,http://www.sandwell.gov.uk/info/200202/performance_and_spending/3233/government_procurement_cards,06-Oct-20,Resources (Inc SIU),Amazon.co.uk ER48Y6O65,Assistant Chief Executive (Excl SIU),19.02,Printing Stationery&Gen Office,2020-21Oct_PC00020
Sandwell Metropolitan Borough Council,http://www.sandwell.gov.uk/info/200202/performance_and_spending/3233/government_procurement_cards,06-Oct-20,Resources (Inc SIU),AMZNMktplace,Assistant Chief Executive (Excl SIU),57.6,Printing Stationery&Gen Office,2020-21Oct_PC00021
Sandwell Metropolitan Borough Council,http://www.sandwell.gov.uk/info/200202/performance_and_spending/3233/government_procurement_cards,06-Oct-20,Housing & Communities,Amazon.co.uk EY5A93235,Neighbourhoods,121.32,Telephones,2020-21Oct_PC00022
Sandwell Metropolitan Borough Council,http://www.sandwell.gov.uk/info/200202/performance_and_spending/3233/government_procurement_cards,06-Oct-20,Childrens Services,AMZNMKTPLACE AMAZON.CO,Childrens Services,-59.97,Printing Stationery&Gen Office,2020-21Oct_PC00023
Sandwell Metropolitan Borough Council,http://www.sandwell.gov.uk/info/200202/performance_and_spending/3233/government_procurement_cards,06-Oct-20,Childrens Services,EB  WEBINAR WORK WITH,Childrens Services,39.99,Conference Expenses,2020-21Oct_PC00024
Sandwell Metropolitan Borough Council,http://www.sandwell.gov.uk/info/200202/performance_and_spending/3233/government_procurement_cards,06-Oct-20,Childrens Services,EB  COVID 19 AMP BEYON,Childrens Services,130,Conference Expenses,2020-21Oct_PC00025
Sandwell Metropolitan Borough Council,http://www.sandwell.gov.uk/info/200202/performance_and_spending/3233/government_procurement_cards,06-Oct-20,Regeneration & Growth,AMZNMktplace,Regeneration And The Economy,9.99,Equipment & Furniture,2020-21Oct_PC00026
Sandwell Metropolitan Borough Council,http://www.sandwell.gov.uk/info/200202/performance_and_spending/3233/government_procurement_cards,07-Oct-20,Housing & Communities,AMZNMktplace,Neighbourhoods,537.33,Telephones,2020-21Oct_PC00027
Sandwell Metropolitan Borough Council,http://www.sandwell.gov.uk/info/200202/performance_and_spending/3233/government_procurement_cards,07-Oct-20,Housing & Communities,AMZ Blinked,Neighbourhoods,-15.4,Equipment & Furniture,2020-21Oct_PC00028
Sandwell Metropolitan Borough Council,http://www.sandwell.gov.uk/info/200202/performance_and_spending/3233/government_procurement_cards,07-Oct-20,Resources (Inc SIU),Amazon.co.uk M76XS8XC5,Assistant Chief Executive (Excl SIU),21.64,Printing Stationery&Gen Office,2020-21Oct_PC00029
Sandwell Metropolitan Borough Council,http://www.sandwell.gov.uk/info/200202/performance_and_spending/3233/government_procurement_cards,07-Oct-20,Regeneration & Growth,WWW.TEST-METER.CO.UK,Regeneration And The Economy,1218,Materials & Consumables,2020-21Oct_PC00030
Sandwell Metropolitan Borough Council,http://www.sandwell.gov.uk/info/200202/performance_and_spending/3233/government_procurement_cards,07-Oct-20,Housing & Communities,HIRE STATION LTD,Neighbourhoods,95.68,Equipment & Furniture,2020-21Oct_PC00031
Sandwell Metropolitan Borough Council,http://www.sandwell.gov.uk/info/200202/performance_and_spending/3233/government_procurement_cards,07-Oct-20,Housing & Communities,WWW.REED.CO.UK,Neighbourhoods,245.83,Ind. Emp Exp-Staff Dev&Training,2020-21Oct_PC00032
Sandwell Metropolitan Borough Council,http://www.sandwell.gov.uk/info/200202/performance_and_spending/3233/government_procurement_cards,07-Oct-20,Regeneration & Growth,AMZNMktplace,Regeneration And The Economy,18.32,Equipment & Furniture,2020-21Oct_PC00033
Sandwell Metropolitan Borough Council,http://www.sandwell.gov.uk/info/200202/performance_and_spending/3233/government_procurement_cards,07-Oct-20,Housing & Communities,AMZNMktplace,Neighbourhoods,33.32,Equipment & Furniture,2020-21Oct_PC00034
Sandwell Metropolitan Borough Council,http://www.sandwell.gov.uk/info/200202/performance_and_spending/3233/government_procurement_cards,07-Oct-20,Housing & Communities,Amazon.co.uk 7I13V4495,Neighbourhoods,27.99,ICT,2020-21Oct_PC00035
Sandwell Metropolitan Borough Council,http://www.sandwell.gov.uk/info/200202/performance_and_spending/3233/government_procurement_cards,07-Oct-20,Housing & Communities,AMZNMktplace,Neighbourhoods,19.97,Equipment & Furniture,2020-21Oct_PC00036
Sandwell Metropolitan Borough Council,http://www.sandwell.gov.uk/info/200202/performance_and_spending/3233/government_procurement_cards,07-Oct-20,Regeneration & Growth,AMZNMktplace,Regeneration And The Economy,223.73,Materials & Consumables,2020-21Oct_PC00037
Sandwell Metropolitan Borough Council,http://www.sandwell.gov.uk/info/200202/performance_and_spending/3233/government_procurement_cards,07-Oct-20,Housing & Communities,COMMERCIAL WASHROOMS,Neighbourhoods,226,Hygiene Services,2020-21Oct_PC00038
Sandwell Metropolitan Borough Council,http://www.sandwell.gov.uk/info/200202/performance_and_spending/3233/government_procurement_cards,07-Oct-20,Regeneration & Growth,RICS COM GBP CYBS,Regeneration And The Economy,118.8,Ind. Emp Exp-Staff Dev&Training,2020-21Oct_PC00039
Sandwell Metropolitan Borough Council,http://www.sandwell.gov.uk/info/200202/performance_and_spending/3233/government_procurement_cards,07-Oct-20,Adult Social Care Health and Wellbeing - Total,SAINSBURYS 0541,Total Adult Social Care,8.2,Materials & Consumables,2020-21Oct_PC00040
Sandwell Metropolitan Borough Council,http://www.sandwell.gov.uk/info/200202/performance_and_spending/3233/government_procurement_cards,07-Oct-20,Childrens Services,AMZNMktplace,Childrens Services,18.24,ICT,2020-21Oct_PC00041
Sandwell Metropolitan Borough Council,http://www.sandwell.gov.uk/info/200202/performance_and_spending/3233/government_procurement_cards,08-Oct-20,Childrens Services,OFFICE DEPOT UK,Childrens Services,2.98,Printing Stationery&Gen Office,2020-21Oct_PC00042
Sandwell Metropolitan Borough Council,http://www.sandwell.gov.uk/info/200202/performance_and_spending/3233/government_procurement_cards,08-Oct-20,Regeneration & Growth,Premier Farnell,Regeneration And The Economy,34,Equipment & Furniture,2020-21Oct_PC00043
Sandwell Metropolitan Borough Council,http://www.sandwell.gov.uk/info/200202/performance_and_spending/3233/government_procurement_cards,08-Oct-20,Regeneration & Growth,OFFICE DEPOT UK,Regeneration And The Economy,47.57,Printing Stationery&Gen Office,2020-21Oct_PC00044
Sandwell Metropolitan Borough Council,http://www.sandwell.gov.uk/info/200202/performance_and_spending/3233/government_procurement_cards,08-Oct-20,Total Housing Revenue Account,AMZNMKTPLACE AMAZON.CO,Total Housing Revenue Account,49.99,Telephones,2020-21Oct_PC00045
Sandwell Metropolitan Borough Council,http://www.sandwell.gov.uk/info/200202/performance_and_spending/3233/government_procurement_cards,08-Oct-20,Adult Social Care Health and Wellbeing - Total,WWW.PUBLICPOLICYEXCHAN,Total Adult Social Care,99,Ind. Emp Exp-Staff Dev&Training,2020-21Oct_PC00046
Sandwell Metropolitan Borough Council,http://www.sandwell.gov.uk/info/200202/performance_and_spending/3233/government_procurement_cards,08-Oct-20,Housing & Communities,HIRE STATION LTD,Neighbourhoods,45,Equipment & Furniture,2020-21Oct_PC00047
Sandwell Metropolitan Borough Council,http://www.sandwell.gov.uk/info/200202/performance_and_spending/3233/government_procurement_cards,08-Oct-20,Total Housing Revenue Account,TRADE COUNTER-MIDLAND,Total Housing Revenue Account,96,Materials & Consumables,2020-21Oct_PC00048
Sandwell Metropolitan Borough Council,http://www.sandwell.gov.uk/info/200202/performance_and_spending/3233/government_procurement_cards,08-Oct-20,Housing & Communities,AMZNMKTPLACE AMAZON.CO,Neighbourhoods,18.32,Equipment & Furniture,2020-21Oct_PC00049
Sandwell Metropolitan Borough Council,http://www.sandwell.gov.uk/info/200202/performance_and_spending/3233/government_procurement_cards,08-Oct-20,Resources (Inc SIU),TIMPSON LTD,Assistant Chief Executive (Excl SIU),5.83,R & M - Security,2020-21Oct_PC00050
Sandwell Metropolitan Borough Council,http://www.sandwell.gov.uk/info/200202/performance_and_spending/3233/government_procurement_cards,08-Oct-20,Housing & Communities,CILIP,Neighbourhoods,70,Ind. Emp Exp-Staff Dev&Training,2020-21Oct_PC00051
Sandwell Metropolitan Borough Council,http://www.sandwell.gov.uk/info/200202/performance_and_spending/3233/government_procurement_cards,08-Oct-20,Housing & Communities,AMZNMktplace,Neighbourhoods,84.99,Equipment & Furniture,2020-21Oct_PC00052
Sandwell Metropolitan Borough Council,http://www.sandwell.gov.uk/info/200202/performance_and_spending/3233/government_procurement_cards,08-Oct-20,Housing & Communities,Amazon.co.uk QQ2F872B5,Neighbourhoods,32.31,Printing Stationery&Gen Office,2020-21Oct_PC00053
Sandwell Metropolitan Borough Council,http://www.sandwell.gov.uk/info/200202/performance_and_spending/3233/government_procurement_cards,08-Oct-20,Childrens Services,AMZNMktplace,Childrens Services,116.65,Telephones,2020-21Oct_PC00054
Sandwell Metropolitan Borough Council,http://www.sandwell.gov.uk/info/200202/performance_and_spending/3233/government_procurement_cards,08-Oct-20,Childrens Services,AMZNMktplace,Childrens Services,18.24,ICT,2020-21Oct_PC00055
Sandwell Metropolitan Borough Council,http://www.sandwell.gov.uk/info/200202/performance_and_spending/3233/government_procurement_cards,08-Oct-20,Childrens Services,AMZNMktplace,Childrens Services,18.24,ICT,2020-21Oct_PC00056
Sandwell Metropolitan Borough Council,http://www.sandwell.gov.uk/info/200202/performance_and_spending/3233/government_procurement_cards,08-Oct-20,Regeneration & Growth,AMZNMktplace,Regeneration And The Economy,12.9,Equipment & Furniture,2020-21Oct_PC00057
Sandwell Metropolitan Borough Council,http://www.sandwell.gov.uk/info/200202/performance_and_spending/3233/government_procurement_cards,08-Oct-20,Regeneration & Growth,AMZNMktplace,Regeneration And The Economy,21.97,Equipment & Furniture,2020-21Oct_PC00058
Sandwell Metropolitan Borough Council,http://www.sandwell.gov.uk/info/200202/performance_and_spending/3233/government_procurement_cards,09-Oct-20,Adult Social Care Health and Wellbeing - Total,OFFICE DEPOT UK,Total Adult Social Care,8.94,Printing Stationery&Gen Office,2020-21Oct_PC00059
Sandwell Metropolitan Borough Council,http://www.sandwell.gov.uk/info/200202/performance_and_spending/3233/government_procurement_cards,09-Oct-20,Resources (Inc SIU),AMZNMKTPLACE AMAZON.CO,Assistant Chief Executive (Excl SIU),32.07,Cleaning,2020-21Oct_PC00060
Sandwell Metropolitan Borough Council,http://www.sandwell.gov.uk/info/200202/performance_and_spending/3233/government_procurement_cards,09-Oct-20,Resources (Inc SIU),AMZNMKTPLACE AMAZON.CO,Assistant Chief Executive (Excl SIU),5.16,Cleaning,2020-21Oct_PC00061
Sandwell Metropolitan Borough Council,http://www.sandwell.gov.uk/info/200202/performance_and_spending/3233/government_procurement_cards,09-Oct-20,Childrens Services,AMZNMKTPLACE AMAZON.CO,Childrens Services,18.24,ICT,2020-21Oct_PC00062
Sandwell Metropolitan Borough Council,http://www.sandwell.gov.uk/info/200202/performance_and_spending/3233/government_procurement_cards,09-Oct-20,Childrens Services,AMZNMKTPLACE AMAZON.CO,Childrens Services,18.24,ICT,2020-21Oct_PC00063
Sandwell Metropolitan Borough Council,http://www.sandwell.gov.uk/info/200202/performance_and_spending/3233/government_procurement_cards,09-Oct-20,Childrens Services,AMZNMKTPLACE AMAZON.CO,Childrens Services,18.24,ICT,2020-21Oct_PC00064
Sandwell Metropolitan Borough Council,http://www.sandwell.gov.uk/info/200202/performance_and_spending/3233/government_procurement_cards,09-Oct-20,Childrens Services,Flextronics,Childrens Services,341.48,Equipment & Furniture,2020-21Oct_PC00065
Sandwell Metropolitan Borough Council,http://www.sandwell.gov.uk/info/200202/performance_and_spending/3233/government_procurement_cards,09-Oct-20,Resources (Inc SIU),T J MORRIS LTD,Assistant Chief Executive (Excl SIU),8.27,Equipment & Furniture,2020-21Oct_PC00066
Sandwell Metropolitan Borough Council,http://www.sandwell.gov.uk/info/200202/performance_and_spending/3233/government_procurement_cards,09-Oct-20,Regeneration & Growth,ECONOMIST SUBSCRIPTION,Regeneration And The Economy,265.83,Subscriptions,2020-21Oct_PC00067
Sandwell Metropolitan Borough Council,http://www.sandwell.gov.uk/info/200202/performance_and_spending/3233/government_procurement_cards,09-Oct-20,Housing & Communities,Amazon.co.uk S67X964I5,Neighbourhoods,13.5,Equipment & Furniture,2020-21Oct_PC00068
Sandwell Metropolitan Borough Council,http://www.sandwell.gov.uk/info/200202/performance_and_spending/3233/government_procurement_cards,09-Oct-20,Adult Social Care Health and Wellbeing - Total,AMZNMktplace,Total Adult Social Care,70.87,Materials & Consumables,2020-21Oct_PC00069
Sandwell Metropolitan Borough Council,http://www.sandwell.gov.uk/info/200202/performance_and_spending/3233/government_procurement_cards,09-Oct-20,Housing & Communities,EB  LIBRARIES CONNECTE,Neighbourhoods,83.33,Conference Expenses,2020-21Oct_PC00070
Sandwell Metropolitan Borough Council,http://www.sandwell.gov.uk/info/200202/performance_and_spending/3233/government_procurement_cards,09-Oct-20,Regeneration & Growth,SAINSBURYS SACAT0558,Regeneration And The Economy,5,Equipment & Furniture,2020-21Oct_PC00071
Sandwell Metropolitan Borough Council,http://www.sandwell.gov.uk/info/200202/performance_and_spending/3233/government_procurement_cards,09-Oct-20,Housing & Communities,THE HYGIENE COMPANY,Neighbourhoods,195.99,Hygiene Services,2020-21Oct_PC00072
Sandwell Metropolitan Borough Council,http://www.sandwell.gov.uk/info/200202/performance_and_spending/3233/government_procurement_cards,09-Oct-20,Housing & Communities,WWW.MACLINGROUP.CO.UK,Neighbourhoods,101.96,Hygiene Services,2020-21Oct_PC00073
Sandwell Metropolitan Borough Council,http://www.sandwell.gov.uk/info/200202/performance_and_spending/3233/government_procurement_cards,09-Oct-20,Resources (Inc SIU),OFFICE DEPOT UK,Assistant Chief Executive (Excl SIU),157.08,Equipment & Furniture,2020-21Oct_PC00074
Sandwell Metropolitan Borough Council,http://www.sandwell.gov.uk/info/200202/performance_and_spending/3233/government_procurement_cards,09-Oct-20,Resources (Inc SIU),OFFICE DEPOT UK,Assistant Chief Executive (Excl SIU),86.68,Equipment & Furniture,2020-21Oct_PC00075
Sandwell Metropolitan Borough Council,http://www.sandwell.gov.uk/info/200202/performance_and_spending/3233/government_procurement_cards,09-Oct-20,Resources (Inc SIU),AMZNMKTPLACE AMAZON.CO,Assistant Chief Executive (Excl SIU),14.92,Equipment & Furniture,2020-21Oct_PC00076
Sandwell Metropolitan Borough Council,http://www.sandwell.gov.uk/info/200202/performance_and_spending/3233/government_procurement_cards,09-Oct-20,Adult Social Care Health and Wellbeing - Total,AMZNMKTPLACE AMAZON.CO,Total Adult Social Care,33.95,Protective Clothing&Uniforms,2020-21Oct_PC00077
Sandwell Metropolitan Borough Council,http://www.sandwell.gov.uk/info/200202/performance_and_spending/3233/government_procurement_cards,09-Oct-20,Housing & Communities,AMZNMktplace,Neighbourhoods,15.82,Equipment & Furniture,2020-21Oct_PC00078
Sandwell Metropolitan Borough Council,http://www.sandwell.gov.uk/info/200202/performance_and_spending/3233/government_procurement_cards,12-Oct-20,Total Housing Revenue Account,OFFICE DEPOT UK,Total Housing Revenue Account,299.13,Printing Stationery&Gen Office,2020-21Oct_PC00079
Sandwell Metropolitan Borough Council,http://www.sandwell.gov.uk/info/200202/performance_and_spending/3233/government_procurement_cards,12-Oct-20,Adult Social Care Health and Wellbeing - Total,AMZNMKTPLACE AMAZON.CO,Total Adult Social Care,140.83,Equipment & Furniture,2020-21Oct_PC00080
Sandwell Metropolitan Borough Council,http://www.sandwell.gov.uk/info/200202/performance_and_spending/3233/government_procurement_cards,12-Oct-20,Resources (Inc SIU),OFFICE DEPOT UK,Assistant Chief Executive (Excl SIU),64.39,Printing Stationery&Gen Office,2020-21Oct_PC00081
Sandwell Metropolitan Borough Council,http://www.sandwell.gov.uk/info/200202/performance_and_spending/3233/government_procurement_cards,12-Oct-20,Resources (Inc SIU),OFFICE DEPOT UK,Assistant Chief Executive (Excl SIU),17.12,Printing Stationery&Gen Office,2020-21Oct_PC00082
Sandwell Metropolitan Borough Council,http://www.sandwell.gov.uk/info/200202/performance_and_spending/3233/government_procurement_cards,12-Oct-20,Individual School Budgets With Inclusion,OFFICE DEPOT UK,Individual School Budgets With Inclusion,32.08,Printing Stationery&Gen Office,2020-21Oct_PC00083
Sandwell Metropolitan Borough Council,http://www.sandwell.gov.uk/info/200202/performance_and_spending/3233/government_procurement_cards,12-Oct-20,Individual School Budgets With Inclusion,OFFICE DEPOT UK,Individual School Budgets With Inclusion,89.94,Printing Stationery&Gen Office,2020-21Oct_PC00084
Sandwell Metropolitan Borough Council,http://www.sandwell.gov.uk/info/200202/performance_and_spending/3233/government_procurement_cards,12-Oct-20,Individual School Budgets With Inclusion,OFFICE DEPOT UK,Individual School Budgets With Inclusion,49.96,Printing Stationery&Gen Office,2020-21Oct_PC00085
Sandwell Metropolitan Borough Council,http://www.sandwell.gov.uk/info/200202/performance_and_spending/3233/government_procurement_cards,12-Oct-20,Housing & Communities,AMZNMktplace,Neighbourhoods,23.32,Equipment & Furniture,2020-21Oct_PC00086
Sandwell Metropolitan Borough Council,http://www.sandwell.gov.uk/info/200202/performance_and_spending/3233/government_procurement_cards,12-Oct-20,Childrens Services,AMZNMktplace,Childrens Services,8.42,ICT,2020-21Oct_PC00087
Sandwell Metropolitan Borough Council,http://www.sandwell.gov.uk/info/200202/performance_and_spending/3233/government_procurement_cards,12-Oct-20,Childrens Services,AMZNMKTPLACE AMAZON.CO,Childrens Services,17.07,Equipment & Furniture,2020-21Oct_PC00088
Sandwell Metropolitan Borough Council,http://www.sandwell.gov.uk/info/200202/performance_and_spending/3233/government_procurement_cards,12-Oct-20,Housing & Communities,AMZNMKTPLACE AMAZON.CO,Neighbourhoods,13.92,Equipment & Furniture,2020-21Oct_PC00089
Sandwell Metropolitan Borough Council,http://www.sandwell.gov.uk/info/200202/performance_and_spending/3233/government_procurement_cards,12-Oct-20,Total Housing Revenue Account,WWW.KANE.CO.UK,Total Housing Revenue Account,544.85,Equipment & Furniture,2020-21Oct_PC00090
Sandwell Metropolitan Borough Council,http://www.sandwell.gov.uk/info/200202/performance_and_spending/3233/government_procurement_cards,12-Oct-20,Housing & Communities,TESCO STORES 5362,Neighbourhoods,4.67,Catering Provisions,2020-21Oct_PC00091
Sandwell Metropolitan Borough Council,http://www.sandwell.gov.uk/info/200202/performance_and_spending/3233/government_procurement_cards,12-Oct-20,Adult Social Care Health and Wellbeing - Total,PAYPAL  SCREWFIX,Total Adult Social Care,124.99,Equipment & Furniture,2020-21Oct_PC00092
Sandwell Metropolitan Borough Council,http://www.sandwell.gov.uk/info/200202/performance_and_spending/3233/government_procurement_cards,12-Oct-20,Adult Social Care Health and Wellbeing - Total,SCREWFIX DIRECT,Total Adult Social Care,187.46,Equipment & Furniture,2020-21Oct_PC00093
Sandwell Metropolitan Borough Council,http://www.sandwell.gov.uk/info/200202/performance_and_spending/3233/government_procurement_cards,12-Oct-20,Childrens Services,BOOKWHEN- SOFTWARE SUB,Childrens Services,190,Printing Stationery&Gen Office,2020-21Oct_PC00094
Sandwell Metropolitan Borough Council,http://www.sandwell.gov.uk/info/200202/performance_and_spending/3233/government_procurement_cards,12-Oct-20,Housing & Communities,Amazon.co.uk DO4461FF5,Neighbourhoods,10.41,Materials & Consumables,2020-21Oct_PC00095
Sandwell Metropolitan Borough Council,http://www.sandwell.gov.uk/info/200202/performance_and_spending/3233/government_procurement_cards,12-Oct-20,Housing & Communities,ASDA SUPERSTORE,Neighbourhoods,5.97,Equipment & Furniture,2020-21Oct_PC00096
Sandwell Metropolitan Borough Council,http://www.sandwell.gov.uk/info/200202/performance_and_spending/3233/government_procurement_cards,12-Oct-20,Regeneration & Growth,ASDA STORES 4274,Regeneration And The Economy,5.83,Materials & Consumables,2020-21Oct_PC00097
Sandwell Metropolitan Borough Council,http://www.sandwell.gov.uk/info/200202/performance_and_spending/3233/government_procurement_cards,12-Oct-20,Individual School Budgets With Inclusion,AMZNMKTPLACE AMAZON.CO,Individual School Budgets With Inclusion,131.89,Materials & Consumables,2020-21Oct_PC00098
Sandwell Metropolitan Borough Council,http://www.sandwell.gov.uk/info/200202/performance_and_spending/3233/government_procurement_cards,12-Oct-20,Adult Social Care Health and Wellbeing - Total,AMZNMKTPLACE AMAZON.CO,Total Adult Social Care,-33.95,Protective Clothing&Uniforms,2020-21Oct_PC00099
Sandwell Metropolitan Borough Council,http://www.sandwell.gov.uk/info/200202/performance_and_spending/3233/government_procurement_cards,12-Oct-20,Childrens Services,INDIVIDUAL MEMBERSHIP,Childrens Services,80,Subscriptions,2020-21Oct_PC00100
Sandwell Metropolitan Borough Council,http://www.sandwell.gov.uk/info/200202/performance_and_spending/3233/government_procurement_cards,12-Oct-20,Housing & Communities,Amazon.co.uk 695QU3QC5,Neighbourhoods,117.55,Printing Stationery&Gen Office,2020-21Oct_PC00101
Sandwell Metropolitan Borough Council,http://www.sandwell.gov.uk/info/200202/performance_and_spending/3233/government_procurement_cards,12-Oct-20,Resources (Inc SIU),AMZNMktplace,Assistant Chief Executive (Excl SIU),10.32,Printing Stationery&Gen Office,2020-21Oct_PC00102
Sandwell Metropolitan Borough Council,http://www.sandwell.gov.uk/info/200202/performance_and_spending/3233/government_procurement_cards,12-Oct-20,Resources (Inc SIU),AMZNMktplace,Assistant Chief Executive (Excl SIU),88.54,Printing Stationery&Gen Office,2020-21Oct_PC00103
Sandwell Metropolitan Borough Council,http://www.sandwell.gov.uk/info/200202/performance_and_spending/3233/government_procurement_cards,12-Oct-20,Childrens Services,ASDA SUPERSTORE,Childrens Services,12,Printing Stationery&Gen Office,2020-21Oct_PC00104
Sandwell Metropolitan Borough Council,http://www.sandwell.gov.uk/info/200202/performance_and_spending/3233/government_procurement_cards,12-Oct-20,Adult Social Care Health and Wellbeing - Total,Amazon.co.uk XS7NI4G55,Total Adult Social Care,32.6,Protective Clothing&Uniforms,2020-21Oct_PC00105
Sandwell Metropolitan Borough Council,http://www.sandwell.gov.uk/info/200202/performance_and_spending/3233/government_procurement_cards,13-Oct-20,Childrens Services,CARTRIDGEPEOPLE.COM,Childrens Services,21.91,Printing Stationery&Gen Office,2020-21Oct_PC00106
Sandwell Metropolitan Borough Council,http://www.sandwell.gov.uk/info/200202/performance_and_spending/3233/government_procurement_cards,13-Oct-20,Childrens Services,WWW.HIGHFIELDS.CO.UK,Childrens Services,5,Examination Expenses,2020-21Oct_PC00107
Sandwell Metropolitan Borough Council,http://www.sandwell.gov.uk/info/200202/performance_and_spending/3233/government_procurement_cards,13-Oct-20,Childrens Services,AMZNMktplace,Childrens Services,18.3,Materials & Consumables,2020-21Oct_PC00108
Sandwell Metropolitan Borough Council,http://www.sandwell.gov.uk/info/200202/performance_and_spending/3233/government_procurement_cards,13-Oct-20,Housing & Communities,B&M 049 - ASTLE PARK,Neighbourhoods,3.63,Materials & Consumables,2020-21Oct_PC00109
Sandwell Metropolitan Borough Council,http://www.sandwell.gov.uk/info/200202/performance_and_spending/3233/government_procurement_cards,13-Oct-20,Housing & Communities,AMZNMktplace,Neighbourhoods,204.94,Civic Events,2020-21Oct_PC00110
Sandwell Metropolitan Borough Council,http://www.sandwell.gov.uk/info/200202/performance_and_spending/3233/government_procurement_cards,13-Oct-20,Housing & Communities,AMZNMktplace,Neighbourhoods,151.22,Civic Events,2020-21Oct_PC00111
Sandwell Metropolitan Borough Council,http://www.sandwell.gov.uk/info/200202/performance_and_spending/3233/government_procurement_cards,13-Oct-20,Regeneration & Growth,WWW.BRITISHGAS.CO.,Regeneration And The Economy,189.7,Energy Costs-Electricity,2020-21Oct_PC00112
Sandwell Metropolitan Borough Council,http://www.sandwell.gov.uk/info/200202/performance_and_spending/3233/government_procurement_cards,13-Oct-20,Resources (Inc SIU),EB  ONLINE TRAINING RE,Assistant Chief Executive (Excl SIU),90,Ind. Emp Exp-Staff Dev&Training,2020-21Oct_PC00113
Sandwell Metropolitan Borough Council,http://www.sandwell.gov.uk/info/200202/performance_and_spending/3233/government_procurement_cards,13-Oct-20,Adult Social Care Health and Wellbeing - Total,Amazon Prime F40DZ8V85,Total Adult Social Care,6.66,Materials & Consumables,2020-21Oct_PC00114
Sandwell Metropolitan Borough Council,http://www.sandwell.gov.uk/info/200202/performance_and_spending/3233/government_procurement_cards,13-Oct-20,Resources (Inc SIU),GOVNET EVENTS,Assistant Chief Executive (Excl SIU),325,Ind. Emp Exp-Staff Dev&Training,2020-21Oct_PC00115
Sandwell Metropolitan Borough Council,http://www.sandwell.gov.uk/info/200202/performance_and_spending/3233/government_procurement_cards,13-Oct-20,Childrens Services,SCREWFIX DIRECT,Childrens Services,26.98,Materials & Consumables,2020-21Oct_PC00116
Sandwell Metropolitan Borough Council,http://www.sandwell.gov.uk/info/200202/performance_and_spending/3233/government_procurement_cards,13-Oct-20,Childrens Services,AMZNMKTPLACE AMAZON.CO,Childrens Services,24.98,ICT,2020-21Oct_PC00117
Sandwell Metropolitan Borough Council,http://www.sandwell.gov.uk/info/200202/performance_and_spending/3233/government_procurement_cards,13-Oct-20,Childrens Services,AMZNMktplace,Childrens Services,24.98,Printing Stationery&Gen Office,2020-21Oct_PC00118
Sandwell Metropolitan Borough Council,http://www.sandwell.gov.uk/info/200202/performance_and_spending/3233/government_procurement_cards,13-Oct-20,Total Housing Revenue Account,Amazon.co.uk PY36D7TN5,Total Housing Revenue Account,79.95,Employee Expenses,2020-21Oct_PC00119
Sandwell Metropolitan Borough Council,http://www.sandwell.gov.uk/info/200202/performance_and_spending/3233/government_procurement_cards,13-Oct-20,Childrens Services,POST OFFICE COUNTER,Childrens Services,3.04,Printing Stationery&Gen Office,2020-21Oct_PC00120
Sandwell Metropolitan Borough Council,http://www.sandwell.gov.uk/info/200202/performance_and_spending/3233/government_procurement_cards,13-Oct-20,Housing & Communities,TESCO STORES 5503,Neighbourhoods,8,Equipment & Furniture,2020-21Oct_PC00121
Sandwell Metropolitan Borough Council,http://www.sandwell.gov.uk/info/200202/performance_and_spending/3233/government_procurement_cards,14-Oct-20,Childrens Services,AMZNMKTPLACE AMAZON.CO,Childrens Services,16.23,Equipment & Furniture,2020-21Oct_PC00122
Sandwell Metropolitan Borough Council,http://www.sandwell.gov.uk/info/200202/performance_and_spending/3233/government_procurement_cards,14-Oct-20,Childrens Services,AMZNMktplace,Childrens Services,112.47,Telephones,2020-21Oct_PC00123
Sandwell Metropolitan Borough Council,http://www.sandwell.gov.uk/info/200202/performance_and_spending/3233/government_procurement_cards,14-Oct-20,Childrens Services,AMZNMKTPLACE AMAZON.CO,Childrens Services,54.17,Equipment & Furniture,2020-21Oct_PC00124
Sandwell Metropolitan Borough Council,http://www.sandwell.gov.uk/info/200202/performance_and_spending/3233/government_procurement_cards,14-Oct-20,Total Housing Revenue Account,AMZNMktplace,Total Housing Revenue Account,9.66,Protective Clothing&Uniforms,2020-21Oct_PC00125
Sandwell Metropolitan Borough Council,http://www.sandwell.gov.uk/info/200202/performance_and_spending/3233/government_procurement_cards,14-Oct-20,Housing & Communities,EB  FUTURE OF PARKS SK,Neighbourhoods,40,Ind. Emp Exp-Staff Dev&Training,2020-21Oct_PC00126
Sandwell Metropolitan Borough Council,http://www.sandwell.gov.uk/info/200202/performance_and_spending/3233/government_procurement_cards,14-Oct-20,Housing & Communities,WWW.PARTYDELIGHTS.CO.U,Neighbourhoods,28.67,Materials & Consumables,2020-21Oct_PC00127
Sandwell Metropolitan Borough Council,http://www.sandwell.gov.uk/info/200202/performance_and_spending/3233/government_procurement_cards,14-Oct-20,Adult Social Care Health and Wellbeing - Total,AMZNMKTPLACE AMAZON.CO,Total Adult Social Care,15.82,Printing Stationery&Gen Office,2020-21Oct_PC00128
Sandwell Metropolitan Borough Council,http://www.sandwell.gov.uk/info/200202/performance_and_spending/3233/government_procurement_cards,14-Oct-20,Housing & Communities,CRADLEY HEATH T/O,Neighbourhoods,7.4,Public Transport,2020-21Oct_PC00129
Sandwell Metropolitan Borough Council,http://www.sandwell.gov.uk/info/200202/performance_and_spending/3233/government_procurement_cards,14-Oct-20,Childrens Services,Amazon.co.uk DG3NB0UW5,Childrens Services,63.12,Printing Stationery&Gen Office,2020-21Oct_PC00130
Sandwell Metropolitan Borough Council,http://www.sandwell.gov.uk/info/200202/performance_and_spending/3233/government_procurement_cards,14-Oct-20,Total Housing Revenue Account,AMZNMktplace,Total Housing Revenue Account,139.98,Employee Expenses,2020-21Oct_PC00131
Sandwell Metropolitan Borough Council,http://www.sandwell.gov.uk/info/200202/performance_and_spending/3233/government_procurement_cards,14-Oct-20,Total Housing Revenue Account,Amazon.co.uk 5510H9CH5,Total Housing Revenue Account,63.59,Employee Expenses,2020-21Oct_PC00132
Sandwell Metropolitan Borough Council,http://www.sandwell.gov.uk/info/200202/performance_and_spending/3233/government_procurement_cards,14-Oct-20,Childrens Services,AMZNMktplace,Childrens Services,16.23,Equipment & Furniture,2020-21Oct_PC00133
Sandwell Metropolitan Borough Council,http://www.sandwell.gov.uk/info/200202/performance_and_spending/3233/government_procurement_cards,14-Oct-20,Total Housing Revenue Account,Amazon.co.uk V99DP2HG5,Total Housing Revenue Account,63.61,Employee Expenses,2020-21Oct_PC00134
Sandwell Metropolitan Borough Council,http://www.sandwell.gov.uk/info/200202/performance_and_spending/3233/government_procurement_cards,15-Oct-20,Resources (Inc SIU),AMZNMKTPLACE AMAZON.CO,Assistant Chief Executive (Excl SIU),11.23,Printing Stationery&Gen Office,2020-21Oct_PC00135
Sandwell Metropolitan Borough Council,http://www.sandwell.gov.uk/info/200202/performance_and_spending/3233/government_procurement_cards,15-Oct-20,Adult Social Care Health and Wellbeing - Total,OFFICE DEPOT UK,Total Adult Social Care,38.24,Printing Stationery&Gen Office,2020-21Oct_PC00136
Sandwell Metropolitan Borough Council,http://www.sandwell.gov.uk/info/200202/performance_and_spending/3233/government_procurement_cards,15-Oct-20,Childrens Services,AMZNMktplace,Childrens Services,80.59,Materials & Consumables,2020-21Oct_PC00137
Sandwell Metropolitan Borough Council,http://www.sandwell.gov.uk/info/200202/performance_and_spending/3233/government_procurement_cards,15-Oct-20,Childrens Services,AMZNMKTPLACE AMAZON.CO,Childrens Services,208.1,Materials & Consumables,2020-21Oct_PC00138
Sandwell Metropolitan Borough Council,http://www.sandwell.gov.uk/info/200202/performance_and_spending/3233/government_procurement_cards,15-Oct-20,Childrens Services,WWW.GOMPELS.CO.UK,Childrens Services,56.12,Materials & Consumables,2020-21Oct_PC00139
Sandwell Metropolitan Borough Council,http://www.sandwell.gov.uk/info/200202/performance_and_spending/3233/government_procurement_cards,15-Oct-20,Adult Social Care Health and Wellbeing - Total,AMZNMKTPLACE AMAZON.CO,Total Adult Social Care,15.04,Protective Clothing&Uniforms,2020-21Oct_PC00140
Sandwell Metropolitan Borough Council,http://www.sandwell.gov.uk/info/200202/performance_and_spending/3233/government_procurement_cards,15-Oct-20,Total Housing Revenue Account,Staffordshire Builders,Total Housing Revenue Account,19.5,Materials & Consumables,2020-21Oct_PC00141
Sandwell Metropolitan Borough Council,http://www.sandwell.gov.uk/info/200202/performance_and_spending/3233/government_procurement_cards,15-Oct-20,Housing & Communities,Amazon.co.uk J77VO67Q5,Neighbourhoods,211.65,Telephones,2020-21Oct_PC00142
Sandwell Metropolitan Borough Council,http://www.sandwell.gov.uk/info/200202/performance_and_spending/3233/government_procurement_cards,15-Oct-20,Regeneration & Growth,AMZNMktplace,Regeneration And The Economy,13.32,ICT,2020-21Oct_PC00143
Sandwell Metropolitan Borough Council,http://www.sandwell.gov.uk/info/200202/performance_and_spending/3233/government_procurement_cards,15-Oct-20,Adult Social Care Health and Wellbeing - Total,AMZNMktplace,Total Adult Social Care,37.48,Printing Stationery&Gen Office,2020-21Oct_PC00144
Sandwell Metropolitan Borough Council,http://www.sandwell.gov.uk/info/200202/performance_and_spending/3233/government_procurement_cards,15-Oct-20,Housing & Communities,SAINSBURYS PFS0456,Neighbourhoods,-45.03,Fuel,2020-21Oct_PC00145
Sandwell Metropolitan Borough Council,http://www.sandwell.gov.uk/info/200202/performance_and_spending/3233/government_procurement_cards,15-Oct-20,Adult Social Care Health and Wellbeing - Total,OFFICE DEPOT UK,Total Adult Social Care,44.21,Printing Stationery&Gen Office,2020-21Oct_PC00146
Sandwell Metropolitan Borough Council,http://www.sandwell.gov.uk/info/200202/performance_and_spending/3233/government_procurement_cards,15-Oct-20,Total Housing Revenue Account,AMZNMktplace,Total Housing Revenue Account,239.93,Employee Expenses,2020-21Oct_PC00147
Sandwell Metropolitan Borough Council,http://www.sandwell.gov.uk/info/200202/performance_and_spending/3233/government_procurement_cards,15-Oct-20,Total Housing Revenue Account,Amazon.co.uk E466R68N5,Total Housing Revenue Account,63.57,Employee Expenses,2020-21Oct_PC00148
Sandwell Metropolitan Borough Council,http://www.sandwell.gov.uk/info/200202/performance_and_spending/3233/government_procurement_cards,15-Oct-20,Housing & Communities,SAINSBURYS PFS0456,Neighbourhoods,45.03,Fuel,2020-21Oct_PC00149
Sandwell Metropolitan Borough Council,http://www.sandwell.gov.uk/info/200202/performance_and_spending/3233/government_procurement_cards,16-Oct-20,Housing & Communities,TIMPSON LTD,Neighbourhoods,16.67,Fixtures & Fittings,2020-21Oct_PC00150
Sandwell Metropolitan Borough Council,http://www.sandwell.gov.uk/info/200202/performance_and_spending/3233/government_procurement_cards,16-Oct-20,Housing & Communities,Amazon.co.uk Y48SB5KE5,Neighbourhoods,20.4,Equipment & Furniture,2020-21Oct_PC00151
Sandwell Metropolitan Borough Council,http://www.sandwell.gov.uk/info/200202/performance_and_spending/3233/government_procurement_cards,16-Oct-20,Resources (Inc SIU),ARGOS LTD,Assistant Chief Executive (Excl SIU),8.32,Printing Stationery&Gen Office,2020-21Oct_PC00152
Sandwell Metropolitan Borough Council,http://www.sandwell.gov.uk/info/200202/performance_and_spending/3233/government_procurement_cards,16-Oct-20,Housing & Communities,eBay O 24-05906-78815,Neighbourhoods,17.67,Materials & Consumables,2020-21Oct_PC00153
Sandwell Metropolitan Borough Council,http://www.sandwell.gov.uk/info/200202/performance_and_spending/3233/government_procurement_cards,16-Oct-20,Housing & Communities,JOHN MILLS LIMITED,Neighbourhoods,35.76,Materials & Consumables,2020-21Oct_PC00154
Sandwell Metropolitan Borough Council,http://www.sandwell.gov.uk/info/200202/performance_and_spending/3233/government_procurement_cards,16-Oct-20,Regeneration & Growth,AMZNMktplace,Regeneration And The Economy,29.99,ICT,2020-21Oct_PC00155
Sandwell Metropolitan Borough Council,http://www.sandwell.gov.uk/info/200202/performance_and_spending/3233/government_procurement_cards,16-Oct-20,Childrens Services,AMZNMktplace,Childrens Services,19.65,ICT,2020-21Oct_PC00156
Sandwell Metropolitan Borough Council,http://www.sandwell.gov.uk/info/200202/performance_and_spending/3233/government_procurement_cards,16-Oct-20,Regeneration & Growth,Amazon.co.uk B70VN9CM5,Regeneration And The Economy,149.99,Equipment & Furniture,2020-21Oct_PC00157
Sandwell Metropolitan Borough Council,http://www.sandwell.gov.uk/info/200202/performance_and_spending/3233/government_procurement_cards,16-Oct-20,Housing & Communities,AMZNMKTPLACE AMAZON.CO,Neighbourhoods,47.37,Materials & Consumables,2020-21Oct_PC00158
Sandwell Metropolitan Borough Council,http://www.sandwell.gov.uk/info/200202/performance_and_spending/3233/government_procurement_cards,16-Oct-20,Childrens Services,PAYPAL  COUNCILFORL,Childrens Services,125,Licences,2020-21Oct_PC00159
Sandwell Metropolitan Borough Council,http://www.sandwell.gov.uk/info/200202/performance_and_spending/3233/government_procurement_cards,19-Oct-20,Adult Social Care Health and Wellbeing - Total,OFFICE DEPOT UK,Total Adult Social Care,7.8,Printing Stationery&Gen Office,2020-21Oct_PC00160
Sandwell Metropolitan Borough Council,http://www.sandwell.gov.uk/info/200202/performance_and_spending/3233/government_procurement_cards,19-Oct-20,Housing & Communities,OFFICE DEPOT UK,Neighbourhoods,56.53,Printing Stationery&Gen Office,2020-21Oct_PC00161
Sandwell Metropolitan Borough Council,http://www.sandwell.gov.uk/info/200202/performance_and_spending/3233/government_procurement_cards,19-Oct-20,Housing & Communities,OFFICE DEPOT UK,Neighbourhoods,8.06,Printing Stationery&Gen Office,2020-21Oct_PC00162
Sandwell Metropolitan Borough Council,http://www.sandwell.gov.uk/info/200202/performance_and_spending/3233/government_procurement_cards,19-Oct-20,Total Housing Revenue Account,OFFICE DEPOT UK,Total Housing Revenue Account,114.48,Printing Stationery&Gen Office,2020-21Oct_PC00163
Sandwell Metropolitan Borough Council,http://www.sandwell.gov.uk/info/200202/performance_and_spending/3233/government_procurement_cards,19-Oct-20,Resources (Inc SIU),OFFICE DEPOT UK,Assistant Chief Executive (Excl SIU),56.22,Printing Stationery&Gen Office,2020-21Oct_PC00164
Sandwell Metropolitan Borough Council,http://www.sandwell.gov.uk/info/200202/performance_and_spending/3233/government_procurement_cards,19-Oct-20,Total Housing Revenue Account,DVLA DIGITAL TACHO,Total Housing Revenue Account,15.83,Licences&Test Fees,2020-21Oct_PC00165
Sandwell Metropolitan Borough Council,http://www.sandwell.gov.uk/info/200202/performance_and_spending/3233/government_procurement_cards,19-Oct-20,Childrens Services,AMZ Larmtek,Childrens Services,-19.65,ICT,2020-21Oct_PC00166
Sandwell Metropolitan Borough Council,http://www.sandwell.gov.uk/info/200202/performance_and_spending/3233/government_procurement_cards,19-Oct-20,Childrens Services,AMZNMktplace,Childrens Services,19.96,Equipment & Furniture,2020-21Oct_PC00167
Sandwell Metropolitan Borough Council,http://www.sandwell.gov.uk/info/200202/performance_and_spending/3233/government_procurement_cards,19-Oct-20,Adult Social Care Health and Wellbeing - Total,BINLINERSDIRECT.CO,Total Adult Social Care,199.75,Materials & Consumables,2020-21Oct_PC00168
Sandwell Metropolitan Borough Council,http://www.sandwell.gov.uk/info/200202/performance_and_spending/3233/government_procurement_cards,19-Oct-20,Housing & Communities,AMZNMKTPLACE AMAZON.CO,Neighbourhoods,3.75,Equipment & Furniture,2020-21Oct_PC00169
Sandwell Metropolitan Borough Council,http://www.sandwell.gov.uk/info/200202/performance_and_spending/3233/government_procurement_cards,19-Oct-20,Housing & Communities,AMZNMKTPLACE AMAZON.CO,Neighbourhoods,18.94,Equipment & Furniture,2020-21Oct_PC00170
Sandwell Metropolitan Borough Council,http://www.sandwell.gov.uk/info/200202/performance_and_spending/3233/government_procurement_cards,19-Oct-20,Total Housing Revenue Account,Amazon.co.uk H21346E25,Total Housing Revenue Account,79.99,Employee Expenses,2020-21Oct_PC00171
Sandwell Metropolitan Borough Council,http://www.sandwell.gov.uk/info/200202/performance_and_spending/3233/government_procurement_cards,19-Oct-20,Childrens Services,AMZNMktplace,Childrens Services,24.48,ICT,2020-21Oct_PC00172
Sandwell Metropolitan Borough Council,http://www.sandwell.gov.uk/info/200202/performance_and_spending/3233/government_procurement_cards,19-Oct-20,Regeneration & Growth,AMZ Amazon.co.uk,Regeneration And The Economy,-149.99,Equipment & Furniture,2020-21Oct_PC00173
Sandwell Metropolitan Borough Council,http://www.sandwell.gov.uk/info/200202/performance_and_spending/3233/government_procurement_cards,19-Oct-20,Housing & Communities,ASDA SUPERSTORE,Neighbourhoods,14.69,Materials & Consumables,2020-21Oct_PC00174
Sandwell Metropolitan Borough Council,http://www.sandwell.gov.uk/info/200202/performance_and_spending/3233/government_procurement_cards,19-Oct-20,Resources (Inc SIU),WH SMITH,Assistant Chief Executive (Excl SIU),4.15,Printing Stationery&Gen Office,2020-21Oct_PC00175
Sandwell Metropolitan Borough Council,http://www.sandwell.gov.uk/info/200202/performance_and_spending/3233/government_procurement_cards,19-Oct-20,Resources (Inc SIU),BODYCARE,Assistant Chief Executive (Excl SIU),8.16,Printing Stationery&Gen Office,2020-21Oct_PC00176
Sandwell Metropolitan Borough Council,http://www.sandwell.gov.uk/info/200202/performance_and_spending/3233/government_procurement_cards,19-Oct-20,Childrens Services,AMZNMktplace,Childrens Services,22.37,ICT,2020-21Oct_PC00177
Sandwell Metropolitan Borough Council,http://www.sandwell.gov.uk/info/200202/performance_and_spending/3233/government_procurement_cards,19-Oct-20,Resources (Inc SIU),ALDI 45 772,Assistant Chief Executive (Excl SIU),7.67,Printing Stationery&Gen Office,2020-21Oct_PC00178
Sandwell Metropolitan Borough Council,http://www.sandwell.gov.uk/info/200202/performance_and_spending/3233/government_procurement_cards,19-Oct-20,Housing & Communities,AMZNMKTPLACE AMAZON.CO,Neighbourhoods,43.43,Equipment & Furniture,2020-21Oct_PC00179
Sandwell Metropolitan Borough Council,http://www.sandwell.gov.uk/info/200202/performance_and_spending/3233/government_procurement_cards,19-Oct-20,Housing & Communities,Amazon.co.uk GA9S82205,Neighbourhoods,16.67,Equipment & Furniture,2020-21Oct_PC00180
Sandwell Metropolitan Borough Council,http://www.sandwell.gov.uk/info/200202/performance_and_spending/3233/government_procurement_cards,20-Oct-20,Childrens Services,WWW.MYPOSTSHOP.COM,Childrens Services,18.09,Printing Stationery&Gen Office,2020-21Oct_PC00181
Sandwell Metropolitan Borough Council,http://www.sandwell.gov.uk/info/200202/performance_and_spending/3233/government_procurement_cards,20-Oct-20,Regeneration & Growth,Amazon.co.uk 4M7F56DA5,Regeneration And The Economy,3.49,Printing Stationery&Gen Office,2020-21Oct_PC00182
Sandwell Metropolitan Borough Council,http://www.sandwell.gov.uk/info/200202/performance_and_spending/3233/government_procurement_cards,20-Oct-20,Individual School Budgets With Inclusion,Amazon.co.uk N10674ZP5,Individual School Budgets With Inclusion,22.78,ICT,2020-21Oct_PC00183
Sandwell Metropolitan Borough Council,http://www.sandwell.gov.uk/info/200202/performance_and_spending/3233/government_procurement_cards,20-Oct-20,Housing & Communities,SCREWFIX DIRECT,Neighbourhoods,29.47,Printing Stationery&Gen Office,2020-21Oct_PC00184
Sandwell Metropolitan Borough Council,http://www.sandwell.gov.uk/info/200202/performance_and_spending/3233/government_procurement_cards,20-Oct-20,Resources (Inc SIU),Amazon.co.uk J15PK1TJ5,Assistant Chief Executive (Excl SIU),18.32,Printing Stationery&Gen Office,2020-21Oct_PC00185
Sandwell Metropolitan Borough Council,http://www.sandwell.gov.uk/info/200202/performance_and_spending/3233/government_procurement_cards,20-Oct-20,Housing & Communities,WESTMINSTER INSIGHT,Neighbourhoods,180,Conference Expenses,2020-21Oct_PC00186
Sandwell Metropolitan Borough Council,http://www.sandwell.gov.uk/info/200202/performance_and_spending/3233/government_procurement_cards,20-Oct-20,Resources (Inc SIU),Amazon.co.uk 563Q74WN5,Assistant Chief Executive (Excl SIU),12.21,Printing Stationery&Gen Office,2020-21Oct_PC00187
Sandwell Metropolitan Borough Council,http://www.sandwell.gov.uk/info/200202/performance_and_spending/3233/government_procurement_cards,20-Oct-20,Individual School Budgets With Inclusion,AMZNMktplace,Individual School Budgets With Inclusion,8.97,Materials & Consumables,2020-21Oct_PC00188
Sandwell Metropolitan Borough Council,http://www.sandwell.gov.uk/info/200202/performance_and_spending/3233/government_procurement_cards,20-Oct-20,Individual School Budgets With Inclusion,ARGOS LTD,Individual School Budgets With Inclusion,329,ICT,2020-21Oct_PC00189
Sandwell Metropolitan Borough Council,http://www.sandwell.gov.uk/info/200202/performance_and_spending/3233/government_procurement_cards,20-Oct-20,Individual School Budgets With Inclusion,OFFICE DEPOT UK,Individual School Budgets With Inclusion,363.72,Printing Stationery&Gen Office,2020-21Oct_PC00190
Sandwell Metropolitan Borough Council,http://www.sandwell.gov.uk/info/200202/performance_and_spending/3233/government_procurement_cards,20-Oct-20,Individual School Budgets With Inclusion,AMZNMktplace,Individual School Budgets With Inclusion,119.58,Cleaning,2020-21Oct_PC00191
Sandwell Metropolitan Borough Council,http://www.sandwell.gov.uk/info/200202/performance_and_spending/3233/government_procurement_cards,21-Oct-20,Housing & Communities,AMZNMKTPLACE AMAZON.CO,Neighbourhoods,38.32,Printing Stationery&Gen Office,2020-21Oct_PC00192
Sandwell Metropolitan Borough Council,http://www.sandwell.gov.uk/info/200202/performance_and_spending/3233/government_procurement_cards,21-Oct-20,Individual School Budgets With Inclusion,AMZNMKTPLACE AMAZON.CO,Individual School Budgets With Inclusion,10.99,ICT,2020-21Oct_PC00193
Sandwell Metropolitan Borough Council,http://www.sandwell.gov.uk/info/200202/performance_and_spending/3233/government_procurement_cards,21-Oct-20,Housing & Communities,ASDA SUPERSTORE,Neighbourhoods,0.83,Materials & Consumables,2020-21Oct_PC00194
Sandwell Metropolitan Borough Council,http://www.sandwell.gov.uk/info/200202/performance_and_spending/3233/government_procurement_cards,21-Oct-20,Housing & Communities,AMZNMktplace,Neighbourhoods,8.75,ICT,2020-21Oct_PC00195
Sandwell Metropolitan Borough Council,http://www.sandwell.gov.uk/info/200202/performance_and_spending/3233/government_procurement_cards,21-Oct-20,Childrens Services,Amazon.co.uk DF8T232E5,Childrens Services,11.24,ICT,2020-21Oct_PC00196
Sandwell Metropolitan Borough Council,http://www.sandwell.gov.uk/info/200202/performance_and_spending/3233/government_procurement_cards,21-Oct-20,Housing & Communities,Amazon.co.uk 2V56K53G5,Neighbourhoods,15.96,Printing Stationery&Gen Office,2020-21Oct_PC00197
Sandwell Metropolitan Borough Council,http://www.sandwell.gov.uk/info/200202/performance_and_spending/3233/government_procurement_cards,21-Oct-20,Total Housing Revenue Account,WWW.KANE.CO.UK,Total Housing Revenue Account,300,Materials & Consumables,2020-21Oct_PC00198
Sandwell Metropolitan Borough Council,http://www.sandwell.gov.uk/info/200202/performance_and_spending/3233/government_procurement_cards,21-Oct-20,Housing & Communities,AMZNMktplace,Neighbourhoods,39.16,Equipment & Furniture,2020-21Oct_PC00199
Sandwell Metropolitan Borough Council,http://www.sandwell.gov.uk/info/200202/performance_and_spending/3233/government_procurement_cards,21-Oct-20,Housing & Communities,AMZNMktplace,Neighbourhoods,77.49,Equipment & Furniture,2020-21Oct_PC00200
Sandwell Metropolitan Borough Council,http://www.sandwell.gov.uk/info/200202/performance_and_spending/3233/government_procurement_cards,21-Oct-20,Housing & Communities,AMZNMktplace,Neighbourhoods,3.44,Materials & Consumables,2020-21Oct_PC00201
Sandwell Metropolitan Borough Council,http://www.sandwell.gov.uk/info/200202/performance_and_spending/3233/government_procurement_cards,21-Oct-20,Housing & Communities,AMZNMktplace,Neighbourhoods,3.44,Materials & Consumables,2020-21Oct_PC00202
Sandwell Metropolitan Borough Council,http://www.sandwell.gov.uk/info/200202/performance_and_spending/3233/government_procurement_cards,21-Oct-20,Housing & Communities,AMZNMKTPLACE AMAZON.CO,Neighbourhoods,3.45,Materials & Consumables,2020-21Oct_PC00203
Sandwell Metropolitan Borough Council,http://www.sandwell.gov.uk/info/200202/performance_and_spending/3233/government_procurement_cards,21-Oct-20,Housing & Communities,AMZNMktplace,Neighbourhoods,4.02,Materials & Consumables,2020-21Oct_PC00204
Sandwell Metropolitan Borough Council,http://www.sandwell.gov.uk/info/200202/performance_and_spending/3233/government_procurement_cards,21-Oct-20,Total Housing Revenue Account,Amazon.co.uk 0726E4KF5,Total Housing Revenue Account,79.99,Employee Expenses,2020-21Oct_PC00205
Sandwell Metropolitan Borough Council,http://www.sandwell.gov.uk/info/200202/performance_and_spending/3233/government_procurement_cards,21-Oct-20,Resources (Inc SIU),PAYPAL  PIXFABENTER EB,Assistant Chief Executive (Excl SIU),3.95,Equipment & Furniture,2020-21Oct_PC00206
Sandwell Metropolitan Borough Council,http://www.sandwell.gov.uk/info/200202/performance_and_spending/3233/government_procurement_cards,21-Oct-20,Resources (Inc SIU),PAYPAL  PIXFABENTER EB,Assistant Chief Executive (Excl SIU),3.95,Equipment & Furniture,2020-21Oct_PC00207
Sandwell Metropolitan Borough Council,http://www.sandwell.gov.uk/info/200202/performance_and_spending/3233/government_procurement_cards,21-Oct-20,Resources (Inc SIU),PAYPAL  PIXFABENTER EB,Assistant Chief Executive (Excl SIU),3.95,Equipment & Furniture,2020-21Oct_PC00208
Sandwell Metropolitan Borough Council,http://www.sandwell.gov.uk/info/200202/performance_and_spending/3233/government_procurement_cards,22-Oct-20,Individual School Budgets With Inclusion,OFFICE DEPOT UK,Individual School Budgets With Inclusion,27.7,Printing Stationery&Gen Office,2020-21Oct_PC00209
Sandwell Metropolitan Borough Council,http://www.sandwell.gov.uk/info/200202/performance_and_spending/3233/government_procurement_cards,22-Oct-20,Individual School Budgets With Inclusion,OFFICE DEPOT UK,Individual School Budgets With Inclusion,29.44,Printing Stationery&Gen Office,2020-21Oct_PC00210
Sandwell Metropolitan Borough Council,http://www.sandwell.gov.uk/info/200202/performance_and_spending/3233/government_procurement_cards,22-Oct-20,Housing & Communities,OFFICE DEPOT UK,Neighbourhoods,68.1,Printing Stationery&Gen Office,2020-21Oct_PC00211
Sandwell Metropolitan Borough Council,http://www.sandwell.gov.uk/info/200202/performance_and_spending/3233/government_procurement_cards,22-Oct-20,Housing & Communities,AMZNMKTPLACE AMAZON.CO,Neighbourhoods,9.16,Materials & Consumables,2020-21Oct_PC00212
Sandwell Metropolitan Borough Council,http://www.sandwell.gov.uk/info/200202/performance_and_spending/3233/government_procurement_cards,22-Oct-20,Childrens Services,AMZNMKTPLACE AMAZON.CO,Childrens Services,17.17,ICT,2020-21Oct_PC00213
Sandwell Metropolitan Borough Council,http://www.sandwell.gov.uk/info/200202/performance_and_spending/3233/government_procurement_cards,22-Oct-20,Adult Social Care Health and Wellbeing - Total,OFFICE DEPOT UK,Total Adult Social Care,41.55,Printing Stationery&Gen Office,2020-21Oct_PC00214
Sandwell Metropolitan Borough Council,http://www.sandwell.gov.uk/info/200202/performance_and_spending/3233/government_procurement_cards,22-Oct-20,Childrens Services,VODAFONE LTD,Childrens Services,19.59,ICT,2020-21Oct_PC00215
Sandwell Metropolitan Borough Council,http://www.sandwell.gov.uk/info/200202/performance_and_spending/3233/government_procurement_cards,22-Oct-20,Housing & Communities,Amazon.co.uk VY2AX1RS5,Neighbourhoods,247.48,Printing Stationery&Gen Office,2020-21Oct_PC00216
Sandwell Metropolitan Borough Council,http://www.sandwell.gov.uk/info/200202/performance_and_spending/3233/government_procurement_cards,22-Oct-20,Childrens Services,MEDISUPPLIES LTD,Childrens Services,22.8,Cleaning,2020-21Oct_PC00217
Sandwell Metropolitan Borough Council,http://www.sandwell.gov.uk/info/200202/performance_and_spending/3233/government_procurement_cards,22-Oct-20,Childrens Services,AMZNMktplace,Childrens Services,19.99,ICT,2020-21Oct_PC00218
Sandwell Metropolitan Borough Council,http://www.sandwell.gov.uk/info/200202/performance_and_spending/3233/government_procurement_cards,22-Oct-20,Total Housing Revenue Account,Amazon.co.uk OJ9P08XJ5,Total Housing Revenue Account,168.54,ICT,2020-21Oct_PC00219
Sandwell Metropolitan Borough Council,http://www.sandwell.gov.uk/info/200202/performance_and_spending/3233/government_procurement_cards,22-Oct-20,Total Housing Revenue Account,KESTERON LIMITED,Total Housing Revenue Account,14.92,Materials & Consumables,2020-21Oct_PC00220
Sandwell Metropolitan Borough Council,http://www.sandwell.gov.uk/info/200202/performance_and_spending/3233/government_procurement_cards,22-Oct-20,Housing & Communities,AMZNMktplace,Neighbourhoods,30.74,Materials & Consumables,2020-21Oct_PC00221
Sandwell Metropolitan Borough Council,http://www.sandwell.gov.uk/info/200202/performance_and_spending/3233/government_procurement_cards,22-Oct-20,Housing & Communities,AMZNMKTPLACE AMAZON.CO,Neighbourhoods,35.28,Materials & Consumables,2020-21Oct_PC00222
Sandwell Metropolitan Borough Council,http://www.sandwell.gov.uk/info/200202/performance_and_spending/3233/government_procurement_cards,22-Oct-20,Resources (Inc SIU),AMZNMktplace,Assistant Chief Executive (Excl SIU),26.65,Printing Stationery&Gen Office,2020-21Oct_PC00223
Sandwell Metropolitan Borough Council,http://www.sandwell.gov.uk/info/200202/performance_and_spending/3233/government_procurement_cards,22-Oct-20,Childrens Services,AMZNMktplace,Childrens Services,20.74,ICT,2020-21Oct_PC00224
Sandwell Metropolitan Borough Council,http://www.sandwell.gov.uk/info/200202/performance_and_spending/3233/government_procurement_cards,22-Oct-20,Individual School Budgets With Inclusion,EB  DR TINA RAE SUPPOR,Individual School Budgets With Inclusion,37.49,Materials & Consumables,2020-21Oct_PC00225
Sandwell Metropolitan Borough Council,http://www.sandwell.gov.uk/info/200202/performance_and_spending/3233/government_procurement_cards,22-Oct-20,Housing & Communities,AMZNMKTPLACE AMAZON.CO,Neighbourhoods,-25.29,Materials & Consumables,2020-21Oct_PC00226
Sandwell Metropolitan Borough Council,http://www.sandwell.gov.uk/info/200202/performance_and_spending/3233/government_procurement_cards,22-Oct-20,Resources (Inc SIU),PAYPAL  PIXFABENTER EB,Assistant Chief Executive (Excl SIU),3.95,Equipment & Furniture,2020-21Oct_PC00227
Sandwell Metropolitan Borough Council,http://www.sandwell.gov.uk/info/200202/performance_and_spending/3233/government_procurement_cards,22-Oct-20,Childrens Services,GLENMORE LODGE,Childrens Services,645,Ind. Emp Exp-Staff Dev&Training,2020-21Oct_PC00228
Sandwell Metropolitan Borough Council,http://www.sandwell.gov.uk/info/200202/performance_and_spending/3233/government_procurement_cards,22-Oct-20,Housing & Communities,AMZNMKTPLACE AMAZON.CO,Neighbourhoods,40.47,Equipment & Furniture,2020-21Oct_PC00229
Sandwell Metropolitan Borough Council,http://www.sandwell.gov.uk/info/200202/performance_and_spending/3233/government_procurement_cards,22-Oct-20,Total Housing Revenue Account,PAYPAL  FANTAIKEJIY EB,Total Housing Revenue Account,67.99,Equipment & Furniture,2020-21Oct_PC00230
Sandwell Metropolitan Borough Council,http://www.sandwell.gov.uk/info/200202/performance_and_spending/3233/government_procurement_cards,22-Oct-20,Individual School Budgets With Inclusion,SP   SCHOOL WELLBEING,Individual School Budgets With Inclusion,25,Ind. Emp Exp-Staff Dev&Training,2020-21Oct_PC00231
Sandwell Metropolitan Borough Council,http://www.sandwell.gov.uk/info/200202/performance_and_spending/3233/government_procurement_cards,23-Oct-20,Adult Social Care Health and Wellbeing - Total,OFFICE DEPOT UK,Total Adult Social Care,14.95,Printing Stationery&Gen Office,2020-21Oct_PC00232
Sandwell Metropolitan Borough Council,http://www.sandwell.gov.uk/info/200202/performance_and_spending/3233/government_procurement_cards,23-Oct-20,Adult Social Care Health and Wellbeing - Total,AMZNMKTPLACE AMAZON.CO,Public Health,115.8,Printing Stationery&Gen Office,2020-21Oct_PC00233
Sandwell Metropolitan Borough Council,http://www.sandwell.gov.uk/info/200202/performance_and_spending/3233/government_procurement_cards,23-Oct-20,Childrens Services,AMZNMKTPLACE AMAZON.CO,Childrens Services,101.18,Materials & Consumables,2020-21Oct_PC00234
Sandwell Metropolitan Borough Council,http://www.sandwell.gov.uk/info/200202/performance_and_spending/3233/government_procurement_cards,23-Oct-20,Housing & Communities,ASDA STORE,Neighbourhoods,1.63,Catering Provisions,2020-21Oct_PC00235
Sandwell Metropolitan Borough Council,http://www.sandwell.gov.uk/info/200202/performance_and_spending/3233/government_procurement_cards,23-Oct-20,Total Housing Revenue Account,Flextronics,Total Housing Revenue Account,40,ICT,2020-21Oct_PC00236
Sandwell Metropolitan Borough Council,http://www.sandwell.gov.uk/info/200202/performance_and_spending/3233/government_procurement_cards,23-Oct-20,Childrens Services,AMZNMktplace,Childrens Services,26.17,Materials & Consumables,2020-21Oct_PC00237
Sandwell Metropolitan Borough Council,http://www.sandwell.gov.uk/info/200202/performance_and_spending/3233/government_procurement_cards,23-Oct-20,Total Housing Revenue Account,AMZNMktplace,Total Housing Revenue Account,1.58,Printing Stationery&Gen Office,2020-21Oct_PC00238
Sandwell Metropolitan Borough Council,http://www.sandwell.gov.uk/info/200202/performance_and_spending/3233/government_procurement_cards,23-Oct-20,Housing & Communities,Amazon.co.uk LN7TJ0R25,Neighbourhoods,16.65,ICT,2020-21Oct_PC00239
Sandwell Metropolitan Borough Council,http://www.sandwell.gov.uk/info/200202/performance_and_spending/3233/government_procurement_cards,23-Oct-20,Adult Social Care Health and Wellbeing - Total,AMZNMktplace,Total Adult Social Care,92.1,Equipment & Furniture,2020-21Oct_PC00240
Sandwell Metropolitan Borough Council,http://www.sandwell.gov.uk/info/200202/performance_and_spending/3233/government_procurement_cards,23-Oct-20,Housing & Communities,AMZNMktplace,Neighbourhoods,190.95,Equipment & Furniture,2020-21Oct_PC00241
Sandwell Metropolitan Borough Council,http://www.sandwell.gov.uk/info/200202/performance_and_spending/3233/government_procurement_cards,23-Oct-20,Housing & Communities,AMZNMktplace,Neighbourhoods,21.38,Materials & Consumables,2020-21Oct_PC00242
Sandwell Metropolitan Borough Council,http://www.sandwell.gov.uk/info/200202/performance_and_spending/3233/government_procurement_cards,23-Oct-20,Childrens Services,AMZNMktplace,Childrens Services,111.67,Telephones,2020-21Oct_PC00243
Sandwell Metropolitan Borough Council,http://www.sandwell.gov.uk/info/200202/performance_and_spending/3233/government_procurement_cards,23-Oct-20,Housing & Communities,AMZNMktplace,Neighbourhoods,9.72,Materials & Consumables,2020-21Oct_PC00244
Sandwell Metropolitan Borough Council,http://www.sandwell.gov.uk/info/200202/performance_and_spending/3233/government_procurement_cards,23-Oct-20,Adult Social Care Health and Wellbeing - Total,XMA LTD,Total Adult Social Care,114.43,ICT,2020-21Oct_PC00245
Sandwell Metropolitan Borough Council,http://www.sandwell.gov.uk/info/200202/performance_and_spending/3233/government_procurement_cards,23-Oct-20,Regeneration & Growth,POST OFFICE COUNTER,Regeneration And The Economy,2.06,"Postages, Carriage & Courier Services",2020-21Oct_PC00246
Sandwell Metropolitan Borough Council,http://www.sandwell.gov.uk/info/200202/performance_and_spending/3233/government_procurement_cards,23-Oct-20,Housing & Communities,AMZNMKTPLACE AMAZON.CO,Neighbourhoods,9.25,Materials & Consumables,2020-21Oct_PC00247
Sandwell Metropolitan Borough Council,http://www.sandwell.gov.uk/info/200202/performance_and_spending/3233/government_procurement_cards,23-Oct-20,Housing & Communities,AMZNMktplace,Neighbourhoods,9.25,Materials & Consumables,2020-21Oct_PC00248
Sandwell Metropolitan Borough Council,http://www.sandwell.gov.uk/info/200202/performance_and_spending/3233/government_procurement_cards,23-Oct-20,Housing & Communities,AMZNMktplace,Neighbourhoods,9.25,Materials & Consumables,2020-21Oct_PC00249
Sandwell Metropolitan Borough Council,http://www.sandwell.gov.uk/info/200202/performance_and_spending/3233/government_procurement_cards,23-Oct-20,Housing & Communities,AMZNMktplace,Neighbourhoods,9.25,Materials & Consumables,2020-21Oct_PC00250
Sandwell Metropolitan Borough Council,http://www.sandwell.gov.uk/info/200202/performance_and_spending/3233/government_procurement_cards,23-Oct-20,Resources (Inc SIU),AMZNMktplace,Assistant Chief Executive (Excl SIU),39.85,Printing Stationery&Gen Office,2020-21Oct_PC00251
Sandwell Metropolitan Borough Council,http://www.sandwell.gov.uk/info/200202/performance_and_spending/3233/government_procurement_cards,23-Oct-20,Resources (Inc SIU),AMZNMktplace,Assistant Chief Executive (Excl SIU),126.76,ICT,2020-21Oct_PC00252
Sandwell Metropolitan Borough Council,http://www.sandwell.gov.uk/info/200202/performance_and_spending/3233/government_procurement_cards,26-Oct-20,Regeneration & Growth,WWW.TOOLSTATION.COM,Regeneration And The Economy,183.32,Materials & Consumables,2020-21Oct_PC00253
Sandwell Metropolitan Borough Council,http://www.sandwell.gov.uk/info/200202/performance_and_spending/3233/government_procurement_cards,26-Oct-20,Regeneration & Growth,WWW.TOOLSTATION.COM,Regeneration And The Economy,183.32,Materials & Consumables,2020-21Oct_PC00254
Sandwell Metropolitan Borough Council,http://www.sandwell.gov.uk/info/200202/performance_and_spending/3233/government_procurement_cards,26-Oct-20,Housing & Communities,AMZNMKTPLACE AMAZON.CO,Neighbourhoods,154.08,Equipment & Furniture,2020-21Oct_PC00255
Sandwell Metropolitan Borough Council,http://www.sandwell.gov.uk/info/200202/performance_and_spending/3233/government_procurement_cards,26-Oct-20,Resources (Inc SIU),AMZNMktplace,Assistant Chief Executive (Excl SIU),7.49,Equipment & Furniture,2020-21Oct_PC00256
Sandwell Metropolitan Borough Council,http://www.sandwell.gov.uk/info/200202/performance_and_spending/3233/government_procurement_cards,26-Oct-20,Individual School Budgets With Inclusion,AMZNMktplace,Individual School Budgets With Inclusion,27.37,Equipment & Furniture,2020-21Oct_PC00257
Sandwell Metropolitan Borough Council,http://www.sandwell.gov.uk/info/200202/performance_and_spending/3233/government_procurement_cards,26-Oct-20,Housing & Communities,AMZNMKTPLACE AMAZON.CO,Neighbourhoods,88.97,Printing Stationery&Gen Office,2020-21Oct_PC00258
Sandwell Metropolitan Borough Council,http://www.sandwell.gov.uk/info/200202/performance_and_spending/3233/government_procurement_cards,26-Oct-20,Housing & Communities,AMZNMktplace,Neighbourhoods,10.68,Materials & Consumables,2020-21Oct_PC00259
Sandwell Metropolitan Borough Council,http://www.sandwell.gov.uk/info/200202/performance_and_spending/3233/government_procurement_cards,26-Oct-20,Regeneration & Growth,AMZNMktplace,Regeneration And The Economy,5.82,Printing Stationery&Gen Office,2020-21Oct_PC00260
Sandwell Metropolitan Borough Council,http://www.sandwell.gov.uk/info/200202/performance_and_spending/3233/government_procurement_cards,26-Oct-20,Total Housing Revenue Account,AMZNMktplace,Total Housing Revenue Account,41.2,Equipment & Furniture,2020-21Oct_PC00261
Sandwell Metropolitan Borough Council,http://www.sandwell.gov.uk/info/200202/performance_and_spending/3233/government_procurement_cards,26-Oct-20,Adult Social Care Health and Wellbeing - Total,PENTLAND WHOLESALE LTD,Total Adult Social Care,122.14,Equipment & Furniture,2020-21Oct_PC00262
Sandwell Metropolitan Borough Council,http://www.sandwell.gov.uk/info/200202/performance_and_spending/3233/government_procurement_cards,26-Oct-20,Childrens Services,MYHERMES.CO.UK,Childrens Services,12.08,"Postages, Carriage & Courier Services",2020-21Oct_PC00263
Sandwell Metropolitan Borough Council,http://www.sandwell.gov.uk/info/200202/performance_and_spending/3233/government_procurement_cards,26-Oct-20,Housing & Communities,AMZNMktplace,Neighbourhoods,24.5,Printing Stationery&Gen Office,2020-21Oct_PC00264
Sandwell Metropolitan Borough Council,http://www.sandwell.gov.uk/info/200202/performance_and_spending/3233/government_procurement_cards,26-Oct-20,Childrens Services,Amazon.co.uk MC3TJ3BM4,Childrens Services,13.7,Equipment & Furniture,2020-21Oct_PC00265
Sandwell Metropolitan Borough Council,http://www.sandwell.gov.uk/info/200202/performance_and_spending/3233/government_procurement_cards,26-Oct-20,Childrens Services,AMZNMktplace,Childrens Services,115.8,ICT,2020-21Oct_PC00266
Sandwell Metropolitan Borough Council,http://www.sandwell.gov.uk/info/200202/performance_and_spending/3233/government_procurement_cards,26-Oct-20,Resources (Inc SIU),PAYPAL  PIXFABENTER EB,Assistant Chief Executive (Excl SIU),3.95,Equipment & Furniture,2020-21Oct_PC00267
Sandwell Metropolitan Borough Council,http://www.sandwell.gov.uk/info/200202/performance_and_spending/3233/government_procurement_cards,26-Oct-20,Regeneration & Growth,AMZNMktplace,Regeneration And The Economy,169.99,Printing Stationery&Gen Office,2020-21Oct_PC00268
Sandwell Metropolitan Borough Council,http://www.sandwell.gov.uk/info/200202/performance_and_spending/3233/government_procurement_cards,26-Oct-20,Individual School Budgets With Inclusion,AMZNMktplace,Individual School Budgets With Inclusion,19.98,Equipment & Furniture,2020-21Oct_PC00269
Sandwell Metropolitan Borough Council,http://www.sandwell.gov.uk/info/200202/performance_and_spending/3233/government_procurement_cards,26-Oct-20,Total Housing Revenue Account,AMZNMktplace,Total Housing Revenue Account,337.12,Equipment & Furniture,2020-21Oct_PC00270
Sandwell Metropolitan Borough Council,http://www.sandwell.gov.uk/info/200202/performance_and_spending/3233/government_procurement_cards,26-Oct-20,Resources (Inc SIU),AMZNMktplace,Assistant Chief Executive (Excl SIU),32.25,Printing Stationery&Gen Office,2020-21Oct_PC00271
Sandwell Metropolitan Borough Council,http://www.sandwell.gov.uk/info/200202/performance_and_spending/3233/government_procurement_cards,26-Oct-20,Housing & Communities,Amazon Prime MC6L96QV4,Neighbourhoods,7.99,"Postages, Carriage & Courier Services",2020-21Oct_PC00272
Sandwell Metropolitan Borough Council,http://www.sandwell.gov.uk/info/200202/performance_and_spending/3233/government_procurement_cards,26-Oct-20,Regeneration & Growth,AMZNMktplace,Regeneration And The Economy,19.56,ICT,2020-21Oct_PC00273
Sandwell Metropolitan Borough Council,http://www.sandwell.gov.uk/info/200202/performance_and_spending/3233/government_procurement_cards,26-Oct-20,Adult Social Care Health and Wellbeing - Total,Amazon.co.uk MC3FQ86F4,Total Adult Social Care,52,Printing Stationery&Gen Office,2020-21Oct_PC00274
Sandwell Metropolitan Borough Council,http://www.sandwell.gov.uk/info/200202/performance_and_spending/3233/government_procurement_cards,26-Oct-20,Adult Social Care Health and Wellbeing - Total,Amazon.co.uk MC0FE16F4,Total Adult Social Care,10.4,Printing Stationery&Gen Office,2020-21Oct_PC00275
Sandwell Metropolitan Borough Council,http://www.sandwell.gov.uk/info/200202/performance_and_spending/3233/government_procurement_cards,27-Oct-20,Housing & Communities,OFFICE DEPOT UK,Neighbourhoods,91.52,Printing Stationery&Gen Office,2020-21Oct_PC00276
Sandwell Metropolitan Borough Council,http://www.sandwell.gov.uk/info/200202/performance_and_spending/3233/government_procurement_cards,27-Oct-20,Adult Social Care Health and Wellbeing - Total,OFFICE DEPOT UK,Total Adult Social Care,24.5,Printing Stationery&Gen Office,2020-21Oct_PC00277
Sandwell Metropolitan Borough Council,http://www.sandwell.gov.uk/info/200202/performance_and_spending/3233/government_procurement_cards,27-Oct-20,Adult Social Care Health and Wellbeing - Total,OFFICE DEPOT UK,Total Adult Social Care,4.7,Printing Stationery&Gen Office,2020-21Oct_PC00278
Sandwell Metropolitan Borough Council,http://www.sandwell.gov.uk/info/200202/performance_and_spending/3233/government_procurement_cards,27-Oct-20,Adult Social Care Health and Wellbeing - Total,OFFICE DEPOT UK,Total Adult Social Care,43,Printing Stationery&Gen Office,2020-21Oct_PC00279
Sandwell Metropolitan Borough Council,http://www.sandwell.gov.uk/info/200202/performance_and_spending/3233/government_procurement_cards,27-Oct-20,Resources (Inc SIU),SAINSBURYS SACAT0558,Assistant Chief Executive (Excl SIU),12.5,Printing Stationery&Gen Office,2020-21Oct_PC00280
Sandwell Metropolitan Borough Council,http://www.sandwell.gov.uk/info/200202/performance_and_spending/3233/government_procurement_cards,27-Oct-20,Childrens Services,AMZNMktplace,Childrens Services,16.65,Materials & Consumables,2020-21Oct_PC00281
Sandwell Metropolitan Borough Council,http://www.sandwell.gov.uk/info/200202/performance_and_spending/3233/government_procurement_cards,27-Oct-20,Childrens Services,CARTRIDGEPEOPLE.COM,Childrens Services,138.17,Printing Stationery&Gen Office,2020-21Oct_PC00282
Sandwell Metropolitan Borough Council,http://www.sandwell.gov.uk/info/200202/performance_and_spending/3233/government_procurement_cards,27-Oct-20,Childrens Services,CARTRIDGEPEOPLE.COM,Childrens Services,143.17,Printing Stationery&Gen Office,2020-21Oct_PC00283
Sandwell Metropolitan Borough Council,http://www.sandwell.gov.uk/info/200202/performance_and_spending/3233/government_procurement_cards,27-Oct-20,Childrens Services,AMZNMKTPLACE AMAZON.CO,Childrens Services,33.32,Cleaning,2020-21Oct_PC00284
Sandwell Metropolitan Borough Council,http://www.sandwell.gov.uk/info/200202/performance_and_spending/3233/government_procurement_cards,27-Oct-20,Regeneration & Growth,AMZNMktplace,Regeneration And The Economy,14.99,Repairs & Maintenance,2020-21Oct_PC00285
Sandwell Metropolitan Borough Council,http://www.sandwell.gov.uk/info/200202/performance_and_spending/3233/government_procurement_cards,27-Oct-20,Housing & Communities,AQUAID WATERCOOLERS,Neighbourhoods,95,Catering Provisions,2020-21Oct_PC00286
Sandwell Metropolitan Borough Council,http://www.sandwell.gov.uk/info/200202/performance_and_spending/3233/government_procurement_cards,27-Oct-20,Regeneration & Growth,CLEMAS & COMPANY LTD,Regeneration And The Economy,46.28,Equipment & Furniture,2020-21Oct_PC00287
Sandwell Metropolitan Borough Council,http://www.sandwell.gov.uk/info/200202/performance_and_spending/3233/government_procurement_cards,27-Oct-20,Adult Social Care Health and Wellbeing - Total,AMZNMktplace,Total Adult Social Care,26.5,Equipment & Furniture,2020-21Oct_PC00288
Sandwell Metropolitan Borough Council,http://www.sandwell.gov.uk/info/200202/performance_and_spending/3233/government_procurement_cards,27-Oct-20,Housing & Communities,AMZNMKTPLACE AMAZON.CO,Neighbourhoods,10.28,Materials & Consumables,2020-21Oct_PC00289
Sandwell Metropolitan Borough Council,http://www.sandwell.gov.uk/info/200202/performance_and_spending/3233/government_procurement_cards,27-Oct-20,Housing & Communities,AMZNMktplace,Neighbourhoods,10.28,Materials & Consumables,2020-21Oct_PC00290
Sandwell Metropolitan Borough Council,http://www.sandwell.gov.uk/info/200202/performance_and_spending/3233/government_procurement_cards,27-Oct-20,Housing & Communities,AMZNMktplace,Neighbourhoods,19.19,Equipment & Furniture,2020-21Oct_PC00291
Sandwell Metropolitan Borough Council,http://www.sandwell.gov.uk/info/200202/performance_and_spending/3233/government_procurement_cards,27-Oct-20,Housing & Communities,AMZNMKTPLACE AMAZON.CO,Neighbourhoods,9.94,Materials & Consumables,2020-21Oct_PC00292
Sandwell Metropolitan Borough Council,http://www.sandwell.gov.uk/info/200202/performance_and_spending/3233/government_procurement_cards,27-Oct-20,Resources (Inc SIU),AMZNMKTPLACE AMAZON.CO,Assistant Chief Executive (Excl SIU),303.84,Printing Stationery&Gen Office,2020-21Oct_PC00293
Sandwell Metropolitan Borough Council,http://www.sandwell.gov.uk/info/200202/performance_and_spending/3233/government_procurement_cards,27-Oct-20,Housing & Communities,Amazon.co.uk MC4WP1SA4,Neighbourhoods,18.54,Materials & Consumables,2020-21Oct_PC00294
Sandwell Metropolitan Borough Council,http://www.sandwell.gov.uk/info/200202/performance_and_spending/3233/government_procurement_cards,27-Oct-20,Regeneration & Growth,Amazon.co.uk MC86M4SZ4,Regeneration And The Economy,41.5,R & M - Security,2020-21Oct_PC00295
Sandwell Metropolitan Borough Council,http://www.sandwell.gov.uk/info/200202/performance_and_spending/3233/government_procurement_cards,28-Oct-20,Housing & Communities,OFFICE DEPOT UK,Neighbourhoods,30.42,Materials & Consumables,2020-21Oct_PC00296
Sandwell Metropolitan Borough Council,http://www.sandwell.gov.uk/info/200202/performance_and_spending/3233/government_procurement_cards,28-Oct-20,Childrens Services,Dropbox,Childrens Services,36,Licences,2020-21Oct_PC00297
Sandwell Metropolitan Borough Council,http://www.sandwell.gov.uk/info/200202/performance_and_spending/3233/government_procurement_cards,28-Oct-20,Total Housing Revenue Account,SAINSBURYS SACAT0558,Total Housing Revenue Account,6.25,Protective Clothing&Uniforms,2020-21Oct_PC00298
Sandwell Metropolitan Borough Council,http://www.sandwell.gov.uk/info/200202/performance_and_spending/3233/government_procurement_cards,28-Oct-20,Individual School Budgets With Inclusion,AMZNMktplace,Individual School Budgets With Inclusion,37.99,Equipment & Furniture,2020-21Oct_PC00299
Sandwell Metropolitan Borough Council,http://www.sandwell.gov.uk/info/200202/performance_and_spending/3233/government_procurement_cards,28-Oct-20,Individual School Budgets With Inclusion,AMZNMktplace,Individual School Budgets With Inclusion,37.99,Equipment & Furniture,2020-21Oct_PC00300
Sandwell Metropolitan Borough Council,http://www.sandwell.gov.uk/info/200202/performance_and_spending/3233/government_procurement_cards,28-Oct-20,Housing & Communities,ASDA STORES LTD 5865,Neighbourhoods,240,Catering Provisions,2020-21Oct_PC00301
Sandwell Metropolitan Borough Council,http://www.sandwell.gov.uk/info/200202/performance_and_spending/3233/government_procurement_cards,28-Oct-20,Housing & Communities,ASDA STORES LTD 5865,Neighbourhoods,240,Catering Provisions,2020-21Oct_PC00302
Sandwell Metropolitan Borough Council,http://www.sandwell.gov.uk/info/200202/performance_and_spending/3233/government_procurement_cards,28-Oct-20,Housing & Communities,ASDA STORES LTD 5865,Neighbourhoods,195,Catering Provisions,2020-21Oct_PC00303
Sandwell Metropolitan Borough Council,http://www.sandwell.gov.uk/info/200202/performance_and_spending/3233/government_procurement_cards,28-Oct-20,Housing & Communities,ASDA STORES LTD 5865,Neighbourhoods,62,Catering Provisions,2020-21Oct_PC00304
Sandwell Metropolitan Borough Council,http://www.sandwell.gov.uk/info/200202/performance_and_spending/3233/government_procurement_cards,28-Oct-20,Total Housing Revenue Account,POST OFFICE COUNTER,Total Housing Revenue Account,492.48,"Postages, Carriage & Courier Services",2020-21Oct_PC00305
Sandwell Metropolitan Borough Council,http://www.sandwell.gov.uk/info/200202/performance_and_spending/3233/government_procurement_cards,29-Oct-20,Total Housing Revenue Account,OFFICE DEPOT UK,Total Housing Revenue Account,12.02,Printing Stationery&Gen Office,2020-21Oct_PC00306
Sandwell Metropolitan Borough Council,http://www.sandwell.gov.uk/info/200202/performance_and_spending/3233/government_procurement_cards,29-Oct-20,Housing & Communities,OFFICE DEPOT UK,Neighbourhoods,40.36,Printing Stationery&Gen Office,2020-21Oct_PC00307
Sandwell Metropolitan Borough Council,http://www.sandwell.gov.uk/info/200202/performance_and_spending/3233/government_procurement_cards,29-Oct-20,Resources (Inc SIU),AMZ Dependable Trading,Assistant Chief Executive (Excl SIU),-8.15,Equipment & Furniture,2020-21Oct_PC00308
Sandwell Metropolitan Borough Council,http://www.sandwell.gov.uk/info/200202/performance_and_spending/3233/government_procurement_cards,29-Oct-20,Childrens Services,AMZNMKTPLACE AMAZON.CO,Childrens Services,-52.48,Cleaning,2020-21Oct_PC00309
Sandwell Metropolitan Borough Council,http://www.sandwell.gov.uk/info/200202/performance_and_spending/3233/government_procurement_cards,29-Oct-20,Total Housing Revenue Account,PENNON WATER SERVICES,Total Housing Revenue Account,25.67,Water Services,2020-21Oct_PC00310
Sandwell Metropolitan Borough Council,http://www.sandwell.gov.uk/info/200202/performance_and_spending/3233/government_procurement_cards,29-Oct-20,Adult Social Care Health and Wellbeing - Total,AMZNMktplace,Public Health,115.8,Printing Stationery&Gen Office,2020-21Oct_PC00311
Sandwell Metropolitan Borough Council,http://www.sandwell.gov.uk/info/200202/performance_and_spending/3233/government_procurement_cards,29-Oct-20,Resources (Inc SIU),MENTIMETER,Assistant Chief Executive (Excl SIU),95.54,ICT,2020-21Oct_PC00312
Sandwell Metropolitan Borough Council,http://www.sandwell.gov.uk/info/200202/performance_and_spending/3233/government_procurement_cards,29-Oct-20,Housing & Communities,THE HYGIENE COMPANY,Neighbourhoods,271.96,Materials & Consumables,2020-21Oct_PC00313
Sandwell Metropolitan Borough Council,http://www.sandwell.gov.uk/info/200202/performance_and_spending/3233/government_procurement_cards,29-Oct-20,Resources (Inc SIU),KAHOOT! AS,Assistant Chief Executive (Excl SIU),192,ICT,2020-21Oct_PC00314
Sandwell Metropolitan Borough Council,http://www.sandwell.gov.uk/info/200202/performance_and_spending/3233/government_procurement_cards,29-Oct-20,Childrens Services,AMZNMKTPLACE AMAZON.CO,Childrens Services,111.35,Printing Stationery&Gen Office,2020-21Oct_PC00315
Sandwell Metropolitan Borough Council,http://www.sandwell.gov.uk/info/200202/performance_and_spending/3233/government_procurement_cards,29-Oct-20,Housing & Communities,The Plastic Box Compan,Neighbourhoods,45.75,Equipment & Furniture,2020-21Oct_PC00316
Sandwell Metropolitan Borough Council,http://www.sandwell.gov.uk/info/200202/performance_and_spending/3233/government_procurement_cards,29-Oct-20,Housing & Communities,AMZNMktplace,Neighbourhoods,62.46,Equipment & Furniture,2020-21Oct_PC00317
Sandwell Metropolitan Borough Council,http://www.sandwell.gov.uk/info/200202/performance_and_spending/3233/government_procurement_cards,29-Oct-20,Housing & Communities,XL DISPLAYS: 24680,Neighbourhoods,506,Equipment & Furniture,2020-21Oct_PC00318
Sandwell Metropolitan Borough Council,http://www.sandwell.gov.uk/info/200202/performance_and_spending/3233/government_procurement_cards,29-Oct-20,Housing & Communities,AMZNMktplace,Neighbourhoods,37.47,Equipment & Furniture,2020-21Oct_PC00319
Sandwell Metropolitan Borough Council,http://www.sandwell.gov.uk/info/200202/performance_and_spending/3233/government_procurement_cards,29-Oct-20,Housing & Communities,AMZNMktplace,Neighbourhoods,12.49,Equipment & Furniture,2020-21Oct_PC00320
Sandwell Metropolitan Borough Council,http://www.sandwell.gov.uk/info/200202/performance_and_spending/3233/government_procurement_cards,29-Oct-20,Housing & Communities,AMZNMktplace,Neighbourhoods,24.98,Equipment & Furniture,2020-21Oct_PC00321
Sandwell Metropolitan Borough Council,http://www.sandwell.gov.uk/info/200202/performance_and_spending/3233/government_procurement_cards,29-Oct-20,Housing & Communities,PAYPAL  LUVMIDOGGY EBA,Neighbourhoods,32.1,Materials & Consumables,2020-21Oct_PC00322
Sandwell Metropolitan Borough Council,http://www.sandwell.gov.uk/info/200202/performance_and_spending/3233/government_procurement_cards,29-Oct-20,Housing & Communities,ASDA STORES,Neighbourhoods,2.94,Materials & Consumables,2020-21Oct_PC00323
Sandwell Metropolitan Borough Council,http://www.sandwell.gov.uk/info/200202/performance_and_spending/3233/government_procurement_cards,29-Oct-20,Adult Social Care Health and Wellbeing - Total,EB  WHAT IS VICTIM BLA,Public Health,25,Ind. Emp Exp-Staff Dev&Training,2020-21Oct_PC00324
Sandwell Metropolitan Borough Council,http://www.sandwell.gov.uk/info/200202/performance_and_spending/3233/government_procurement_cards,29-Oct-20,Housing & Communities,Amazon.co.uk MC1KU3744,Neighbourhoods,11.99,Materials & Consumables,2020-21Oct_PC00325
Sandwell Metropolitan Borough Council,http://www.sandwell.gov.uk/info/200202/performance_and_spending/3233/government_procurement_cards,30-Oct-20,Housing & Communities,SCREWFIX DIRECT,Neighbourhoods,26.9,Materials & Consumables,2020-21Oct_PC00326
Sandwell Metropolitan Borough Council,http://www.sandwell.gov.uk/info/200202/performance_and_spending/3233/government_procurement_cards,30-Oct-20,Childrens Services,PREMIER INN,Childrens Services,87,Conference Expenses,2020-21Oct_PC00327
Sandwell Metropolitan Borough Council,http://www.sandwell.gov.uk/info/200202/performance_and_spending/3233/government_procurement_cards,30-Oct-20,Adult Social Care Health and Wellbeing - Total,AMZNMktplace,Total Adult Social Care,5.48,Printing Stationery&Gen Office,2020-21Oct_PC00328
Sandwell Metropolitan Borough Council,http://www.sandwell.gov.uk/info/200202/performance_and_spending/3233/government_procurement_cards,30-Oct-20,Housing & Communities,Amazon.co.uk MC2UD7UZ4,Neighbourhoods,29.92,Materials & Consumables,2020-21Oct_PC00329
Sandwell Metropolitan Borough Council,http://www.sandwell.gov.uk/info/200202/performance_and_spending/3233/government_procurement_cards,30-Oct-20,Resources (Inc SIU),Amazon.co.uk MC3ZM4UL4,Assistant Chief Executive (Excl SIU),29.16,ICT,2020-21Oct_PC00330
Sandwell Metropolitan Borough Council,http://www.sandwell.gov.uk/info/200202/performance_and_spending/3233/government_procurement_cards,30-Oct-20,Housing & Communities,Amazon.co.uk MC4O98954,Neighbourhoods,11.99,Materials & Consumables,2020-21Oct_PC00331
Sandwell Metropolitan Borough Council,http://www.sandwell.gov.uk/info/200202/performance_and_spending/3233/government_procurement_cards,02-Nov-20,Housing & Communities,ARGOS LTD,Neighbourhoods,19.95,Equipment & Furniture,2020-21Oct_PC00332
Sandwell Metropolitan Borough Council,http://www.sandwell.gov.uk/info/200202/performance_and_spending/3233/government_procurement_cards,02-Nov-20,Adult Social Care Health and Wellbeing - Total,OFFICE DEPOT UK,Total Adult Social Care,14.72,Printing Stationery&Gen Office,2020-21Oct_PC00333
Sandwell Metropolitan Borough Council,http://www.sandwell.gov.uk/info/200202/performance_and_spending/3233/government_procurement_cards,02-Nov-20,Adult Social Care Health and Wellbeing - Total,AMZNMktplace,Public Health,81.23,Printing Stationery&Gen Office,2020-21Oct_PC00334
Sandwell Metropolitan Borough Council,http://www.sandwell.gov.uk/info/200202/performance_and_spending/3233/government_procurement_cards,02-Nov-20,Adult Social Care Health and Wellbeing - Total,AMZNMKTPLACE AMAZON.CO,Public Health,81.23,Printing Stationery&Gen Office,2020-21Oct_PC00335
Sandwell Metropolitan Borough Council,http://www.sandwell.gov.uk/info/200202/performance_and_spending/3233/government_procurement_cards,02-Nov-20,Adult Social Care Health and Wellbeing - Total,Amazon.co.uk M72C10CA4,Total Adult Social Care,34.75,Printing Stationery&Gen Office,2020-21Oct_PC00336
Sandwell Metropolitan Borough Council,http://www.sandwell.gov.uk/info/200202/performance_and_spending/3233/government_procurement_cards,03-Nov-20,Housing & Communities,ARGOS LTD,Neighbourhoods,36.61,Equipment & Furniture,2020-21Oct_PC00337
Sandwell Metropolitan Borough Council,http://www.sandwell.gov.uk/info/200202/performance_and_spending/3233/government_procurement_cards,03-Nov-20,Housing & Communities,SECURITY INDUSTRY,Neighbourhoods,79.17,Subscriptions,2020-21Oct_PC00338
Sandwell Metropolitan Borough Council,http://www.sandwell.gov.uk/info/200202/performance_and_spending/3233/government_procurement_cards,03-Nov-20,Resources (Inc SIU),HAYMARKET MEDIA GROUP,Assistant Chief Executive (Excl SIU),175,Ind. Emp Exp-Staff Dev&Training,2020-21Oct_PC00339
Sandwell Metropolitan Borough Council,http://www.sandwell.gov.uk/info/200202/performance_and_spending/3233/government_procurement_cards,03-Nov-20,Housing & Communities,AQUAID WATERCOOLERS,Neighbourhoods,18.75,Catering Provisions,2020-21Oct_PC00340
Sandwell Metropolitan Borough Council,http://www.sandwell.gov.uk/info/200202/performance_and_spending/3233/government_procurement_cards,04-Nov-20,Adult Social Care Health and Wellbeing - Total,OFFICE DEPOT UK,Total Adult Social Care,10.59,Printing Stationery&Gen Office,2020-21Nov_PC00001
Sandwell Metropolitan Borough Council,http://www.sandwell.gov.uk/info/200202/performance_and_spending/3233/government_procurement_cards,04-Nov-20,Total Housing Revenue Account,AMZNMktplace,Total Housing Revenue Account,79.17,Printing Stationery&Gen Office,2020-21Nov_PC00002
Sandwell Metropolitan Borough Council,http://www.sandwell.gov.uk/info/200202/performance_and_spending/3233/government_procurement_cards,04-Nov-20,Housing & Communities,AMZNMKTPLACE AMAZON.CO,Neighbourhoods,23.32,Equipment & Furniture,2020-21Nov_PC00003
Sandwell Metropolitan Borough Council,http://www.sandwell.gov.uk/info/200202/performance_and_spending/3233/government_procurement_cards,04-Nov-20,Housing & Communities,Amazon.co.uk M795U84P4,Neighbourhoods,109.97,Materials & Consumables,2020-21Nov_PC00004
Sandwell Metropolitan Borough Council,http://www.sandwell.gov.uk/info/200202/performance_and_spending/3233/government_procurement_cards,04-Nov-20,Adult Social Care Health and Wellbeing - Total,AMZNMKTPLACE AMAZON.CO,Public Health,82.49,Printing Stationery&Gen Office,2020-21Nov_PC00005
Sandwell Metropolitan Borough Council,http://www.sandwell.gov.uk/info/200202/performance_and_spending/3233/government_procurement_cards,04-Nov-20,Housing & Communities,RUTLAND SHEDS & FENCIN,Neighbourhoods,76.37,Materials & Consumables,2020-21Nov_PC00006
Sandwell Metropolitan Borough Council,http://www.sandwell.gov.uk/info/200202/performance_and_spending/3233/government_procurement_cards,04-Nov-20,Adult Social Care Health and Wellbeing - Total,PAYPAL  VALUEPRODUC,Total Adult Social Care,129.5,Materials & Consumables,2020-21Nov_PC00007
Sandwell Metropolitan Borough Council,http://www.sandwell.gov.uk/info/200202/performance_and_spending/3233/government_procurement_cards,04-Nov-20,Housing & Communities,Great Barr Sawmills Lt,Neighbourhoods,56,Materials & Consumables,2020-21Nov_PC00008
Sandwell Metropolitan Borough Council,http://www.sandwell.gov.uk/info/200202/performance_and_spending/3233/government_procurement_cards,04-Nov-20,Housing & Communities,TOOLSTATION LTD,Neighbourhoods,27.59,Equipment & Furniture,2020-21Nov_PC00009
Sandwell Metropolitan Borough Council,http://www.sandwell.gov.uk/info/200202/performance_and_spending/3233/government_procurement_cards,04-Nov-20,Housing & Communities,AMZNMKTPLACE AMAZON.CO,Neighbourhoods,9.99,Equipment & Furniture,2020-21Nov_PC00010
Sandwell Metropolitan Borough Council,http://www.sandwell.gov.uk/info/200202/performance_and_spending/3233/government_procurement_cards,04-Nov-20,Total Housing Revenue Account,Waterplus Select LTD,Total Housing Revenue Account,278.22,Water Services,2020-21Nov_PC00011
Sandwell Metropolitan Borough Council,http://www.sandwell.gov.uk/info/200202/performance_and_spending/3233/government_procurement_cards,04-Nov-20,Housing & Communities,AMZNWarranty,Neighbourhoods,2.99,Telephones,2020-21Nov_PC00012
Sandwell Metropolitan Borough Council,http://www.sandwell.gov.uk/info/200202/performance_and_spending/3233/government_procurement_cards,04-Nov-20,Total Housing Revenue Account,AMZNMktplace,Total Housing Revenue Account,20.82,Protective Clothing&Uniforms,2020-21Nov_PC00013
Sandwell Metropolitan Borough Council,http://www.sandwell.gov.uk/info/200202/performance_and_spending/3233/government_procurement_cards,05-Nov-20,Resources (Inc SIU),OFFICE DEPOT UK,Assistant Chief Executive (Excl SIU),30.42,Printing Stationery&Gen Office,2020-21Nov_PC00014
Sandwell Metropolitan Borough Council,http://www.sandwell.gov.uk/info/200202/performance_and_spending/3233/government_procurement_cards,05-Nov-20,Resources (Inc SIU),Amazon Prime,Assistant Chief Executive (Excl SIU),-6.66,Subscriptions,2020-21Nov_PC00015
Sandwell Metropolitan Borough Council,http://www.sandwell.gov.uk/info/200202/performance_and_spending/3233/government_procurement_cards,05-Nov-20,Housing & Communities,AMZ Amazon.co.uk,Neighbourhoods,-14.96,Materials & Consumables,2020-21Nov_PC00016
Sandwell Metropolitan Borough Council,http://www.sandwell.gov.uk/info/200202/performance_and_spending/3233/government_procurement_cards,05-Nov-20,Resources (Inc SIU),WWW.ICO.ORG.UK,Assistant Chief Executive (Excl SIU),33.33,Professional Services External,2020-21Nov_PC00017
Sandwell Metropolitan Borough Council,http://www.sandwell.gov.uk/info/200202/performance_and_spending/3233/government_procurement_cards,05-Nov-20,Childrens Services,MEDISUPPLIES LTD,Childrens Services,55.5,Hygiene Services,2020-21Nov_PC00018
Sandwell Metropolitan Borough Council,http://www.sandwell.gov.uk/info/200202/performance_and_spending/3233/government_procurement_cards,05-Nov-20,Housing & Communities,DVSA,Neighbourhoods,1025,Licences&Test Fees,2020-21Nov_PC00019
Sandwell Metropolitan Borough Council,http://www.sandwell.gov.uk/info/200202/performance_and_spending/3233/government_procurement_cards,05-Nov-20,Adult Social Care Health and Wellbeing - Total,OFFICE DEPOT UK,Total Adult Social Care,36.06,Printing Stationery&Gen Office,2020-21Nov_PC00020
Sandwell Metropolitan Borough Council,http://www.sandwell.gov.uk/info/200202/performance_and_spending/3233/government_procurement_cards,05-Nov-20,Housing & Communities,AMZ Amazon.co.uk,Neighbourhoods,-14.96,Materials & Consumables,2020-21Nov_PC00021
Sandwell Metropolitan Borough Council,http://www.sandwell.gov.uk/info/200202/performance_and_spending/3233/government_procurement_cards,06-Nov-20,Regeneration & Growth,MISL LTD,Regeneration And The Economy,1300,Printing Stationery&Gen Office,2020-21Nov_PC00022
Sandwell Metropolitan Borough Council,http://www.sandwell.gov.uk/info/200202/performance_and_spending/3233/government_procurement_cards,06-Nov-20,Housing & Communities,amazon.co.uk M759O4N24,Neighbourhoods,17.21,Materials & Consumables,2020-21Nov_PC00023
Sandwell Metropolitan Borough Council,http://www.sandwell.gov.uk/info/200202/performance_and_spending/3233/government_procurement_cards,06-Nov-20,Adult Social Care Health and Wellbeing - Total,AMZNMktplace,Total Adult Social Care,14.16,Equipment & Furniture,2020-21Nov_PC00024
Sandwell Metropolitan Borough Council,http://www.sandwell.gov.uk/info/200202/performance_and_spending/3233/government_procurement_cards,06-Nov-20,Total Housing Revenue Account,AMZNMktplace,Total Housing Revenue Account,6.66,Printing Stationery&Gen Office,2020-21Nov_PC00025
Sandwell Metropolitan Borough Council,http://www.sandwell.gov.uk/info/200202/performance_and_spending/3233/government_procurement_cards,06-Nov-20,Housing & Communities,SCREWFIX DIRECT,Neighbourhoods,28.25,Grounds Maint&Improvements,2020-21Nov_PC00026
Sandwell Metropolitan Borough Council,http://www.sandwell.gov.uk/info/200202/performance_and_spending/3233/government_procurement_cards,06-Nov-20,Housing & Communities,SCREWFIX DIRECT,Neighbourhoods,8.32,Grounds Maint&Improvements,2020-21Nov_PC00027
Sandwell Metropolitan Borough Council,http://www.sandwell.gov.uk/info/200202/performance_and_spending/3233/government_procurement_cards,06-Nov-20,Housing & Communities,POST OFFICE COUNTER,Neighbourhoods,158.33,Subscriptions,2020-21Nov_PC00028
Sandwell Metropolitan Borough Council,http://www.sandwell.gov.uk/info/200202/performance_and_spending/3233/government_procurement_cards,06-Nov-20,Adult Social Care Health and Wellbeing - Total,AMZNMktplace,Total Adult Social Care,11.3,Printing Stationery&Gen Office,2020-21Nov_PC00029
Sandwell Metropolitan Borough Council,http://www.sandwell.gov.uk/info/200202/performance_and_spending/3233/government_procurement_cards,06-Nov-20,Housing & Communities,AMZNMKTPLACE AMAZON.CO,Neighbourhoods,9.17,Materials & Consumables,2020-21Nov_PC00030
Sandwell Metropolitan Borough Council,http://www.sandwell.gov.uk/info/200202/performance_and_spending/3233/government_procurement_cards,06-Nov-20,Housing & Communities,AMZNMktplace,Neighbourhoods,10.99,Materials & Consumables,2020-21Nov_PC00031
Sandwell Metropolitan Borough Council,http://www.sandwell.gov.uk/info/200202/performance_and_spending/3233/government_procurement_cards,09-Nov-20,Housing & Communities,AMZNMktplace,Neighbourhoods,24.99,Printing Stationery&Gen Office,2020-21Nov_PC00032
Sandwell Metropolitan Borough Council,http://www.sandwell.gov.uk/info/200202/performance_and_spending/3233/government_procurement_cards,09-Nov-20,Housing & Communities,WWW.TOOLSTATION.COM,Neighbourhoods,15.1,Equipment & Furniture,2020-21Nov_PC00033
Sandwell Metropolitan Borough Council,http://www.sandwell.gov.uk/info/200202/performance_and_spending/3233/government_procurement_cards,09-Nov-20,Housing & Communities,Great Barr Sawmills Lt,Neighbourhoods,35,Materials & Consumables,2020-21Nov_PC00034
Sandwell Metropolitan Borough Council,http://www.sandwell.gov.uk/info/200202/performance_and_spending/3233/government_procurement_cards,09-Nov-20,Total Housing Revenue Account,Staffordshire Builders,Total Housing Revenue Account,8.94,Materials & Consumables,2020-21Nov_PC00035
Sandwell Metropolitan Borough Council,http://www.sandwell.gov.uk/info/200202/performance_and_spending/3233/government_procurement_cards,09-Nov-20,Regeneration & Growth,Amazon.co.uk M78QR43J4,Regeneration And The Economy,16.65,Equipment & Furniture,2020-21Nov_PC00036
Sandwell Metropolitan Borough Council,http://www.sandwell.gov.uk/info/200202/performance_and_spending/3233/government_procurement_cards,09-Nov-20,Adult Social Care Health and Wellbeing - Total,AMZNMktplace,Total Adult Social Care,10.82,Equipment & Furniture,2020-21Nov_PC00037
Sandwell Metropolitan Borough Council,http://www.sandwell.gov.uk/info/200202/performance_and_spending/3233/government_procurement_cards,09-Nov-20,Housing & Communities,AMZNMktplace,Neighbourhoods,43.62,Materials & Consumables,2020-21Nov_PC00038
Sandwell Metropolitan Borough Council,http://www.sandwell.gov.uk/info/200202/performance_and_spending/3233/government_procurement_cards,09-Nov-20,Total Housing Revenue Account,Amazon.co.uk M70J883Q4,Total Housing Revenue Account,64.99,Employee Expenses,2020-21Nov_PC00039
Sandwell Metropolitan Borough Council,http://www.sandwell.gov.uk/info/200202/performance_and_spending/3233/government_procurement_cards,09-Nov-20,Total Housing Revenue Account,Amazon.co.uk M762X4354,Total Housing Revenue Account,64.95,Employee Expenses,2020-21Nov_PC00040
Sandwell Metropolitan Borough Council,http://www.sandwell.gov.uk/info/200202/performance_and_spending/3233/government_procurement_cards,09-Nov-20,Adult Social Care Health and Wellbeing - Total,RICARDO-AEA LIMITE,Total Adult Social Care,60,Printing Stationery&Gen Office,2020-21Nov_PC00041
Sandwell Metropolitan Borough Council,http://www.sandwell.gov.uk/info/200202/performance_and_spending/3233/government_procurement_cards,09-Nov-20,Housing & Communities,AMZNMktplace,Neighbourhoods,29.97,Materials & Consumables,2020-21Nov_PC00042
Sandwell Metropolitan Borough Council,http://www.sandwell.gov.uk/info/200202/performance_and_spending/3233/government_procurement_cards,09-Nov-20,Childrens Services,Amazon.co.uk M756L6T04,Childrens Services,18.66,Telephones,2020-21Nov_PC00043
Sandwell Metropolitan Borough Council,http://www.sandwell.gov.uk/info/200202/performance_and_spending/3233/government_procurement_cards,09-Nov-20,Adult Social Care Health and Wellbeing - Total,AMZNMKTPLACE AMAZON.CO,Total Adult Social Care,24.66,ICT,2020-21Nov_PC00044
Sandwell Metropolitan Borough Council,http://www.sandwell.gov.uk/info/200202/performance_and_spending/3233/government_procurement_cards,09-Nov-20,Adult Social Care Health and Wellbeing - Total,AMZNMKTPLACE AMAZON.CO,Total Adult Social Care,4.99,ICT,2020-21Nov_PC00045
Sandwell Metropolitan Borough Council,http://www.sandwell.gov.uk/info/200202/performance_and_spending/3233/government_procurement_cards,09-Nov-20,Childrens Services,Amazon.co.uk M79R25AU4,Childrens Services,18.66,Telephones,2020-21Nov_PC00046
Sandwell Metropolitan Borough Council,http://www.sandwell.gov.uk/info/200202/performance_and_spending/3233/government_procurement_cards,09-Nov-20,Adult Social Care Health and Wellbeing - Total,AMZNMktplace,Total Adult Social Care,149.52,Equipment & Furniture,2020-21Nov_PC00047
Sandwell Metropolitan Borough Council,http://www.sandwell.gov.uk/info/200202/performance_and_spending/3233/government_procurement_cards,09-Nov-20,Childrens Services,Amazon.co.uk M70GC7EB4,Childrens Services,18.66,Telephones,2020-21Nov_PC00048
Sandwell Metropolitan Borough Council,http://www.sandwell.gov.uk/info/200202/performance_and_spending/3233/government_procurement_cards,09-Nov-20,Adult Social Care Health and Wellbeing - Total,AMZNMktplace,Total Adult Social Care,28.73,Printing Stationery&Gen Office,2020-21Nov_PC00049
Sandwell Metropolitan Borough Council,http://www.sandwell.gov.uk/info/200202/performance_and_spending/3233/government_procurement_cards,09-Nov-20,Resources (Inc SIU),Amazon.co.uk M74TH2A74,Assistant Chief Executive (Excl SIU),10.47,Printing Stationery&Gen Office,2020-21Nov_PC00050
Sandwell Metropolitan Borough Council,http://www.sandwell.gov.uk/info/200202/performance_and_spending/3233/government_procurement_cards,09-Nov-20,Childrens Services,Amazon.co.uk M773B0AC4,Childrens Services,18.66,Telephones,2020-21Nov_PC00051
Sandwell Metropolitan Borough Council,http://www.sandwell.gov.uk/info/200202/performance_and_spending/3233/government_procurement_cards,09-Nov-20,Childrens Services,Amazon.co.uk M71ZH4EY4,Childrens Services,18.66,Telephones,2020-21Nov_PC00052
Sandwell Metropolitan Borough Council,http://www.sandwell.gov.uk/info/200202/performance_and_spending/3233/government_procurement_cards,09-Nov-20,Housing & Communities,AMZNMktplace,Neighbourhoods,6.66,Materials & Consumables,2020-21Nov_PC00053
Sandwell Metropolitan Borough Council,http://www.sandwell.gov.uk/info/200202/performance_and_spending/3233/government_procurement_cards,09-Nov-20,Regeneration & Growth,AMZNMktplace,Regeneration And The Economy,24.99,ICT,2020-21Nov_PC00054
Sandwell Metropolitan Borough Council,http://www.sandwell.gov.uk/info/200202/performance_and_spending/3233/government_procurement_cards,10-Nov-20,Total Housing Revenue Account,OFFICE DEPOT UK,Total Housing Revenue Account,72.45,Printing Stationery&Gen Office,2020-21Nov_PC00055
Sandwell Metropolitan Borough Council,http://www.sandwell.gov.uk/info/200202/performance_and_spending/3233/government_procurement_cards,10-Nov-20,Total Housing Revenue Account,OFFICE DEPOT UK,Total Housing Revenue Account,12.87,Printing Stationery&Gen Office,2020-21Nov_PC00056
Sandwell Metropolitan Borough Council,http://www.sandwell.gov.uk/info/200202/performance_and_spending/3233/government_procurement_cards,10-Nov-20,Housing & Communities,PAYPAL  DAVIDBLACKM EB,Neighbourhoods,13,Materials & Consumables,2020-21Nov_PC00057
Sandwell Metropolitan Borough Council,http://www.sandwell.gov.uk/info/200202/performance_and_spending/3233/government_procurement_cards,10-Nov-20,Total Housing Revenue Account,AMZNMKTPLACE AMAZON.CO,Total Housing Revenue Account,23.99,Employee Expenses,2020-21Nov_PC00058
Sandwell Metropolitan Borough Council,http://www.sandwell.gov.uk/info/200202/performance_and_spending/3233/government_procurement_cards,10-Nov-20,Total Housing Revenue Account,AMZNMKTPLACE AMAZON.CO,Total Housing Revenue Account,23.99,Employee Expenses,2020-21Nov_PC00059
Sandwell Metropolitan Borough Council,http://www.sandwell.gov.uk/info/200202/performance_and_spending/3233/government_procurement_cards,10-Nov-20,Total Housing Revenue Account,AMZNMKTPLACE AMAZON.CO,Total Housing Revenue Account,23.99,Employee Expenses,2020-21Nov_PC00060
Sandwell Metropolitan Borough Council,http://www.sandwell.gov.uk/info/200202/performance_and_spending/3233/government_procurement_cards,10-Nov-20,Total Housing Revenue Account,AMZNMKTPLACE AMAZON.CO,Total Housing Revenue Account,13.97,Telephones,2020-21Nov_PC00061
Sandwell Metropolitan Borough Council,http://www.sandwell.gov.uk/info/200202/performance_and_spending/3233/government_procurement_cards,10-Nov-20,Childrens Services,MEDISUPPLIES LTD,Childrens Services,55.5,Hygiene Services,2020-21Nov_PC00062
Sandwell Metropolitan Borough Council,http://www.sandwell.gov.uk/info/200202/performance_and_spending/3233/government_procurement_cards,10-Nov-20,Childrens Services,MEDISUPPLIES LTD,Childrens Services,55.5,Hygiene Services,2020-21Nov_PC00063
Sandwell Metropolitan Borough Council,http://www.sandwell.gov.uk/info/200202/performance_and_spending/3233/government_procurement_cards,10-Nov-20,Resources (Inc SIU),Amazon.co.uk M782J00H4,Assistant Chief Executive (Excl SIU),24.99,Catering Equipment,2020-21Nov_PC00064
Sandwell Metropolitan Borough Council,http://www.sandwell.gov.uk/info/200202/performance_and_spending/3233/government_procurement_cards,10-Nov-20,Housing & Communities,SECURITY INDUSTRY,Neighbourhoods,158.33,Subscriptions,2020-21Nov_PC00065
Sandwell Metropolitan Borough Council,http://www.sandwell.gov.uk/info/200202/performance_and_spending/3233/government_procurement_cards,10-Nov-20,Childrens Services,AMZNMKTPLACE AMAZON.CO,Childrens Services,29.13,Printing Stationery&Gen Office,2020-21Nov_PC00066
Sandwell Metropolitan Borough Council,http://www.sandwell.gov.uk/info/200202/performance_and_spending/3233/government_procurement_cards,10-Nov-20,Childrens Services,MEDISUPPLIES LTD,Childrens Services,19.55,Printing Stationery&Gen Office,2020-21Nov_PC00067
Sandwell Metropolitan Borough Council,http://www.sandwell.gov.uk/info/200202/performance_and_spending/3233/government_procurement_cards,10-Nov-20,Childrens Services,CREST MEDICAL,Childrens Services,27.21,Printing Stationery&Gen Office,2020-21Nov_PC00068
Sandwell Metropolitan Borough Council,http://www.sandwell.gov.uk/info/200202/performance_and_spending/3233/government_procurement_cards,10-Nov-20,Adult Social Care Health and Wellbeing - Total,AMZNMKTPLACE AMAZON.CO,Total Adult Social Care,62.9,Materials & Consumables,2020-21Nov_PC00069
Sandwell Metropolitan Borough Council,http://www.sandwell.gov.uk/info/200202/performance_and_spending/3233/government_procurement_cards,10-Nov-20,Adult Social Care Health and Wellbeing - Total,Amazon.co.uk M71LD91D4,Total Adult Social Care,12.5,Materials & Consumables,2020-21Nov_PC00070
Sandwell Metropolitan Borough Council,http://www.sandwell.gov.uk/info/200202/performance_and_spending/3233/government_procurement_cards,10-Nov-20,Housing & Communities,AMZNMktplace,Neighbourhoods,12.49,Equipment & Furniture,2020-21Nov_PC00071
Sandwell Metropolitan Borough Council,http://www.sandwell.gov.uk/info/200202/performance_and_spending/3233/government_procurement_cards,10-Nov-20,Resources (Inc SIU),ROYAL MAIL ONLINE SHOP,Assistant Chief Executive (Excl SIU),63.33,Printing Stationery&Gen Office,2020-21Nov_PC00072
Sandwell Metropolitan Borough Council,http://www.sandwell.gov.uk/info/200202/performance_and_spending/3233/government_procurement_cards,10-Nov-20,Childrens Services,VISTAPRINT,Childrens Services,12.73,R& M - Building Maint&Imp.,2020-21Nov_PC00073
Sandwell Metropolitan Borough Council,http://www.sandwell.gov.uk/info/200202/performance_and_spending/3233/government_procurement_cards,10-Nov-20,Resources (Inc SIU),AMZNMktplace,Assistant Chief Executive (Excl SIU),56.57,Printing Stationery&Gen Office,2020-21Nov_PC00074
Sandwell Metropolitan Borough Council,http://www.sandwell.gov.uk/info/200202/performance_and_spending/3233/government_procurement_cards,10-Nov-20,Total Housing Revenue Account,Amazon.co.uk M73GC00Y4,Total Housing Revenue Account,64.89,Employee Expenses,2020-21Nov_PC00075
Sandwell Metropolitan Borough Council,http://www.sandwell.gov.uk/info/200202/performance_and_spending/3233/government_procurement_cards,10-Nov-20,Total Housing Revenue Account,Amazon.co.uk M754S5044,Total Housing Revenue Account,64.99,Employee Expenses,2020-21Nov_PC00076
Sandwell Metropolitan Borough Council,http://www.sandwell.gov.uk/info/200202/performance_and_spending/3233/government_procurement_cards,10-Nov-20,Total Housing Revenue Account,Amazon.co.uk M78A221H4,Total Housing Revenue Account,64.99,Employee Expenses,2020-21Nov_PC00077
Sandwell Metropolitan Borough Council,http://www.sandwell.gov.uk/info/200202/performance_and_spending/3233/government_procurement_cards,10-Nov-20,Resources (Inc SIU),Amazon.co.uk M76BO5GO4,Assistant Chief Executive (Excl SIU),22.5,Catering Equipment,2020-21Nov_PC00078
Sandwell Metropolitan Borough Council,http://www.sandwell.gov.uk/info/200202/performance_and_spending/3233/government_procurement_cards,10-Nov-20,Total Housing Revenue Account,AMZNMktplace,Total Housing Revenue Account,149.99,Employee Expenses,2020-21Nov_PC00079
Sandwell Metropolitan Borough Council,http://www.sandwell.gov.uk/info/200202/performance_and_spending/3233/government_procurement_cards,11-Nov-20,Housing & Communities,Amazon.co.uk M77PH9P34,Neighbourhoods,9.47,Equipment & Furniture,2020-21Nov_PC00080
Sandwell Metropolitan Borough Council,http://www.sandwell.gov.uk/info/200202/performance_and_spending/3233/government_procurement_cards,11-Nov-20,Resources (Inc SIU),AMZNMktplace,Assistant Chief Executive (Excl SIU),71.64,Printing Stationery&Gen Office,2020-21Nov_PC00081
Sandwell Metropolitan Borough Council,http://www.sandwell.gov.uk/info/200202/performance_and_spending/3233/government_procurement_cards,11-Nov-20,Resources (Inc SIU),AMZNMktplace,Assistant Chief Executive (Excl SIU),54.14,Printing Stationery&Gen Office,2020-21Nov_PC00082
Sandwell Metropolitan Borough Council,http://www.sandwell.gov.uk/info/200202/performance_and_spending/3233/government_procurement_cards,11-Nov-20,Adult Social Care Health and Wellbeing - Total,ARGOS LTD,Total Adult Social Care,20.82,Telephones,2020-21Nov_PC00083
Sandwell Metropolitan Borough Council,http://www.sandwell.gov.uk/info/200202/performance_and_spending/3233/government_procurement_cards,11-Nov-20,Childrens Services,AMZNMktplace,Childrens Services,28.89,Equipment & Furniture,2020-21Nov_PC00084
Sandwell Metropolitan Borough Council,http://www.sandwell.gov.uk/info/200202/performance_and_spending/3233/government_procurement_cards,11-Nov-20,Adult Social Care Health and Wellbeing - Total,LIDL GB WEST BROMWICH,Total Adult Social Care,29.75,Materials & Consumables,2020-21Nov_PC00085
Sandwell Metropolitan Borough Council,http://www.sandwell.gov.uk/info/200202/performance_and_spending/3233/government_procurement_cards,11-Nov-20,Housing & Communities,Amazon.co.uk M70ON8GO4,Neighbourhoods,6.45,Printing Stationery&Gen Office,2020-21Nov_PC00086
Sandwell Metropolitan Borough Council,http://www.sandwell.gov.uk/info/200202/performance_and_spending/3233/government_procurement_cards,11-Nov-20,Adult Social Care Health and Wellbeing - Total,BIRMINGHAM TELECOMMUNI,Total Adult Social Care,153.95,Equipment & Furniture,2020-21Nov_PC00087
Sandwell Metropolitan Borough Council,http://www.sandwell.gov.uk/info/200202/performance_and_spending/3233/government_procurement_cards,11-Nov-20,Adult Social Care Health and Wellbeing - Total,AMZNMKTPLACE AMAZON.CO,Total Adult Social Care,5.82,Printing Stationery&Gen Office,2020-21Nov_PC00088
Sandwell Metropolitan Borough Council,http://www.sandwell.gov.uk/info/200202/performance_and_spending/3233/government_procurement_cards,11-Nov-20,Adult Social Care Health and Wellbeing - Total,TIMPSON LTD,Total Adult Social Care,8.33,Materials & Consumables,2020-21Nov_PC00089
Sandwell Metropolitan Borough Council,http://www.sandwell.gov.uk/info/200202/performance_and_spending/3233/government_procurement_cards,11-Nov-20,Total Housing Revenue Account,AMZNMKTPLACE AMAZON.CO,Total Housing Revenue Account,38.99,Ind. Emp Exp-Advertising,2020-21Nov_PC00090
Sandwell Metropolitan Borough Council,http://www.sandwell.gov.uk/info/200202/performance_and_spending/3233/government_procurement_cards,11-Nov-20,Total Housing Revenue Account,SAFE.CO.UK,Total Housing Revenue Account,176.77,Ind. Emp Exp-Relocation,2020-21Nov_PC00091
Sandwell Metropolitan Borough Council,http://www.sandwell.gov.uk/info/200202/performance_and_spending/3233/government_procurement_cards,11-Nov-20,Housing & Communities,AMZNMktplace,Neighbourhoods,19.97,Equipment & Furniture,2020-21Nov_PC00092
Sandwell Metropolitan Borough Council,http://www.sandwell.gov.uk/info/200202/performance_and_spending/3233/government_procurement_cards,12-Nov-20,Individual School Budgets With Inclusion,OFFICE DEPOT UK,Individual School Budgets With Inclusion,3.6,Printing Stationery&Gen Office,2020-21Nov_PC00093
Sandwell Metropolitan Borough Council,http://www.sandwell.gov.uk/info/200202/performance_and_spending/3233/government_procurement_cards,12-Nov-20,Childrens Services,AMZNMKTPLACE AMAZON.CO,Childrens Services,83.37,Protective Clothing&Uniforms,2020-21Nov_PC00094
Sandwell Metropolitan Borough Council,http://www.sandwell.gov.uk/info/200202/performance_and_spending/3233/government_procurement_cards,12-Nov-20,Adult Social Care Health and Wellbeing - Total,OFFICE DEPOT UK,Total Adult Social Care,148.94,Printing Stationery&Gen Office,2020-21Nov_PC00095
Sandwell Metropolitan Borough Council,http://www.sandwell.gov.uk/info/200202/performance_and_spending/3233/government_procurement_cards,12-Nov-20,Housing & Communities,AMZNMKTPLACE AMAZON.CO,Neighbourhoods,200.67,Materials & Consumables,2020-21Nov_PC00096
Sandwell Metropolitan Borough Council,http://www.sandwell.gov.uk/info/200202/performance_and_spending/3233/government_procurement_cards,12-Nov-20,Adult Social Care Health and Wellbeing - Total,OFFICE DEPOT UK,Total Adult Social Care,14.72,Printing Stationery&Gen Office,2020-21Nov_PC00097
Sandwell Metropolitan Borough Council,http://www.sandwell.gov.uk/info/200202/performance_and_spending/3233/government_procurement_cards,12-Nov-20,Housing & Communities,AMZ liushan-UKstore,Neighbourhoods,-6.66,Materials & Consumables,2020-21Nov_PC00098
Sandwell Metropolitan Borough Council,http://www.sandwell.gov.uk/info/200202/performance_and_spending/3233/government_procurement_cards,12-Nov-20,Housing & Communities,EB  ONLINE BID-WRITING,Neighbourhoods,65.62,Ind. Emp Exp-Staff Dev&Training,2020-21Nov_PC00099
Sandwell Metropolitan Borough Council,http://www.sandwell.gov.uk/info/200202/performance_and_spending/3233/government_procurement_cards,12-Nov-20,Total Housing Revenue Account,Flextronics,Total Housing Revenue Account,40,ICT,2020-21Nov_PC00100
Sandwell Metropolitan Borough Council,http://www.sandwell.gov.uk/info/200202/performance_and_spending/3233/government_procurement_cards,12-Nov-20,Adult Social Care Health and Wellbeing - Total,AMZNMktplace,Total Adult Social Care,6.25,Printing Stationery&Gen Office,2020-21Nov_PC00101
Sandwell Metropolitan Borough Council,http://www.sandwell.gov.uk/info/200202/performance_and_spending/3233/government_procurement_cards,12-Nov-20,Total Housing Revenue Account,Amazon.co.uk M70BW1XN4,Total Housing Revenue Account,128.7,Telephones,2020-21Nov_PC00102
Sandwell Metropolitan Borough Council,http://www.sandwell.gov.uk/info/200202/performance_and_spending/3233/government_procurement_cards,12-Nov-20,Childrens Services,Amazon.co.uk M73SV5XH4,Childrens Services,15.27,Equipment & Furniture,2020-21Nov_PC00103
Sandwell Metropolitan Borough Council,http://www.sandwell.gov.uk/info/200202/performance_and_spending/3233/government_procurement_cards,12-Nov-20,Childrens Services,Amazon.co.uk M70QZ0X94,Childrens Services,15.27,Equipment & Furniture,2020-21Nov_PC00104
Sandwell Metropolitan Borough Council,http://www.sandwell.gov.uk/info/200202/performance_and_spending/3233/government_procurement_cards,12-Nov-20,Childrens Services,AMZNMktplace,Childrens Services,44.62,Equipment & Furniture,2020-21Nov_PC00105
Sandwell Metropolitan Borough Council,http://www.sandwell.gov.uk/info/200202/performance_and_spending/3233/government_procurement_cards,12-Nov-20,Housing & Communities,BIN SHOP,Neighbourhoods,55,Equipment & Furniture,2020-21Nov_PC00106
Sandwell Metropolitan Borough Council,http://www.sandwell.gov.uk/info/200202/performance_and_spending/3233/government_procurement_cards,12-Nov-20,Total Housing Revenue Account,CORGI,Total Housing Revenue Account,695,Professional Services External,2020-21Nov_PC00107
Sandwell Metropolitan Borough Council,http://www.sandwell.gov.uk/info/200202/performance_and_spending/3233/government_procurement_cards,12-Nov-20,Childrens Services,Amazon.co.uk M76V19X54,Childrens Services,28.3,ICT,2020-21Nov_PC00108
Sandwell Metropolitan Borough Council,http://www.sandwell.gov.uk/info/200202/performance_and_spending/3233/government_procurement_cards,12-Nov-20,Housing & Communities,AMZNMktplace,Neighbourhoods,6.66,Materials & Consumables,2020-21Nov_PC00109
Sandwell Metropolitan Borough Council,http://www.sandwell.gov.uk/info/200202/performance_and_spending/3233/government_procurement_cards,12-Nov-20,Adult Social Care Health and Wellbeing - Total,AMZNMktplace,Total Adult Social Care,178.78,Ind. Emp Exp-Emp. Welfare,2020-21Nov_PC00110
Sandwell Metropolitan Borough Council,http://www.sandwell.gov.uk/info/200202/performance_and_spending/3233/government_procurement_cards,12-Nov-20,Total Housing Revenue Account,Amazon.co.uk M75XW4X14,Total Housing Revenue Account,64.89,Employee Expenses,2020-21Nov_PC00111
Sandwell Metropolitan Borough Council,http://www.sandwell.gov.uk/info/200202/performance_and_spending/3233/government_procurement_cards,12-Nov-20,Total Housing Revenue Account,AMZNMktplace,Total Housing Revenue Account,59.99,Employee Expenses,2020-21Nov_PC00112
Sandwell Metropolitan Borough Council,http://www.sandwell.gov.uk/info/200202/performance_and_spending/3233/government_procurement_cards,12-Nov-20,Total Housing Revenue Account,AMZNMktplace,Total Housing Revenue Account,62.95,Ind. Emp Exp-Emp. Welfare,2020-21Nov_PC00113
Sandwell Metropolitan Borough Council,http://www.sandwell.gov.uk/info/200202/performance_and_spending/3233/government_procurement_cards,12-Nov-20,Adult Social Care Health and Wellbeing - Total,AMZNMktplace,Total Adult Social Care,61.96,Printing Stationery&Gen Office,2020-21Nov_PC00114
Sandwell Metropolitan Borough Council,http://www.sandwell.gov.uk/info/200202/performance_and_spending/3233/government_procurement_cards,12-Nov-20,Housing & Communities,AMZNMktplace,Neighbourhoods,79.97,Equipment & Furniture,2020-21Nov_PC00115
Sandwell Metropolitan Borough Council,http://www.sandwell.gov.uk/info/200202/performance_and_spending/3233/government_procurement_cards,12-Nov-20,Adult Social Care Health and Wellbeing - Total,Amazon.co.uk M70ER65M4,Total Adult Social Care,13.68,Ind. Emp Exp-Staff Dev&Training,2020-21Nov_PC00116
Sandwell Metropolitan Borough Council,http://www.sandwell.gov.uk/info/200202/performance_and_spending/3233/government_procurement_cards,13-Nov-20,Housing & Communities,AMZNMKTPLACE AMAZON.CO,Neighbourhoods,64.97,Materials & Consumables,2020-21Nov_PC00117
Sandwell Metropolitan Borough Council,http://www.sandwell.gov.uk/info/200202/performance_and_spending/3233/government_procurement_cards,13-Nov-20,Childrens Services,TVLICENSING.CO.UK,Childrens Services,157.5,Licences,2020-21Nov_PC00118
Sandwell Metropolitan Borough Council,http://www.sandwell.gov.uk/info/200202/performance_and_spending/3233/government_procurement_cards,13-Nov-20,Total Housing Revenue Account,OFFICE DEPOT UK,Total Housing Revenue Account,130,Printing Stationery&Gen Office,2020-21Nov_PC00119
Sandwell Metropolitan Borough Council,http://www.sandwell.gov.uk/info/200202/performance_and_spending/3233/government_procurement_cards,13-Nov-20,Housing & Communities,OFFICE DEPOT UK,Neighbourhoods,3.53,Printing Stationery&Gen Office,2020-21Nov_PC00120
Sandwell Metropolitan Borough Council,http://www.sandwell.gov.uk/info/200202/performance_and_spending/3233/government_procurement_cards,13-Nov-20,Housing & Communities,OFFICE DEPOT UK,Neighbourhoods,2.69,Printing Stationery&Gen Office,2020-21Nov_PC00121
Sandwell Metropolitan Borough Council,http://www.sandwell.gov.uk/info/200202/performance_and_spending/3233/government_procurement_cards,13-Nov-20,Adult Social Care Health and Wellbeing - Total,AMZ WONEW-EU,Total Adult Social Care,-149.52,Equipment & Furniture,2020-21Nov_PC00122
Sandwell Metropolitan Borough Council,http://www.sandwell.gov.uk/info/200202/performance_and_spending/3233/government_procurement_cards,13-Nov-20,Individual School Budgets With Inclusion,EB  HEALTHY MINDS TRAI,Individual School Budgets With Inclusion,41.67,Ind. Emp Exp-Staff Dev&Training,2020-21Nov_PC00123
Sandwell Metropolitan Borough Council,http://www.sandwell.gov.uk/info/200202/performance_and_spending/3233/government_procurement_cards,13-Nov-20,Housing & Communities,AMZNMktplace,Neighbourhoods,21.66,Equipment & Furniture,2020-21Nov_PC00124
Sandwell Metropolitan Borough Council,http://www.sandwell.gov.uk/info/200202/performance_and_spending/3233/government_procurement_cards,13-Nov-20,Adult Social Care Health and Wellbeing - Total,Adobe.com,Public Health,41.62,Advertising & Publicity,2020-21Nov_PC00125
Sandwell Metropolitan Borough Council,http://www.sandwell.gov.uk/info/200202/performance_and_spending/3233/government_procurement_cards,13-Nov-20,Housing & Communities,Amazon.co.uk M74PT6H74,Neighbourhoods,5.1,Printing Stationery&Gen Office,2020-21Nov_PC00126
Sandwell Metropolitan Borough Council,http://www.sandwell.gov.uk/info/200202/performance_and_spending/3233/government_procurement_cards,13-Nov-20,Adult Social Care Health and Wellbeing - Total,Amazon Prime M71KB25Z4,Total Adult Social Care,6.66,Printing Stationery&Gen Office,2020-21Nov_PC00127
Sandwell Metropolitan Borough Council,http://www.sandwell.gov.uk/info/200202/performance_and_spending/3233/government_procurement_cards,13-Nov-20,Adult Social Care Health and Wellbeing - Total,AMZNMKTPLACE AMAZON.CO,Total Adult Social Care,26.25,Ind. Emp Exp-Staff Dev&Training,2020-21Nov_PC00128
Sandwell Metropolitan Borough Council,http://www.sandwell.gov.uk/info/200202/performance_and_spending/3233/government_procurement_cards,13-Nov-20,Adult Social Care Health and Wellbeing - Total,AMZNMktplace,Total Adult Social Care,15.48,Printing Stationery&Gen Office,2020-21Nov_PC00129
Sandwell Metropolitan Borough Council,http://www.sandwell.gov.uk/info/200202/performance_and_spending/3233/government_procurement_cards,13-Nov-20,Housing & Communities,AMZNMktplace,Neighbourhoods,99.11,Materials & Consumables,2020-21Nov_PC00130
Sandwell Metropolitan Borough Council,http://www.sandwell.gov.uk/info/200202/performance_and_spending/3233/government_procurement_cards,13-Nov-20,Regeneration & Growth,WWW.KREATIVEBUNTING.CO,Regeneration And The Economy,155.7,Ind. Emp Exp-Advertising,2020-21Nov_PC00131
Sandwell Metropolitan Borough Council,http://www.sandwell.gov.uk/info/200202/performance_and_spending/3233/government_procurement_cards,13-Nov-20,Housing & Communities,AMZNMktplace,Neighbourhoods,124.93,Materials & Consumables,2020-21Nov_PC00132
Sandwell Metropolitan Borough Council,http://www.sandwell.gov.uk/info/200202/performance_and_spending/3233/government_procurement_cards,13-Nov-20,Housing & Communities,AMZNMktplace,Neighbourhoods,74.37,Materials & Consumables,2020-21Nov_PC00133
Sandwell Metropolitan Borough Council,http://www.sandwell.gov.uk/info/200202/performance_and_spending/3233/government_procurement_cards,13-Nov-20,Total Housing Revenue Account,CAPITA GAS,Total Housing Revenue Account,30,Professional Services External,2020-21Nov_PC00134
Sandwell Metropolitan Borough Council,http://www.sandwell.gov.uk/info/200202/performance_and_spending/3233/government_procurement_cards,13-Nov-20,Housing & Communities,ICONWALLSTICKERS.CO.UK,Neighbourhoods,94.8,Materials & Consumables,2020-21Nov_PC00135
Sandwell Metropolitan Borough Council,http://www.sandwell.gov.uk/info/200202/performance_and_spending/3233/government_procurement_cards,13-Nov-20,Childrens Services,Amazon.co.uk M78QK9HR4,Childrens Services,14.6,Equipment & Furniture,2020-21Nov_PC00136
Sandwell Metropolitan Borough Council,http://www.sandwell.gov.uk/info/200202/performance_and_spending/3233/government_procurement_cards,13-Nov-20,Adult Social Care Health and Wellbeing - Total,Amazon.co.uk M79B25HP4,Total Adult Social Care,65.29,Ind. Emp Exp-Staff Dev&Training,2020-21Nov_PC00137
Sandwell Metropolitan Borough Council,http://www.sandwell.gov.uk/info/200202/performance_and_spending/3233/government_procurement_cards,13-Nov-20,Individual School Budgets With Inclusion,AMZNMKTPLACE AMAZON.CO,Individual School Budgets With Inclusion,29.99,ICT,2020-21Nov_PC00138
Sandwell Metropolitan Borough Council,http://www.sandwell.gov.uk/info/200202/performance_and_spending/3233/government_procurement_cards,13-Nov-20,Adult Social Care Health and Wellbeing - Total,OFFICE DEPOT UK,Total Adult Social Care,50.49,Printing Stationery&Gen Office,2020-21Nov_PC00139
Sandwell Metropolitan Borough Council,http://www.sandwell.gov.uk/info/200202/performance_and_spending/3233/government_procurement_cards,13-Nov-20,Childrens Services,VIKING UK,Childrens Services,151.6,Protective Clothing&Uniforms,2020-21Nov_PC00140
Sandwell Metropolitan Borough Council,http://www.sandwell.gov.uk/info/200202/performance_and_spending/3233/government_procurement_cards,13-Nov-20,Individual School Budgets With Inclusion,POST OFFICE COUNTER,Individual School Budgets With Inclusion,29.6,"Postages, Carriage & Courier Services",2020-21Nov_PC00141
Sandwell Metropolitan Borough Council,http://www.sandwell.gov.uk/info/200202/performance_and_spending/3233/government_procurement_cards,13-Nov-20,Housing & Communities,AMZNMKTPLACE AMAZON.CO,Neighbourhoods,3.34,Materials & Consumables,2020-21Nov_PC00142
Sandwell Metropolitan Borough Council,http://www.sandwell.gov.uk/info/200202/performance_and_spending/3233/government_procurement_cards,16-Nov-20,Childrens Services,AMZNMKTPLACE AMAZON.CO,Childrens Services,9.15,Printing Stationery&Gen Office,2020-21Nov_PC00143
Sandwell Metropolitan Borough Council,http://www.sandwell.gov.uk/info/200202/performance_and_spending/3233/government_procurement_cards,16-Nov-20,Adult Social Care Health and Wellbeing - Total,AMZNMKTPLACE AMAZON.CO,Total Adult Social Care,144.94,Equipment & Furniture,2020-21Nov_PC00144
Sandwell Metropolitan Borough Council,http://www.sandwell.gov.uk/info/200202/performance_and_spending/3233/government_procurement_cards,16-Nov-20,Housing & Communities,HOLDENS BREWERYLTD,Neighbourhoods,-261.6,Catering Provisions,2020-21Nov_PC00145
Sandwell Metropolitan Borough Council,http://www.sandwell.gov.uk/info/200202/performance_and_spending/3233/government_procurement_cards,16-Nov-20,Housing & Communities,DRI WinLINE,Neighbourhoods,179.85,Equipment & Furniture,2020-21Nov_PC00146
Sandwell Metropolitan Borough Council,http://www.sandwell.gov.uk/info/200202/performance_and_spending/3233/government_procurement_cards,16-Nov-20,Adult Social Care Health and Wellbeing - Total,AMZNMktplace,Total Adult Social Care,30.82,ICT,2020-21Nov_PC00147
Sandwell Metropolitan Borough Council,http://www.sandwell.gov.uk/info/200202/performance_and_spending/3233/government_procurement_cards,16-Nov-20,Childrens Services,AMZNMktplace,Childrens Services,14.05,Equipment & Furniture,2020-21Nov_PC00148
Sandwell Metropolitan Borough Council,http://www.sandwell.gov.uk/info/200202/performance_and_spending/3233/government_procurement_cards,16-Nov-20,Childrens Services,AMZNMktplace,Childrens Services,39.16,Equipment & Furniture,2020-21Nov_PC00149
Sandwell Metropolitan Borough Council,http://www.sandwell.gov.uk/info/200202/performance_and_spending/3233/government_procurement_cards,16-Nov-20,Childrens Services,AMZNMktplace,Childrens Services,39.16,Equipment & Furniture,2020-21Nov_PC00150
Sandwell Metropolitan Borough Council,http://www.sandwell.gov.uk/info/200202/performance_and_spending/3233/government_procurement_cards,16-Nov-20,Housing & Communities,PAYPAL  GRAHAMWEBB1,Neighbourhoods,105.83,Materials & Consumables,2020-21Nov_PC00151
Sandwell Metropolitan Borough Council,http://www.sandwell.gov.uk/info/200202/performance_and_spending/3233/government_procurement_cards,16-Nov-20,Housing & Communities,PAYPAL  ETSY UK,Neighbourhoods,7.91,Materials & Consumables,2020-21Nov_PC00152
Sandwell Metropolitan Borough Council,http://www.sandwell.gov.uk/info/200202/performance_and_spending/3233/government_procurement_cards,16-Nov-20,Total Housing Revenue Account,Barriers Direct,Total Housing Revenue Account,59.85,Materials & Consumables,2020-21Nov_PC00153
Sandwell Metropolitan Borough Council,http://www.sandwell.gov.uk/info/200202/performance_and_spending/3233/government_procurement_cards,16-Nov-20,Total Housing Revenue Account,WWW.KANE.CO.UK,Total Housing Revenue Account,433.5,Equipment & Furniture,2020-21Nov_PC00154
Sandwell Metropolitan Borough Council,http://www.sandwell.gov.uk/info/200202/performance_and_spending/3233/government_procurement_cards,16-Nov-20,Adult Social Care Health and Wellbeing - Total,AMZNMktplace,Total Adult Social Care,3.32,Printing Stationery&Gen Office,2020-21Nov_PC00155
Sandwell Metropolitan Borough Council,http://www.sandwell.gov.uk/info/200202/performance_and_spending/3233/government_procurement_cards,16-Nov-20,Resources (Inc SIU),Amazon Prime M718O8Q64,Assistant Chief Executive (Excl SIU),6.66,Subscriptions,2020-21Nov_PC00156
Sandwell Metropolitan Borough Council,http://www.sandwell.gov.uk/info/200202/performance_and_spending/3233/government_procurement_cards,16-Nov-20,Adult Social Care Health and Wellbeing - Total,AMZNMktplace,Public Health,27.49,ICT,2020-21Nov_PC00157
Sandwell Metropolitan Borough Council,http://www.sandwell.gov.uk/info/200202/performance_and_spending/3233/government_procurement_cards,16-Nov-20,Housing & Communities,AMZNMktplace,Neighbourhoods,14.14,Equipment & Furniture,2020-21Nov_PC00158
Sandwell Metropolitan Borough Council,http://www.sandwell.gov.uk/info/200202/performance_and_spending/3233/government_procurement_cards,16-Nov-20,Adult Social Care Health and Wellbeing - Total,AMZNMktplace,Total Adult Social Care,83.7,Equipment & Furniture,2020-21Nov_PC00159
Sandwell Metropolitan Borough Council,http://www.sandwell.gov.uk/info/200202/performance_and_spending/3233/government_procurement_cards,17-Nov-20,Resources (Inc SIU),OFFICE DEPOT UK,Assistant Chief Executive (Excl SIU),28.18,Printing Stationery&Gen Office,2020-21Nov_PC00160
Sandwell Metropolitan Borough Council,http://www.sandwell.gov.uk/info/200202/performance_and_spending/3233/government_procurement_cards,17-Nov-20,Adult Social Care Health and Wellbeing - Total,OFFICE DEPOT UK,Total Adult Social Care,16.3,Printing Stationery&Gen Office,2020-21Nov_PC00161
Sandwell Metropolitan Borough Council,http://www.sandwell.gov.uk/info/200202/performance_and_spending/3233/government_procurement_cards,17-Nov-20,Adult Social Care Health and Wellbeing - Total,OFFICE DEPOT UK,Public Health,79.09,Printing Stationery&Gen Office,2020-21Nov_PC00162
Sandwell Metropolitan Borough Council,http://www.sandwell.gov.uk/info/200202/performance_and_spending/3233/government_procurement_cards,17-Nov-20,Total Housing Revenue Account,OFFICE DEPOT UK,Total Housing Revenue Account,14.51,Printing Stationery&Gen Office,2020-21Nov_PC00163
Sandwell Metropolitan Borough Council,http://www.sandwell.gov.uk/info/200202/performance_and_spending/3233/government_procurement_cards,17-Nov-20,Adult Social Care Health and Wellbeing - Total,Amazon.co.uk M720C4S64,Total Adult Social Care,105.83,Telephones,2020-21Nov_PC00164
Sandwell Metropolitan Borough Council,http://www.sandwell.gov.uk/info/200202/performance_and_spending/3233/government_procurement_cards,17-Nov-20,Adult Social Care Health and Wellbeing - Total,Amazon.co.uk M760G8SF4,Total Adult Social Care,105.83,Telephones,2020-21Nov_PC00165
Sandwell Metropolitan Borough Council,http://www.sandwell.gov.uk/info/200202/performance_and_spending/3233/government_procurement_cards,17-Nov-20,Adult Social Care Health and Wellbeing - Total,AMZNMktplace,Total Adult Social Care,32.47,Protective Clothing&Uniforms,2020-21Nov_PC00166
Sandwell Metropolitan Borough Council,http://www.sandwell.gov.uk/info/200202/performance_and_spending/3233/government_procurement_cards,17-Nov-20,Childrens Services,VODAFONE LTD,Childrens Services,19.59,ICT,2020-21Nov_PC00167
Sandwell Metropolitan Borough Council,http://www.sandwell.gov.uk/info/200202/performance_and_spending/3233/government_procurement_cards,17-Nov-20,Housing & Communities,SCREWFIX DIRECT,Neighbourhoods,57.49,Equipment & Furniture,2020-21Nov_PC00168
Sandwell Metropolitan Borough Council,http://www.sandwell.gov.uk/info/200202/performance_and_spending/3233/government_procurement_cards,17-Nov-20,Housing & Communities,WWW.TANKS-UK.COM,Neighbourhoods,100,Equipment & Furniture,2020-21Nov_PC00169
Sandwell Metropolitan Borough Council,http://www.sandwell.gov.uk/info/200202/performance_and_spending/3233/government_procurement_cards,17-Nov-20,Total Housing Revenue Account,Staffordshire Builders,Total Housing Revenue Account,7.67,Materials & Consumables,2020-21Nov_PC00170
Sandwell Metropolitan Borough Council,http://www.sandwell.gov.uk/info/200202/performance_and_spending/3233/government_procurement_cards,17-Nov-20,Adult Social Care Health and Wellbeing - Total,Amazon.co.uk M70EN9234,Total Adult Social Care,12.52,Printing Stationery&Gen Office,2020-21Nov_PC00171
Sandwell Metropolitan Borough Council,http://www.sandwell.gov.uk/info/200202/performance_and_spending/3233/government_procurement_cards,17-Nov-20,Adult Social Care Health and Wellbeing - Total,Amazon.co.uk M728F12G4,Total Adult Social Care,7.66,Printing Stationery&Gen Office,2020-21Nov_PC00172
Sandwell Metropolitan Borough Council,http://www.sandwell.gov.uk/info/200202/performance_and_spending/3233/government_procurement_cards,17-Nov-20,Adult Social Care Health and Wellbeing - Total,AMZNMKTPLACE AMAZON.CO,Total Adult Social Care,7.99,R & M - Security,2020-21Nov_PC00173
Sandwell Metropolitan Borough Council,http://www.sandwell.gov.uk/info/200202/performance_and_spending/3233/government_procurement_cards,17-Nov-20,Adult Social Care Health and Wellbeing - Total,AMZNMktplace,Total Adult Social Care,34.95,Printing Stationery&Gen Office,2020-21Nov_PC00174
Sandwell Metropolitan Borough Council,http://www.sandwell.gov.uk/info/200202/performance_and_spending/3233/government_procurement_cards,18-Nov-20,Housing & Communities,AMZNMKTPLACE AMAZON.CO,Neighbourhoods,6.66,Materials & Consumables,2020-21Nov_PC00175
Sandwell Metropolitan Borough Council,http://www.sandwell.gov.uk/info/200202/performance_and_spending/3233/government_procurement_cards,18-Nov-20,Total Housing Revenue Account,RS COMPONENTS,Total Housing Revenue Account,80.12,Materials & Consumables,2020-21Nov_PC00176
Sandwell Metropolitan Borough Council,http://www.sandwell.gov.uk/info/200202/performance_and_spending/3233/government_procurement_cards,18-Nov-20,Housing & Communities,Amazon.co.uk M76E617U4,Neighbourhoods,11.31,Equipment & Furniture,2020-21Nov_PC00177
Sandwell Metropolitan Borough Council,http://www.sandwell.gov.uk/info/200202/performance_and_spending/3233/government_procurement_cards,18-Nov-20,Total Housing Revenue Account,Amazon.co.uk M782V67L4,Total Housing Revenue Account,12.08,Equipment & Furniture,2020-21Nov_PC00178
Sandwell Metropolitan Borough Council,http://www.sandwell.gov.uk/info/200202/performance_and_spending/3233/government_procurement_cards,18-Nov-20,Total Housing Revenue Account,AMZNMktplace,Total Housing Revenue Account,65,Printing Stationery&Gen Office,2020-21Nov_PC00179
Sandwell Metropolitan Borough Council,http://www.sandwell.gov.uk/info/200202/performance_and_spending/3233/government_procurement_cards,18-Nov-20,Housing & Communities,AMZNMktplace,Neighbourhoods,33.32,Equipment & Furniture,2020-21Nov_PC00180
Sandwell Metropolitan Borough Council,http://www.sandwell.gov.uk/info/200202/performance_and_spending/3233/government_procurement_cards,18-Nov-20,Housing & Communities,AMZNMktplace,Neighbourhoods,8.54,Equipment & Furniture,2020-21Nov_PC00181
Sandwell Metropolitan Borough Council,http://www.sandwell.gov.uk/info/200202/performance_and_spending/3233/government_procurement_cards,18-Nov-20,Adult Social Care Health and Wellbeing - Total,ADOBE CREATIVE CLOUD,Total Adult Social Care,41.62,Advertising & Publicity,2020-21Nov_PC00182
Sandwell Metropolitan Borough Council,http://www.sandwell.gov.uk/info/200202/performance_and_spending/3233/government_procurement_cards,18-Nov-20,Regeneration & Growth,AMZNMKTPLACE AMAZON.CO,Regeneration And The Economy,26.66,ICT,2020-21Nov_PC00183
Sandwell Metropolitan Borough Council,http://www.sandwell.gov.uk/info/200202/performance_and_spending/3233/government_procurement_cards,18-Nov-20,Individual School Budgets With Inclusion,AMZNMKTPLACE AMAZON.CO,Individual School Budgets With Inclusion,18.45,Printing Stationery&Gen Office,2020-21Nov_PC00184
Sandwell Metropolitan Borough Council,http://www.sandwell.gov.uk/info/200202/performance_and_spending/3233/government_procurement_cards,18-Nov-20,Housing & Communities,SCREWFIX DIRECT,Neighbourhoods,125,Cleaning,2020-21Nov_PC00185
Sandwell Metropolitan Borough Council,http://www.sandwell.gov.uk/info/200202/performance_and_spending/3233/government_procurement_cards,18-Nov-20,Regeneration & Growth,TIMPSON LTD,Regeneration And The Economy,18.04,R & M - Security,2020-21Nov_PC00186
Sandwell Metropolitan Borough Council,http://www.sandwell.gov.uk/info/200202/performance_and_spending/3233/government_procurement_cards,18-Nov-20,Total Housing Revenue Account,AMZNMKTPLACE AMAZON.CO,Total Housing Revenue Account,69.16,Equipment & Furniture,2020-21Nov_PC00187
Sandwell Metropolitan Borough Council,http://www.sandwell.gov.uk/info/200202/performance_and_spending/3233/government_procurement_cards,18-Nov-20,Regeneration & Growth,AMZNMKTPLACE AMAZON.CO,Regeneration And The Economy,233.32,Equipment & Furniture,2020-21Nov_PC00188
Sandwell Metropolitan Borough Council,http://www.sandwell.gov.uk/info/200202/performance_and_spending/3233/government_procurement_cards,18-Nov-20,Adult Social Care Health and Wellbeing - Total,ADOBE CREATIVE CLOUD,Public Health,41.62,Advertising & Publicity,2020-21Nov_PC00189
Sandwell Metropolitan Borough Council,http://www.sandwell.gov.uk/info/200202/performance_and_spending/3233/government_procurement_cards,18-Nov-20,Adult Social Care Health and Wellbeing - Total,AMZNMktplace,Total Adult Social Care,12.45,Repairs & Maintenance,2020-21Nov_PC00190
Sandwell Metropolitan Borough Council,http://www.sandwell.gov.uk/info/200202/performance_and_spending/3233/government_procurement_cards,18-Nov-20,Housing & Communities,CRAFTMILL LTD,Neighbourhoods,56.17,R& M - Building Maint&Imp.,2020-21Nov_PC00191
Sandwell Metropolitan Borough Council,http://www.sandwell.gov.uk/info/200202/performance_and_spending/3233/government_procurement_cards,18-Nov-20,Housing & Communities,PAYPAL  FENGCHAOWEN EB,Neighbourhoods,32.34,R& M - Building Maint&Imp.,2020-21Nov_PC00192
Sandwell Metropolitan Borough Council,http://www.sandwell.gov.uk/info/200202/performance_and_spending/3233/government_procurement_cards,18-Nov-20,Total Housing Revenue Account,ROYAL MAIL GROUP LTD,Total Housing Revenue Account,21.19,"Postages, Carriage & Courier Services",2020-21Nov_PC00193
Sandwell Metropolitan Borough Council,http://www.sandwell.gov.uk/info/200202/performance_and_spending/3233/government_procurement_cards,19-Nov-20,Adult Social Care Health and Wellbeing - Total,OFFICE DEPOT UK,Total Adult Social Care,4.74,Printing Stationery&Gen Office,2020-21Nov_PC00194
Sandwell Metropolitan Borough Council,http://www.sandwell.gov.uk/info/200202/performance_and_spending/3233/government_procurement_cards,19-Nov-20,Housing & Communities,Amazon.co.uk M77ME5RQ4,Neighbourhoods,6.23,Materials & Consumables,2020-21Nov_PC00195
Sandwell Metropolitan Borough Council,http://www.sandwell.gov.uk/info/200202/performance_and_spending/3233/government_procurement_cards,19-Nov-20,Adult Social Care Health and Wellbeing - Total,ADOBE CREATIVE CLOUD,Total Adult Social Care,41.62,Advertising & Publicity,2020-21Nov_PC00196
Sandwell Metropolitan Borough Council,http://www.sandwell.gov.uk/info/200202/performance_and_spending/3233/government_procurement_cards,19-Nov-20,Individual School Budgets With Inclusion,EUROFFICE.CO.UK,Individual School Budgets With Inclusion,102.11,Equipment & Furniture,2020-21Nov_PC00197
Sandwell Metropolitan Borough Council,http://www.sandwell.gov.uk/info/200202/performance_and_spending/3233/government_procurement_cards,19-Nov-20,Resources (Inc SIU),AMZNMKTPLACE AMAZON.CO,Assistant Chief Executive (Excl SIU),5.82,Printing Stationery&Gen Office,2020-21Nov_PC00198
Sandwell Metropolitan Borough Council,http://www.sandwell.gov.uk/info/200202/performance_and_spending/3233/government_procurement_cards,19-Nov-20,Childrens Services,Jessops,Childrens Services,145.83,ICT,2020-21Nov_PC00199
Sandwell Metropolitan Borough Council,http://www.sandwell.gov.uk/info/200202/performance_and_spending/3233/government_procurement_cards,19-Nov-20,Housing & Communities,Amazon.co.uk M78UD5RM4,Neighbourhoods,31.97,Materials & Consumables,2020-21Nov_PC00200
Sandwell Metropolitan Borough Council,http://www.sandwell.gov.uk/info/200202/performance_and_spending/3233/government_procurement_cards,19-Nov-20,Childrens Services,CARTRIDGEPEOPLE.COM,Childrens Services,84.9,Printing Stationery&Gen Office,2020-21Nov_PC00201
Sandwell Metropolitan Borough Council,http://www.sandwell.gov.uk/info/200202/performance_and_spending/3233/government_procurement_cards,19-Nov-20,Individual School Budgets With Inclusion,AMZNMktplace,Individual School Budgets With Inclusion,6.66,Printing Stationery&Gen Office,2020-21Nov_PC00202
Sandwell Metropolitan Borough Council,http://www.sandwell.gov.uk/info/200202/performance_and_spending/3233/government_procurement_cards,19-Nov-20,Total Housing Revenue Account,AMZNMktplace,Total Housing Revenue Account,49.99,Telephones,2020-21Nov_PC00203
Sandwell Metropolitan Borough Council,http://www.sandwell.gov.uk/info/200202/performance_and_spending/3233/government_procurement_cards,19-Nov-20,Adult Social Care Health and Wellbeing - Total,EB  HOW SAFE 2021,Public Health,219,Ind. Emp Exp-Staff Dev&Training,2020-21Nov_PC00204
Sandwell Metropolitan Borough Council,http://www.sandwell.gov.uk/info/200202/performance_and_spending/3233/government_procurement_cards,19-Nov-20,Individual School Budgets With Inclusion,AMZNMktplace,Individual School Budgets With Inclusion,57.76,ICT,2020-21Nov_PC00205
Sandwell Metropolitan Borough Council,http://www.sandwell.gov.uk/info/200202/performance_and_spending/3233/government_procurement_cards,19-Nov-20,Total Housing Revenue Account,POST OFFICE COUNTER,Total Housing Revenue Account,249.28,"Postages, Carriage & Courier Services",2020-21Nov_PC00206
Sandwell Metropolitan Borough Council,http://www.sandwell.gov.uk/info/200202/performance_and_spending/3233/government_procurement_cards,20-Nov-20,Resources (Inc SIU),DRI LENOVO,Assistant Chief Executive (Excl SIU),116.67,ICT,2020-21Nov_PC00207
Sandwell Metropolitan Borough Council,http://www.sandwell.gov.uk/info/200202/performance_and_spending/3233/government_procurement_cards,20-Nov-20,Adult Social Care Health and Wellbeing - Total,Amazon.co.uk M71673YG4,Total Adult Social Care,41.23,Equipment & Furniture,2020-21Nov_PC00208
Sandwell Metropolitan Borough Council,http://www.sandwell.gov.uk/info/200202/performance_and_spending/3233/government_procurement_cards,20-Nov-20,Housing & Communities,TOOLSTATION UK,Neighbourhoods,29.82,Equipment & Furniture,2020-21Nov_PC00209
Sandwell Metropolitan Borough Council,http://www.sandwell.gov.uk/info/200202/performance_and_spending/3233/government_procurement_cards,20-Nov-20,Housing & Communities,PENNY HYDRAULICS LTD,Neighbourhoods,119.97,Fire Service Workshops,2020-21Nov_PC00210
Sandwell Metropolitan Borough Council,http://www.sandwell.gov.uk/info/200202/performance_and_spending/3233/government_procurement_cards,20-Nov-20,Housing & Communities,eBay O 10-06092-05103,Neighbourhoods,37.93,Materials & Consumables,2020-21Nov_PC00211
Sandwell Metropolitan Borough Council,http://www.sandwell.gov.uk/info/200202/performance_and_spending/3233/government_procurement_cards,20-Nov-20,Adult Social Care Health and Wellbeing - Total,AMZNMktplace,Total Adult Social Care,35.73,ICT,2020-21Nov_PC00212
Sandwell Metropolitan Borough Council,http://www.sandwell.gov.uk/info/200202/performance_and_spending/3233/government_procurement_cards,20-Nov-20,Housing & Communities,KNOWLEDGE EXCHANGE GRO,Neighbourhoods,112.5,Professional Services External,2020-21Nov_PC00213
Sandwell Metropolitan Borough Council,http://www.sandwell.gov.uk/info/200202/performance_and_spending/3233/government_procurement_cards,20-Nov-20,Housing & Communities,KNOWLEDGE EXCHANGE GRO,Neighbourhoods,112.5,Professional Services External,2020-21Nov_PC00214
Sandwell Metropolitan Borough Council,http://www.sandwell.gov.uk/info/200202/performance_and_spending/3233/government_procurement_cards,20-Nov-20,Housing & Communities,AMZNMktplace,Neighbourhoods,145.52,R& M - Building Maint&Imp.,2020-21Nov_PC00215
Sandwell Metropolitan Borough Council,http://www.sandwell.gov.uk/info/200202/performance_and_spending/3233/government_procurement_cards,20-Nov-20,Housing & Communities,TOOLSTATION LTD,Neighbourhoods,39.92,Equipment & Furniture,2020-21Nov_PC00216
Sandwell Metropolitan Borough Council,http://www.sandwell.gov.uk/info/200202/performance_and_spending/3233/government_procurement_cards,20-Nov-20,Adult Social Care Health and Wellbeing - Total,AMZNMktplace,Total Adult Social Care,22.49,Equipment & Furniture,2020-21Nov_PC00217
Sandwell Metropolitan Borough Council,http://www.sandwell.gov.uk/info/200202/performance_and_spending/3233/government_procurement_cards,20-Nov-20,Total Housing Revenue Account,AMZNMktplace,Total Housing Revenue Account,54.15,Telephones,2020-21Nov_PC00218
Sandwell Metropolitan Borough Council,http://www.sandwell.gov.uk/info/200202/performance_and_spending/3233/government_procurement_cards,20-Nov-20,Total Housing Revenue Account,AMZ PMC Telecom,Total Housing Revenue Account,-78,Printing Stationery&Gen Office,2020-21Nov_PC00219
Sandwell Metropolitan Borough Council,http://www.sandwell.gov.uk/info/200202/performance_and_spending/3233/government_procurement_cards,23-Nov-20,Resources (Inc SIU),THE RANGE,Assistant Chief Executive (Excl SIU),22.37,Equipment & Furniture,2020-21Nov_PC00220
Sandwell Metropolitan Borough Council,http://www.sandwell.gov.uk/info/200202/performance_and_spending/3233/government_procurement_cards,23-Nov-20,Housing & Communities,AMZNMktplace,Neighbourhoods,54.96,Materials & Consumables,2020-21Nov_PC00221
Sandwell Metropolitan Borough Council,http://www.sandwell.gov.uk/info/200202/performance_and_spending/3233/government_procurement_cards,23-Nov-20,Adult Social Care Health and Wellbeing - Total,WF  WAYFAIR 3462618294,Total Adult Social Care,199.99,Equipment & Furniture,2020-21Nov_PC00222
Sandwell Metropolitan Borough Council,http://www.sandwell.gov.uk/info/200202/performance_and_spending/3233/government_procurement_cards,23-Nov-20,Adult Social Care Health and Wellbeing - Total,AMZNMktplace,Total Adult Social Care,68.28,Equipment & Furniture,2020-21Nov_PC00223
Sandwell Metropolitan Borough Council,http://www.sandwell.gov.uk/info/200202/performance_and_spending/3233/government_procurement_cards,23-Nov-20,Adult Social Care Health and Wellbeing - Total,Amazon Prime MY0GC4C94,Total Adult Social Care,0.82,"Postages, Carriage & Courier Services",2020-21Nov_PC00224
Sandwell Metropolitan Borough Council,http://www.sandwell.gov.uk/info/200202/performance_and_spending/3233/government_procurement_cards,23-Nov-20,Adult Social Care Health and Wellbeing - Total,ARGOS LTD,Total Adult Social Care,63.95,Equipment & Furniture,2020-21Nov_PC00225
Sandwell Metropolitan Borough Council,http://www.sandwell.gov.uk/info/200202/performance_and_spending/3233/government_procurement_cards,23-Nov-20,Adult Social Care Health and Wellbeing - Total,ARGOS LTD,Total Adult Social Care,80,Equipment & Furniture,2020-21Nov_PC00226
Sandwell Metropolitan Borough Council,http://www.sandwell.gov.uk/info/200202/performance_and_spending/3233/government_procurement_cards,23-Nov-20,Adult Social Care Health and Wellbeing - Total,ARGOS LTD,Total Adult Social Care,15,Equipment & Furniture,2020-21Nov_PC00227
Sandwell Metropolitan Borough Council,http://www.sandwell.gov.uk/info/200202/performance_and_spending/3233/government_procurement_cards,23-Nov-20,Resources (Inc SIU),Amazon.co.uk MY2NO4O64,Assistant Chief Executive (Excl SIU),25.12,Subscriptions,2020-21Nov_PC00228
Sandwell Metropolitan Borough Council,http://www.sandwell.gov.uk/info/200202/performance_and_spending/3233/government_procurement_cards,23-Nov-20,Regeneration & Growth,AMZNMktplace,Regeneration And The Economy,32.78,ICT,2020-21Nov_PC00229
Sandwell Metropolitan Borough Council,http://www.sandwell.gov.uk/info/200202/performance_and_spending/3233/government_procurement_cards,23-Nov-20,Adult Social Care Health and Wellbeing - Total,ADOBE STOCK,Public Health,19.99,Advertising & Publicity,2020-21Nov_PC00230
Sandwell Metropolitan Borough Council,http://www.sandwell.gov.uk/info/200202/performance_and_spending/3233/government_procurement_cards,23-Nov-20,Adult Social Care Health and Wellbeing - Total,AMZNMKTPLACE AMAZON.CO,Total Adult Social Care,45.82,ICT,2020-21Nov_PC00231
Sandwell Metropolitan Borough Council,http://www.sandwell.gov.uk/info/200202/performance_and_spending/3233/government_procurement_cards,23-Nov-20,Total Housing Revenue Account,AMZNMKTPLACE AMAZON.CO,Total Housing Revenue Account,16.66,Equipment & Furniture,2020-21Nov_PC00232
Sandwell Metropolitan Borough Council,http://www.sandwell.gov.uk/info/200202/performance_and_spending/3233/government_procurement_cards,23-Nov-20,Total Housing Revenue Account,AMZNMKTPLACE AMAZON.CO,Total Housing Revenue Account,17.74,Printing Stationery&Gen Office,2020-21Nov_PC00233
Sandwell Metropolitan Borough Council,http://www.sandwell.gov.uk/info/200202/performance_and_spending/3233/government_procurement_cards,23-Nov-20,Total Housing Revenue Account,AMZNMKTPLACE AMAZON.CO,Total Housing Revenue Account,20.99,Equipment & Furniture,2020-21Nov_PC00234
Sandwell Metropolitan Borough Council,http://www.sandwell.gov.uk/info/200202/performance_and_spending/3233/government_procurement_cards,23-Nov-20,Resources (Inc SIU),HOME BARGAINS ONLINE,Assistant Chief Executive (Excl SIU),53.47,Equipment & Furniture,2020-21Nov_PC00235
Sandwell Metropolitan Borough Council,http://www.sandwell.gov.uk/info/200202/performance_and_spending/3233/government_procurement_cards,24-Nov-20,Housing & Communities,OFFICE DEPOT UK,Neighbourhoods,145.62,Printing Stationery&Gen Office,2020-21Nov_PC00236
Sandwell Metropolitan Borough Council,http://www.sandwell.gov.uk/info/200202/performance_and_spending/3233/government_procurement_cards,24-Nov-20,Housing & Communities,OFFICE DEPOT UK,Neighbourhoods,10.56,Printing Stationery&Gen Office,2020-21Nov_PC00237
Sandwell Metropolitan Borough Council,http://www.sandwell.gov.uk/info/200202/performance_and_spending/3233/government_procurement_cards,24-Nov-20,Resources (Inc SIU),OFFICE DEPOT UK,Assistant Chief Executive (Excl SIU),70.87,Printing Stationery&Gen Office,2020-21Nov_PC00238
Sandwell Metropolitan Borough Council,http://www.sandwell.gov.uk/info/200202/performance_and_spending/3233/government_procurement_cards,24-Nov-20,Housing & Communities,OFFICE DEPOT UK,Neighbourhoods,31.11,Materials & Consumables,2020-21Nov_PC00239
Sandwell Metropolitan Borough Council,http://www.sandwell.gov.uk/info/200202/performance_and_spending/3233/government_procurement_cards,24-Nov-20,Childrens Services,OFFICE DEPOT UK,Childrens Services,49.9,Printing Stationery&Gen Office,2020-21Nov_PC00240
Sandwell Metropolitan Borough Council,http://www.sandwell.gov.uk/info/200202/performance_and_spending/3233/government_procurement_cards,24-Nov-20,Childrens Services,AMZNMktplace,Childrens Services,24.98,Materials & Consumables,2020-21Nov_PC00241
Sandwell Metropolitan Borough Council,http://www.sandwell.gov.uk/info/200202/performance_and_spending/3233/government_procurement_cards,24-Nov-20,Resources (Inc SIU),AMZNMktplace,Assistant Chief Executive (Excl SIU),27.97,Printing Stationery&Gen Office,2020-21Nov_PC00242
Sandwell Metropolitan Borough Council,http://www.sandwell.gov.uk/info/200202/performance_and_spending/3233/government_procurement_cards,24-Nov-20,Housing & Communities,TOOLSTATION UK,Neighbourhoods,7.52,Equipment & Furniture,2020-21Nov_PC00243
Sandwell Metropolitan Borough Council,http://www.sandwell.gov.uk/info/200202/performance_and_spending/3233/government_procurement_cards,24-Nov-20,Housing Revenue Account Capital,NAPIT SERVICES,Housing Revenue Account Capital,21.61,Printing Stationery&Gen Office,2020-21Nov_PC00244
Sandwell Metropolitan Borough Council,http://www.sandwell.gov.uk/info/200202/performance_and_spending/3233/government_procurement_cards,24-Nov-20,Housing & Communities,AMZNMKTPLACE AMAZON.CO,Neighbourhoods,9.17,Materials & Consumables,2020-21Nov_PC00245
Sandwell Metropolitan Borough Council,http://www.sandwell.gov.uk/info/200202/performance_and_spending/3233/government_procurement_cards,24-Nov-20,Housing & Communities,AMZNMktplace,Neighbourhoods,15.78,Materials & Consumables,2020-21Nov_PC00246
Sandwell Metropolitan Borough Council,http://www.sandwell.gov.uk/info/200202/performance_and_spending/3233/government_procurement_cards,24-Nov-20,Housing & Communities,AMZNMktplace,Neighbourhoods,115.82,Equipment & Furniture,2020-21Nov_PC00247
Sandwell Metropolitan Borough Council,http://www.sandwell.gov.uk/info/200202/performance_and_spending/3233/government_procurement_cards,24-Nov-20,Adult Social Care Health and Wellbeing - Total,BRYSDALES LTD,Total Adult Social Care,96.2,Printing Stationery&Gen Office,2020-21Nov_PC00248
Sandwell Metropolitan Borough Council,http://www.sandwell.gov.uk/info/200202/performance_and_spending/3233/government_procurement_cards,24-Nov-20,Adult Social Care Health and Wellbeing - Total,CURRYS ONLINE,Total Adult Social Care,43.32,ICT,2020-21Nov_PC00249
Sandwell Metropolitan Borough Council,http://www.sandwell.gov.uk/info/200202/performance_and_spending/3233/government_procurement_cards,24-Nov-20,Adult Social Care Health and Wellbeing - Total,AMZ Chinco Online,Total Adult Social Care,-34.95,Printing Stationery&Gen Office,2020-21Nov_PC00250
Sandwell Metropolitan Borough Council,http://www.sandwell.gov.uk/info/200202/performance_and_spending/3233/government_procurement_cards,24-Nov-20,Housing & Communities,MUSEUMS ASCTN,Neighbourhoods,-131,Ind. Emp Exp-Staff Dev&Training,2020-21Nov_PC00251
Sandwell Metropolitan Borough Council,http://www.sandwell.gov.uk/info/200202/performance_and_spending/3233/government_procurement_cards,24-Nov-20,Childrens Services,OFFICE DEPOT UK,Childrens Services,13.14,Printing Stationery&Gen Office,2020-21Nov_PC00252
Sandwell Metropolitan Borough Council,http://www.sandwell.gov.uk/info/200202/performance_and_spending/3233/government_procurement_cards,24-Nov-20,Childrens Services,OFFICE DEPOT UK,Childrens Services,13.14,Printing Stationery&Gen Office,2020-21Nov_PC00253
Sandwell Metropolitan Borough Council,http://www.sandwell.gov.uk/info/200202/performance_and_spending/3233/government_procurement_cards,24-Nov-20,Adult Social Care Health and Wellbeing - Total,OFFICE DEPOT UK,Total Adult Social Care,26.97,ICT,2020-21Nov_PC00254
Sandwell Metropolitan Borough Council,http://www.sandwell.gov.uk/info/200202/performance_and_spending/3233/government_procurement_cards,24-Nov-20,Childrens Services,BRITISHCAVING,Childrens Services,80,Ind. Emp Exp-Staff Dev&Training,2020-21Nov_PC00255
Sandwell Metropolitan Borough Council,http://www.sandwell.gov.uk/info/200202/performance_and_spending/3233/government_procurement_cards,24-Nov-20,Adult Social Care Health and Wellbeing - Total,AMZNMktplace,Total Adult Social Care,12,Printing Stationery&Gen Office,2020-21Nov_PC00256
Sandwell Metropolitan Borough Council,http://www.sandwell.gov.uk/info/200202/performance_and_spending/3233/government_procurement_cards,24-Nov-20,Regeneration & Growth,Amazon.co.uk MY6UT1ZS4,Regeneration And The Economy,105.82,Telephones,2020-21Nov_PC00257
Sandwell Metropolitan Borough Council,http://www.sandwell.gov.uk/info/200202/performance_and_spending/3233/government_procurement_cards,25-Nov-20,Regeneration & Growth,OFFICE DEPOT UK,Regeneration And The Economy,39.78,Equipment & Furniture,2020-21Nov_PC00258
Sandwell Metropolitan Borough Council,http://www.sandwell.gov.uk/info/200202/performance_and_spending/3233/government_procurement_cards,25-Nov-20,Housing & Communities,PAYPAL  two j's,Neighbourhoods,248.5,Professional Services External,2020-21Nov_PC00259
Sandwell Metropolitan Borough Council,http://www.sandwell.gov.uk/info/200202/performance_and_spending/3233/government_procurement_cards,25-Nov-20,Childrens Services,AMZNMktplace,Childrens Services,17.67,Equipment & Furniture,2020-21Nov_PC00260
Sandwell Metropolitan Borough Council,http://www.sandwell.gov.uk/info/200202/performance_and_spending/3233/government_procurement_cards,25-Nov-20,Total Housing Revenue Account,AMZNMktplace,Total Housing Revenue Account,18.72,Telephones,2020-21Nov_PC00261
Sandwell Metropolitan Borough Council,http://www.sandwell.gov.uk/info/200202/performance_and_spending/3233/government_procurement_cards,25-Nov-20,Total Housing Revenue Account,AMZNMKTPLACE AMAZON.CO,Total Housing Revenue Account,65,ICT,2020-21Nov_PC00262
Sandwell Metropolitan Borough Council,http://www.sandwell.gov.uk/info/200202/performance_and_spending/3233/government_procurement_cards,25-Nov-20,Housing & Communities,AMZNMktplace,Neighbourhoods,17.06,Telephones,2020-21Nov_PC00263
Sandwell Metropolitan Borough Council,http://www.sandwell.gov.uk/info/200202/performance_and_spending/3233/government_procurement_cards,25-Nov-20,Housing & Communities,AMZNMKTPLACE AMAZON.CO,Neighbourhoods,189.9,R& M - Building Maint&Imp.,2020-21Nov_PC00264
Sandwell Metropolitan Borough Council,http://www.sandwell.gov.uk/info/200202/performance_and_spending/3233/government_procurement_cards,25-Nov-20,Housing & Communities,AMZNMktplace,Neighbourhoods,193.66,R& M - Building Maint&Imp.,2020-21Nov_PC00265
Sandwell Metropolitan Borough Council,http://www.sandwell.gov.uk/info/200202/performance_and_spending/3233/government_procurement_cards,25-Nov-20,Childrens Services,B&M 022 - WEDNESBURY,Childrens Services,3,Printing Stationery&Gen Office,2020-21Nov_PC00266
Sandwell Metropolitan Borough Council,http://www.sandwell.gov.uk/info/200202/performance_and_spending/3233/government_procurement_cards,25-Nov-20,Adult Social Care Health and Wellbeing - Total,AMZNMKTPLACE AMAZON.CO,Total Adult Social Care,7.99,Printing Stationery&Gen Office,2020-21Nov_PC00267
Sandwell Metropolitan Borough Council,http://www.sandwell.gov.uk/info/200202/performance_and_spending/3233/government_procurement_cards,25-Nov-20,Adult Social Care Health and Wellbeing - Total,Amazon.co.uk MY48J1394,Total Adult Social Care,8.27,Printing Stationery&Gen Office,2020-21Nov_PC00268
Sandwell Metropolitan Borough Council,http://www.sandwell.gov.uk/info/200202/performance_and_spending/3233/government_procurement_cards,25-Nov-20,Housing & Communities,AMZNMktplace,Neighbourhoods,70.79,Materials & Consumables,2020-21Nov_PC00269
Sandwell Metropolitan Borough Council,http://www.sandwell.gov.uk/info/200202/performance_and_spending/3233/government_procurement_cards,26-Nov-20,Adult Social Care Health and Wellbeing - Total,AMZNMKTPLACE AMAZON.CO,Total Adult Social Care,8.32,Printing Stationery&Gen Office,2020-21Nov_PC00270
Sandwell Metropolitan Borough Council,http://www.sandwell.gov.uk/info/200202/performance_and_spending/3233/government_procurement_cards,26-Nov-20,Resources (Inc SIU),OFFICE DEPOT UK,Assistant Chief Executive (Excl SIU),84.08,Printing Stationery&Gen Office,2020-21Nov_PC00271
Sandwell Metropolitan Borough Council,http://www.sandwell.gov.uk/info/200202/performance_and_spending/3233/government_procurement_cards,26-Nov-20,Adult Social Care Health and Wellbeing - Total,OFFICE DEPOT UK,Total Adult Social Care,58.22,Printing Stationery&Gen Office,2020-21Nov_PC00272
Sandwell Metropolitan Borough Council,http://www.sandwell.gov.uk/info/200202/performance_and_spending/3233/government_procurement_cards,26-Nov-20,Adult Social Care Health and Wellbeing - Total,AMZ MMMBC,Total Adult Social Care,-35.73,ICT,2020-21Nov_PC00273
Sandwell Metropolitan Borough Council,http://www.sandwell.gov.uk/info/200202/performance_and_spending/3233/government_procurement_cards,26-Nov-20,Regeneration & Growth,AMZNMktplace,Regeneration And The Economy,12.06,Printing Stationery&Gen Office,2020-21Nov_PC00274
Sandwell Metropolitan Borough Council,http://www.sandwell.gov.uk/info/200202/performance_and_spending/3233/government_procurement_cards,26-Nov-20,Housing & Communities,AMZNMktplace,Neighbourhoods,10.4,Telephones,2020-21Nov_PC00275
Sandwell Metropolitan Borough Council,http://www.sandwell.gov.uk/info/200202/performance_and_spending/3233/government_procurement_cards,26-Nov-20,Housing & Communities,LIDL GB WEST BROMWICH,Neighbourhoods,3.12,Materials & Consumables,2020-21Nov_PC00276
Sandwell Metropolitan Borough Council,http://www.sandwell.gov.uk/info/200202/performance_and_spending/3233/government_procurement_cards,26-Nov-20,Housing & Communities,LIDL GB WEST BROMWICH,Neighbourhoods,4.16,Materials & Consumables,2020-21Nov_PC00277
Sandwell Metropolitan Borough Council,http://www.sandwell.gov.uk/info/200202/performance_and_spending/3233/government_procurement_cards,26-Nov-20,Housing & Communities,LIDL GB WEST BROMWICH,Neighbourhoods,3.12,Materials & Consumables,2020-21Nov_PC00278
Sandwell Metropolitan Borough Council,http://www.sandwell.gov.uk/info/200202/performance_and_spending/3233/government_procurement_cards,26-Nov-20,Housing & Communities,LIDL GB WEST BROMWICH,Neighbourhoods,6.72,Materials & Consumables,2020-21Nov_PC00279
Sandwell Metropolitan Borough Council,http://www.sandwell.gov.uk/info/200202/performance_and_spending/3233/government_procurement_cards,26-Nov-20,Housing & Communities,LIDL GB WEST BROMWICH,Neighbourhoods,7.06,Materials & Consumables,2020-21Nov_PC00280
Sandwell Metropolitan Borough Council,http://www.sandwell.gov.uk/info/200202/performance_and_spending/3233/government_procurement_cards,26-Nov-20,Housing & Communities,LIDL GB WEST BROMWICH,Neighbourhoods,6.25,Materials & Consumables,2020-21Nov_PC00281
Sandwell Metropolitan Borough Council,http://www.sandwell.gov.uk/info/200202/performance_and_spending/3233/government_procurement_cards,26-Nov-20,Adult Social Care Health and Wellbeing - Total,ASDA STORES,Total Adult Social Care,17.25,Materials & Consumables,2020-21Nov_PC00282
Sandwell Metropolitan Borough Council,http://www.sandwell.gov.uk/info/200202/performance_and_spending/3233/government_procurement_cards,26-Nov-20,Housing & Communities,AMZNMktplace,Neighbourhoods,10.82,Materials & Consumables,2020-21Nov_PC00283
Sandwell Metropolitan Borough Council,http://www.sandwell.gov.uk/info/200202/performance_and_spending/3233/government_procurement_cards,26-Nov-20,Housing & Communities,AMZNMktplace,Neighbourhoods,6.19,Materials & Consumables,2020-21Nov_PC00284
Sandwell Metropolitan Borough Council,http://www.sandwell.gov.uk/info/200202/performance_and_spending/3233/government_procurement_cards,26-Nov-20,Total Housing Revenue Account,CURRYS ONLINE,Total Housing Revenue Account,58.32,Telephones,2020-21Nov_PC00285
Sandwell Metropolitan Borough Council,http://www.sandwell.gov.uk/info/200202/performance_and_spending/3233/government_procurement_cards,26-Nov-20,Housing & Communities,AMZNMktplace,Neighbourhoods,89.93,R& M - Building Maint&Imp.,2020-21Nov_PC00286
Sandwell Metropolitan Borough Council,http://www.sandwell.gov.uk/info/200202/performance_and_spending/3233/government_procurement_cards,26-Nov-20,Adult Social Care Health and Wellbeing - Total,Amazon.co.uk MY2AD0A44,Total Adult Social Care,17.63,Printing Stationery&Gen Office,2020-21Nov_PC00287
Sandwell Metropolitan Borough Council,http://www.sandwell.gov.uk/info/200202/performance_and_spending/3233/government_procurement_cards,26-Nov-20,Housing & Communities,AMZNMktplace,Neighbourhoods,199.6,Materials & Consumables,2020-21Nov_PC00288
Sandwell Metropolitan Borough Council,http://www.sandwell.gov.uk/info/200202/performance_and_spending/3233/government_procurement_cards,26-Nov-20,Total Housing Revenue Account,AMZNMKTPLACE AMAZON.CO,Total Housing Revenue Account,34.99,Equipment & Furniture,2020-21Nov_PC00289
Sandwell Metropolitan Borough Council,http://www.sandwell.gov.uk/info/200202/performance_and_spending/3233/government_procurement_cards,26-Nov-20,Housing & Communities,Amazon Prime MY3HA4J34,Neighbourhoods,7.99,"Postages, Carriage & Courier Services",2020-21Nov_PC00290
Sandwell Metropolitan Borough Council,http://www.sandwell.gov.uk/info/200202/performance_and_spending/3233/government_procurement_cards,26-Nov-20,Resources (Inc SIU),OFFICE DEPOT UK,Assistant Chief Executive (Excl SIU),33.24,Printing Stationery&Gen Office,2020-21Nov_PC00291
Sandwell Metropolitan Borough Council,http://www.sandwell.gov.uk/info/200202/performance_and_spending/3233/government_procurement_cards,26-Nov-20,Regeneration & Growth,POST OFFICE COUNTER,Regeneration And The Economy,4.12,"Postages, Carriage & Courier Services",2020-21Nov_PC00292
Sandwell Metropolitan Borough Council,http://www.sandwell.gov.uk/info/200202/performance_and_spending/3233/government_procurement_cards,27-Nov-20,Housing & Communities,AMZNMKTPLACE AMAZON.CO,Neighbourhoods,9.57,Civic Events,2020-21Nov_PC00293
Sandwell Metropolitan Borough Council,http://www.sandwell.gov.uk/info/200202/performance_and_spending/3233/government_procurement_cards,27-Nov-20,Regeneration & Growth,AMZNMktplace,Regeneration And The Economy,7.4,Printing Stationery&Gen Office,2020-21Nov_PC00294
Sandwell Metropolitan Borough Council,http://www.sandwell.gov.uk/info/200202/performance_and_spending/3233/government_procurement_cards,27-Nov-20,Adult Social Care Health and Wellbeing - Total,MANOMANO,Total Adult Social Care,60.83,Equipment & Furniture,2020-21Nov_PC00295
Sandwell Metropolitan Borough Council,http://www.sandwell.gov.uk/info/200202/performance_and_spending/3233/government_procurement_cards,27-Nov-20,Regeneration & Growth,Amazon.co.uk MY6FN80H4,Regeneration And The Economy,109.27,Printing Stationery&Gen Office,2020-21Nov_PC00296
Sandwell Metropolitan Borough Council,http://www.sandwell.gov.uk/info/200202/performance_and_spending/3233/government_procurement_cards,27-Nov-20,Regeneration & Growth,AMZNMktplace,Regeneration And The Economy,8.32,Printing Stationery&Gen Office,2020-21Nov_PC00297
Sandwell Metropolitan Borough Council,http://www.sandwell.gov.uk/info/200202/performance_and_spending/3233/government_procurement_cards,27-Nov-20,Resources (Inc SIU),AMZNMktplace,Assistant Chief Executive (Excl SIU),42.47,Printing Stationery&Gen Office,2020-21Nov_PC00298
Sandwell Metropolitan Borough Council,http://www.sandwell.gov.uk/info/200202/performance_and_spending/3233/government_procurement_cards,27-Nov-20,Housing Revenue Account Capital,AMZNMKTPLACE AMAZON.CO,Housing Revenue Account Capital,54.92,Materials & Consumables,2020-21Nov_PC00299
Sandwell Metropolitan Borough Council,http://www.sandwell.gov.uk/info/200202/performance_and_spending/3233/government_procurement_cards,27-Nov-20,Housing & Communities,Amazon.co.uk MY7CJ40G4,Neighbourhoods,9.99,Materials & Consumables,2020-21Nov_PC00300
Sandwell Metropolitan Borough Council,http://www.sandwell.gov.uk/info/200202/performance_and_spending/3233/government_procurement_cards,27-Nov-20,Regeneration & Growth,AMZNMktplace,Regeneration And The Economy,3.32,Printing Stationery&Gen Office,2020-21Nov_PC00301
Sandwell Metropolitan Borough Council,http://www.sandwell.gov.uk/info/200202/performance_and_spending/3233/government_procurement_cards,27-Nov-20,Regeneration & Growth,AMZNMktplace,Regeneration And The Economy,105.82,Telephones,2020-21Nov_PC00302
Sandwell Metropolitan Borough Council,http://www.sandwell.gov.uk/info/200202/performance_and_spending/3233/government_procurement_cards,27-Nov-20,Regeneration & Growth,AMZNMktplace,Regeneration And The Economy,105.82,Telephones,2020-21Nov_PC00303
Sandwell Metropolitan Borough Council,http://www.sandwell.gov.uk/info/200202/performance_and_spending/3233/government_procurement_cards,27-Nov-20,Housing & Communities,Amazon Prime MY9522EU4,Neighbourhoods,7.99,Subscriptions,2020-21Nov_PC00304
Sandwell Metropolitan Borough Council,http://www.sandwell.gov.uk/info/200202/performance_and_spending/3233/government_procurement_cards,27-Nov-20,Regeneration & Growth,AMZNMktplace,Regeneration And The Economy,3.32,Printing Stationery&Gen Office,2020-21Nov_PC00305
Sandwell Metropolitan Borough Council,http://www.sandwell.gov.uk/info/200202/performance_and_spending/3233/government_procurement_cards,30-Nov-20,Total Housing Revenue Account,Staffordshire Builders,Total Housing Revenue Account,27.24,Materials & Consumables,2020-21Nov_PC00306
Sandwell Metropolitan Borough Council,http://www.sandwell.gov.uk/info/200202/performance_and_spending/3233/government_procurement_cards,30-Nov-20,Childrens Services,AMZNMktplace,Childrens Services,38.72,Ind. Emp Exp-Emp. Welfare,2020-21Nov_PC00307
Sandwell Metropolitan Borough Council,http://www.sandwell.gov.uk/info/200202/performance_and_spending/3233/government_procurement_cards,30-Nov-20,Adult Social Care Health and Wellbeing - Total,WWW.JUSTGLOVES.CO.UK,Total Adult Social Care,119.5,Materials & Consumables,2020-21Nov_PC00308
Sandwell Metropolitan Borough Council,http://www.sandwell.gov.uk/info/200202/performance_and_spending/3233/government_procurement_cards,30-Nov-20,Adult Social Care Health and Wellbeing - Total,WWW.JUSTGLOVES.CO.UK,Total Adult Social Care,119.5,Materials & Consumables,2020-21Nov_PC00309
Sandwell Metropolitan Borough Council,http://www.sandwell.gov.uk/info/200202/performance_and_spending/3233/government_procurement_cards,30-Nov-20,Regeneration & Growth,AMZNMktplace,Regeneration And The Economy,3.32,Printing Stationery&Gen Office,2020-21Nov_PC00310
Sandwell Metropolitan Borough Council,http://www.sandwell.gov.uk/info/200202/performance_and_spending/3233/government_procurement_cards,30-Nov-20,Regeneration & Growth,AMZNMktplace,Regeneration And The Economy,7.95,Printing Stationery&Gen Office,2020-21Nov_PC00311
Sandwell Metropolitan Borough Council,http://www.sandwell.gov.uk/info/200202/performance_and_spending/3233/government_procurement_cards,30-Nov-20,Adult Social Care Health and Wellbeing - Total,Amazon Prime MY93C5184,Total Adult Social Care,6.66,"Postages, Carriage & Courier Services",2020-21Nov_PC00312
Sandwell Metropolitan Borough Council,http://www.sandwell.gov.uk/info/200202/performance_and_spending/3233/government_procurement_cards,30-Nov-20,Childrens Services,AMZNMKTPLACE AMAZON.CO,Childrens Services,13.28,R& M - Building Maint&Imp.,2020-21Nov_PC00313
Sandwell Metropolitan Borough Council,http://www.sandwell.gov.uk/info/200202/performance_and_spending/3233/government_procurement_cards,30-Nov-20,Housing & Communities,Amazon.co.uk MY2Y55XJ4,Neighbourhoods,14.16,Materials & Consumables,2020-21Nov_PC00314
Sandwell Metropolitan Borough Council,http://www.sandwell.gov.uk/info/200202/performance_and_spending/3233/government_procurement_cards,30-Nov-20,Housing & Communities,AMZNMktplace,Neighbourhoods,14.99,Materials & Consumables,2020-21Nov_PC00315
Sandwell Metropolitan Borough Council,http://www.sandwell.gov.uk/info/200202/performance_and_spending/3233/government_procurement_cards,30-Nov-20,Adult Social Care Health and Wellbeing - Total,Amazon.co.uk MY24E0X14,Total Adult Social Care,12.25,Materials & Consumables,2020-21Nov_PC00316
Sandwell Metropolitan Borough Council,http://www.sandwell.gov.uk/info/200202/performance_and_spending/3233/government_procurement_cards,30-Nov-20,Adult Social Care Health and Wellbeing - Total,Amazon.co.uk MY9HI7XJ4,Total Adult Social Care,33.3,Printing Stationery&Gen Office,2020-21Nov_PC00317
Sandwell Metropolitan Borough Council,http://www.sandwell.gov.uk/info/200202/performance_and_spending/3233/government_procurement_cards,01-Dec-20,Childrens Services,WWW.MYPOSTSHOP.COM,Childrens Services,62.92,Printing Stationery&Gen Office,2020-21Nov_PC00318
Sandwell Metropolitan Borough Council,http://www.sandwell.gov.uk/info/200202/performance_and_spending/3233/government_procurement_cards,01-Dec-20,Total Housing Revenue Account,OFFICE DEPOT UK,Total Housing Revenue Account,93.29,Printing Stationery&Gen Office,2020-21Nov_PC00319
Sandwell Metropolitan Borough Council,http://www.sandwell.gov.uk/info/200202/performance_and_spending/3233/government_procurement_cards,01-Dec-20,Adult Social Care Health and Wellbeing - Total,Amazon Prime,Total Adult Social Care,-6.66,"Postages, Carriage & Courier Services",2020-21Nov_PC00320
Sandwell Metropolitan Borough Council,http://www.sandwell.gov.uk/info/200202/performance_and_spending/3233/government_procurement_cards,01-Dec-20,Total Housing Revenue Account,Flextronics,Total Housing Revenue Account,40,ICT,2020-21Nov_PC00321
Sandwell Metropolitan Borough Council,http://www.sandwell.gov.uk/info/200202/performance_and_spending/3233/government_procurement_cards,01-Dec-20,Childrens Services,J VAN VLIET BIRMINGHAM,Childrens Services,20.39,Materials & Consumables,2020-21Nov_PC00322
Sandwell Metropolitan Borough Council,http://www.sandwell.gov.uk/info/200202/performance_and_spending/3233/government_procurement_cards,01-Dec-20,Childrens Services,WESTMINSTER FORUM PROJ,Childrens Services,190,Ind. Emp Exp-Staff Dev&Training,2020-21Nov_PC00323
Sandwell Metropolitan Borough Council,http://www.sandwell.gov.uk/info/200202/performance_and_spending/3233/government_procurement_cards,01-Dec-20,Childrens Services,PAPERSTONE LIMITED,Childrens Services,40.92,Printing Stationery&Gen Office,2020-21Nov_PC00324
Sandwell Metropolitan Borough Council,http://www.sandwell.gov.uk/info/200202/performance_and_spending/3233/government_procurement_cards,01-Dec-20,Childrens Services,AMZNMKTPLACE AMAZON.CO,Childrens Services,13.69,R& M - Building Maint&Imp.,2020-21Nov_PC00325
Sandwell Metropolitan Borough Council,http://www.sandwell.gov.uk/info/200202/performance_and_spending/3233/government_procurement_cards,01-Dec-20,Childrens Services,AMZNMKTPLACE AMAZON.CO,Childrens Services,2.74,R& M - Building Maint&Imp.,2020-21Nov_PC00326
Sandwell Metropolitan Borough Council,http://www.sandwell.gov.uk/info/200202/performance_and_spending/3233/government_procurement_cards,01-Dec-20,Childrens Services,Amazon.co.uk MY8580BF4,Childrens Services,11.59,Materials & Consumables,2020-21Nov_PC00327
Sandwell Metropolitan Borough Council,http://www.sandwell.gov.uk/info/200202/performance_and_spending/3233/government_procurement_cards,01-Dec-20,Childrens Services,VIKING UK,Childrens Services,29.49,Printing Stationery&Gen Office,2020-21Nov_PC00328
Sandwell Metropolitan Borough Council,http://www.sandwell.gov.uk/info/200202/performance_and_spending/3233/government_procurement_cards,01-Dec-20,Housing & Communities,ARGOS LTD,Neighbourhoods,179.99,Equipment & Furniture,2020-21Nov_PC00329
Sandwell Metropolitan Borough Council,http://www.sandwell.gov.uk/info/200202/performance_and_spending/3233/government_procurement_cards,01-Dec-20,Regeneration & Growth,AMZNMktplace,Regeneration And The Economy,105.82,Telephones,2020-21Nov_PC00330
Sandwell Metropolitan Borough Council,http://www.sandwell.gov.uk/info/200202/performance_and_spending/3233/government_procurement_cards,01-Dec-20,Childrens Services,Amazon.co.uk MY35R9BG4,Childrens Services,8.4,Materials & Consumables,2020-21Nov_PC00331
Sandwell Metropolitan Borough Council,http://www.sandwell.gov.uk/info/200202/performance_and_spending/3233/government_procurement_cards,02-Dec-20,Childrens Services,VIKING UK,Childrens Services,4.46,Printing Stationery&Gen Office,2020-21Nov_PC00332
Sandwell Metropolitan Borough Council,http://www.sandwell.gov.uk/info/200202/performance_and_spending/3233/government_procurement_cards,02-Dec-20,Adult Social Care Health and Wellbeing - Total,OFFICE DEPOT UK,Total Adult Social Care,14.72,Printing Stationery&Gen Office,2020-21Nov_PC00333
Sandwell Metropolitan Borough Council,http://www.sandwell.gov.uk/info/200202/performance_and_spending/3233/government_procurement_cards,02-Dec-20,Childrens Services,AMZNMKTPLACE AMAZON.CO,Childrens Services,4.39,Printing Stationery&Gen Office,2020-21Nov_PC00334
Sandwell Metropolitan Borough Council,http://www.sandwell.gov.uk/info/200202/performance_and_spending/3233/government_procurement_cards,02-Dec-20,Adult Social Care Health and Wellbeing - Total,AMZ Amazon.co.uk,Total Adult Social Care,-12.25,Materials & Consumables,2020-21Nov_PC00335
Sandwell Metropolitan Borough Council,http://www.sandwell.gov.uk/info/200202/performance_and_spending/3233/government_procurement_cards,02-Dec-20,Childrens Services,AMZNMKTPLACE AMAZON.CO,Childrens Services,10.53,Equipment & Furniture,2020-21Nov_PC00336
Sandwell Metropolitan Borough Council,http://www.sandwell.gov.uk/info/200202/performance_and_spending/3233/government_procurement_cards,02-Dec-20,Adult Social Care Health and Wellbeing - Total,WWW.JUSTGLOVES.CO.UK,Total Adult Social Care,119.5,Materials & Consumables,2020-21Nov_PC00337
Sandwell Metropolitan Borough Council,http://www.sandwell.gov.uk/info/200202/performance_and_spending/3233/government_procurement_cards,02-Dec-20,Individual School Budgets With Inclusion,CALDMORE HARDWARE LIMI,Individual School Budgets With Inclusion,67.47,Repairs & Maintenance,2020-21Nov_PC00338
Sandwell Metropolitan Borough Council,http://www.sandwell.gov.uk/info/200202/performance_and_spending/3233/government_procurement_cards,02-Dec-20,Housing & Communities,The Plastic Box Compan,Neighbourhoods,53.85,Fixtures & Fittings,2020-21Nov_PC00339
Sandwell Metropolitan Borough Council,http://www.sandwell.gov.uk/info/200202/performance_and_spending/3233/government_procurement_cards,02-Dec-20,Housing & Communities,SCREWFIX DIRECT,Neighbourhoods,2.09,Materials & Consumables,2020-21Nov_PC00340
Sandwell Metropolitan Borough Council,http://www.sandwell.gov.uk/info/200202/performance_and_spending/3233/government_procurement_cards,02-Dec-20,Childrens Services,Amazon.co.uk MY1SF58Q4,Childrens Services,4.33,Protective Clothing&Uniforms,2020-21Nov_PC00341
Sandwell Metropolitan Borough Council,http://www.sandwell.gov.uk/info/200202/performance_and_spending/3233/government_procurement_cards,02-Dec-20,Housing & Communities,The Plastic Box Compan,Neighbourhoods,45.75,Equipment & Furniture,2020-21Nov_PC00342
Sandwell Metropolitan Borough Council,http://www.sandwell.gov.uk/info/200202/performance_and_spending/3233/government_procurement_cards,02-Dec-20,Adult Social Care Health and Wellbeing - Total,AMZNMktplace,Total Adult Social Care,24.95,Cleaning,2020-21Nov_PC00343
Sandwell Metropolitan Borough Council,http://www.sandwell.gov.uk/info/200202/performance_and_spending/3233/government_procurement_cards,02-Dec-20,Resources (Inc SIU),GOOGLE  CLOUD_01B69F-A,Assistant Chief Executive (Excl SIU),156.47,ICT,2020-21Nov_PC00344
Sandwell Metropolitan Borough Council,http://www.sandwell.gov.uk/info/200202/performance_and_spending/3233/government_procurement_cards,03-Dec-20,Adult Social Care Health and Wellbeing - Total,AMZNMKTPLACE AMAZON.CO,Total Adult Social Care,17.07,ICT,2020-21Nov_PC00345
Sandwell Metropolitan Borough Council,http://www.sandwell.gov.uk/info/200202/performance_and_spending/3233/government_procurement_cards,03-Dec-20,Housing & Communities,AMZNMKTPLACE AMAZON.CO,Neighbourhoods,159.13,Printing Stationery&Gen Office,2020-21Nov_PC00346
Sandwell Metropolitan Borough Council,http://www.sandwell.gov.uk/info/200202/performance_and_spending/3233/government_procurement_cards,03-Dec-20,Childrens Services,AMZNMKTPLACE AMAZON.CO,Childrens Services,13.32,Equipment & Furniture,2020-21Nov_PC00347
Sandwell Metropolitan Borough Council,http://www.sandwell.gov.uk/info/200202/performance_and_spending/3233/government_procurement_cards,03-Dec-20,Housing & Communities,PAYPAL  foxbladeshoes,Neighbourhoods,131.25,Materials & Consumables,2020-21Nov_PC00348
Sandwell Metropolitan Borough Council,http://www.sandwell.gov.uk/info/200202/performance_and_spending/3233/government_procurement_cards,03-Dec-20,Housing & Communities,Amazon.co.uk MY08I1674,Neighbourhoods,14.16,Materials & Consumables,2020-21Nov_PC00349
Sandwell Metropolitan Borough Council,http://www.sandwell.gov.uk/info/200202/performance_and_spending/3233/government_procurement_cards,03-Dec-20,Regeneration & Growth,POUNDLAND LTD 1729,Regeneration And The Economy,2.5,Printing Stationery&Gen Office,2020-21Nov_PC00350
Sandwell Metropolitan Borough Council,http://www.sandwell.gov.uk/info/200202/performance_and_spending/3233/government_procurement_cards,03-Dec-20,Regeneration & Growth,TIMPSON LTD,Regeneration And The Economy,12.5,R & M - Security,2020-21Nov_PC00351
Sandwell Metropolitan Borough Council,http://www.sandwell.gov.uk/info/200202/performance_and_spending/3233/government_procurement_cards,03-Dec-20,Childrens Services,AMZNMktplace,Childrens Services,7.9,R& M - Building Maint&Imp.,2020-21Nov_PC00352
Sandwell Metropolitan Borough Council,http://www.sandwell.gov.uk/info/200202/performance_and_spending/3233/government_procurement_cards,03-Dec-20,Resources (Inc SIU),CYPRESS NURSERY,Assistant Chief Executive (Excl SIU),25,Grounds Maint&Improvements,2020-21Nov_PC00353
Sandwell Metropolitan Borough Council,http://www.sandwell.gov.uk/info/200202/performance_and_spending/3233/government_procurement_cards,03-Dec-20,Adult Social Care Health and Wellbeing - Total,GT APPLIANCE WAREHOUSE,Total Adult Social Care,720,Fixtures & Fittings,2020-21Nov_PC00354
Sandwell Metropolitan Borough Council,http://www.sandwell.gov.uk/info/200202/performance_and_spending/3233/government_procurement_cards,03-Dec-20,Adult Social Care Health and Wellbeing - Total,GT APPLIANCE WAREHOUSE,Total Adult Social Care,720,Fixtures & Fittings,2020-21Nov_PC00355
Sandwell Metropolitan Borough Council,http://www.sandwell.gov.uk/info/200202/performance_and_spending/3233/government_procurement_cards,03-Dec-20,Adult Social Care Health and Wellbeing - Total,EB  HOARDING AWARENESS,Total Adult Social Care,75,Ind. Emp Exp-Staff Dev&Training,2020-21Nov_PC00356
Sandwell Metropolitan Borough Council,http://www.sandwell.gov.uk/info/200202/performance_and_spending/3233/government_procurement_cards,03-Dec-20,Childrens Services,B & Q 1276,Childrens Services,14,R & M - Security,2020-21Nov_PC00357
Sandwell Metropolitan Borough Council,http://www.sandwell.gov.uk/info/200202/performance_and_spending/3233/government_procurement_cards,04-Dec-20,Total Housing Revenue Account,OFFICE DEPOT UK,Total Housing Revenue Account,18.4,Printing Stationery&Gen Office,2020-21Dec_PC00001
Sandwell Metropolitan Borough Council,http://www.sandwell.gov.uk/info/200202/performance_and_spending/3233/government_procurement_cards,04-Dec-20,Resources (Inc SIU),Amazon.co.uk MY1D68S84,Assistant Chief Executive (Excl SIU),170.39,Printing Stationery&Gen Office,2020-21Dec_PC00002
Sandwell Metropolitan Borough Council,http://www.sandwell.gov.uk/info/200202/performance_and_spending/3233/government_procurement_cards,04-Dec-20,Childrens Services,MYHERMES.CO.UK,Childrens Services,2.42,"Postages, Carriage & Courier Services",2020-21Dec_PC00003
Sandwell Metropolitan Borough Council,http://www.sandwell.gov.uk/info/200202/performance_and_spending/3233/government_procurement_cards,04-Dec-20,Total Housing Revenue Account,NRS HEALTHCARE,Total Housing Revenue Account,499.9,Materials & Consumables,2020-21Dec_PC00004
Sandwell Metropolitan Borough Council,http://www.sandwell.gov.uk/info/200202/performance_and_spending/3233/government_procurement_cards,04-Dec-20,Regeneration & Growth,AMZNMKTPLACE AMAZON.CO,Regeneration And The Economy,3.32,Printing Stationery&Gen Office,2020-21Dec_PC00005
Sandwell Metropolitan Borough Council,http://www.sandwell.gov.uk/info/200202/performance_and_spending/3233/government_procurement_cards,04-Dec-20,Resources (Inc SIU),Amazon.co.uk MY8YO8SH4,Assistant Chief Executive (Excl SIU),109.98,ICT,2020-21Dec_PC00006
Sandwell Metropolitan Borough Council,http://www.sandwell.gov.uk/info/200202/performance_and_spending/3233/government_procurement_cards,04-Dec-20,Housing & Communities,WWW.MACLINGROUP.CO.UK,Neighbourhoods,101.96,Equipment & Furniture,2020-21Dec_PC00007
Sandwell Metropolitan Borough Council,http://www.sandwell.gov.uk/info/200202/performance_and_spending/3233/government_procurement_cards,04-Dec-20,Housing & Communities,COMMERCIAL WASHROOMS,Neighbourhoods,210,Equipment & Furniture,2020-21Dec_PC00008
Sandwell Metropolitan Borough Council,http://www.sandwell.gov.uk/info/200202/performance_and_spending/3233/government_procurement_cards,04-Dec-20,Housing & Communities,AMZ Joseph Frederick W,Neighbourhoods,-35.98,Materials & Consumables,2020-21Dec_PC00009
Sandwell Metropolitan Borough Council,http://www.sandwell.gov.uk/info/200202/performance_and_spending/3233/government_procurement_cards,04-Dec-20,Resources (Inc SIU),AMZNMktplace,Assistant Chief Executive (Excl SIU),27.5,ICT,2020-21Dec_PC00010
Sandwell Metropolitan Borough Council,http://www.sandwell.gov.uk/info/200202/performance_and_spending/3233/government_procurement_cards,07-Dec-20,Regeneration & Growth,AMZNMKTPLACE AMAZON.CO,Regeneration And The Economy,120.82,Telephones,2020-21Dec_PC00011
Sandwell Metropolitan Borough Council,http://www.sandwell.gov.uk/info/200202/performance_and_spending/3233/government_procurement_cards,07-Dec-20,Regeneration & Growth,AMZNMKTPLACE AMAZON.CO,Regeneration And The Economy,8.32,Printing Stationery&Gen Office,2020-21Dec_PC00012
Sandwell Metropolitan Borough Council,http://www.sandwell.gov.uk/info/200202/performance_and_spending/3233/government_procurement_cards,07-Dec-20,Childrens Services,AMZNMKTPLACE AMAZON.CO,Childrens Services,32.06,Equipment & Furniture,2020-21Dec_PC00013
Sandwell Metropolitan Borough Council,http://www.sandwell.gov.uk/info/200202/performance_and_spending/3233/government_procurement_cards,07-Dec-20,Adult Social Care Health and Wellbeing - Total,Amazon.co.uk MY1C197P4,Total Adult Social Care,69.98,Equipment & Furniture,2020-21Dec_PC00014
Sandwell Metropolitan Borough Council,http://www.sandwell.gov.uk/info/200202/performance_and_spending/3233/government_procurement_cards,07-Dec-20,Total Housing Revenue Account,MIDLAND JETTING SERVIC,Total Housing Revenue Account,620.3,Materials & Consumables,2020-21Dec_PC00015
Sandwell Metropolitan Borough Council,http://www.sandwell.gov.uk/info/200202/performance_and_spending/3233/government_procurement_cards,07-Dec-20,Adult Social Care Health and Wellbeing - Total,TOOLSTATION UK,Total Adult Social Care,25.31,Equipment & Furniture,2020-21Dec_PC00016
Sandwell Metropolitan Borough Council,http://www.sandwell.gov.uk/info/200202/performance_and_spending/3233/government_procurement_cards,07-Dec-20,Adult Social Care Health and Wellbeing - Total,ARGOS LTD,Total Adult Social Care,353.96,Materials & Consumables,2020-21Dec_PC00017
Sandwell Metropolitan Borough Council,http://www.sandwell.gov.uk/info/200202/performance_and_spending/3233/government_procurement_cards,07-Dec-20,Adult Social Care Health and Wellbeing - Total,ARGOS LTD,Total Adult Social Care,353.96,Materials & Consumables,2020-21Dec_PC00018
Sandwell Metropolitan Borough Council,http://www.sandwell.gov.uk/info/200202/performance_and_spending/3233/government_procurement_cards,07-Dec-20,Adult Social Care Health and Wellbeing - Total,AMZNMktplace,Total Adult Social Care,19.48,ICT,2020-21Dec_PC00019
Sandwell Metropolitan Borough Council,http://www.sandwell.gov.uk/info/200202/performance_and_spending/3233/government_procurement_cards,07-Dec-20,Adult Social Care Health and Wellbeing - Total,AMZNMktplace,Total Adult Social Care,11.78,ICT,2020-21Dec_PC00020
Sandwell Metropolitan Borough Council,http://www.sandwell.gov.uk/info/200202/performance_and_spending/3233/government_procurement_cards,07-Dec-20,Adult Social Care Health and Wellbeing - Total,ARGOS LTD,Total Adult Social Care,53.95,Equipment & Furniture,2020-21Dec_PC00021
Sandwell Metropolitan Borough Council,http://www.sandwell.gov.uk/info/200202/performance_and_spending/3233/government_procurement_cards,07-Dec-20,Adult Social Care Health and Wellbeing - Total,ARGOS LTD,Total Adult Social Care,403.95,Materials & Consumables,2020-21Dec_PC00022
Sandwell Metropolitan Borough Council,http://www.sandwell.gov.uk/info/200202/performance_and_spending/3233/government_procurement_cards,07-Dec-20,Adult Social Care Health and Wellbeing - Total,ARGOS LTD,Total Adult Social Care,403.95,Materials & Consumables,2020-21Dec_PC00023
Sandwell Metropolitan Borough Council,http://www.sandwell.gov.uk/info/200202/performance_and_spending/3233/government_procurement_cards,07-Dec-20,Childrens Services,HOME BARGAINS,Childrens Services,27.18,Materials & Consumables,2020-21Dec_PC00024
Sandwell Metropolitan Borough Council,http://www.sandwell.gov.uk/info/200202/performance_and_spending/3233/government_procurement_cards,07-Dec-20,Childrens Services,B&M 262 - WILLENHALL,Childrens Services,18.42,Materials & Consumables,2020-21Dec_PC00025
Sandwell Metropolitan Borough Council,http://www.sandwell.gov.uk/info/200202/performance_and_spending/3233/government_procurement_cards,07-Dec-20,Resources (Inc SIU),AMZNMktplace,Assistant Chief Executive (Excl SIU),55.75,Printing Stationery&Gen Office,2020-21Dec_PC00026
Sandwell Metropolitan Borough Council,http://www.sandwell.gov.uk/info/200202/performance_and_spending/3233/government_procurement_cards,07-Dec-20,Adult Social Care Health and Wellbeing - Total,AMZNMKTPLACE AMAZON.CO,Total Adult Social Care,-16.49,ICT,2020-21Dec_PC00027
Sandwell Metropolitan Borough Council,http://www.sandwell.gov.uk/info/200202/performance_and_spending/3233/government_procurement_cards,07-Dec-20,Adult Social Care Health and Wellbeing - Total,AMZNMktplace,Total Adult Social Care,63.99,Equipment & Furniture,2020-21Dec_PC00028
Sandwell Metropolitan Borough Council,http://www.sandwell.gov.uk/info/200202/performance_and_spending/3233/government_procurement_cards,07-Dec-20,Individual School Budgets With Inclusion,AMZNMktplace,Individual School Budgets With Inclusion,128.02,ICT,2020-21Dec_PC00029
Sandwell Metropolitan Borough Council,http://www.sandwell.gov.uk/info/200202/performance_and_spending/3233/government_procurement_cards,08-Dec-20,Resources (Inc SIU),OFFICE DEPOT UK,Assistant Chief Executive (Excl SIU),53.69,Printing Stationery&Gen Office,2020-21Dec_PC00030
Sandwell Metropolitan Borough Council,http://www.sandwell.gov.uk/info/200202/performance_and_spending/3233/government_procurement_cards,08-Dec-20,Housing & Communities,OFFICE DEPOT UK,Neighbourhoods,13.6,Printing Stationery&Gen Office,2020-21Dec_PC00031
Sandwell Metropolitan Borough Council,http://www.sandwell.gov.uk/info/200202/performance_and_spending/3233/government_procurement_cards,08-Dec-20,Housing & Communities,OFFICE DEPOT UK,Neighbourhoods,126.32,Printing Stationery&Gen Office,2020-21Dec_PC00032
Sandwell Metropolitan Borough Council,http://www.sandwell.gov.uk/info/200202/performance_and_spending/3233/government_procurement_cards,08-Dec-20,Adult Social Care Health and Wellbeing - Total,OFFICE DEPOT UK,Total Adult Social Care,30.02,Printing Stationery&Gen Office,2020-21Dec_PC00033
Sandwell Metropolitan Borough Council,http://www.sandwell.gov.uk/info/200202/performance_and_spending/3233/government_procurement_cards,08-Dec-20,Individual School Budgets With Inclusion,AMZNMKTPLACE AMAZON.CO,Individual School Budgets With Inclusion,89.8,Materials & Consumables,2020-21Dec_PC00034
Sandwell Metropolitan Borough Council,http://www.sandwell.gov.uk/info/200202/performance_and_spending/3233/government_procurement_cards,08-Dec-20,Total Housing Revenue Account,THE PROPERTY CARE,Total Housing Revenue Account,208.33,Ind. Emp Exp-Staff Dev&Training,2020-21Dec_PC00035
Sandwell Metropolitan Borough Council,http://www.sandwell.gov.uk/info/200202/performance_and_spending/3233/government_procurement_cards,08-Dec-20,Total Housing Revenue Account,THE PROPERTY CARE,Total Housing Revenue Account,58.33,Ind. Emp Exp-Staff Dev&Training,2020-21Dec_PC00036
Sandwell Metropolitan Borough Council,http://www.sandwell.gov.uk/info/200202/performance_and_spending/3233/government_procurement_cards,08-Dec-20,Housing & Communities,B&M 049 - ASTLE PARK,Neighbourhoods,9.95,Printing Stationery&Gen Office,2020-21Dec_PC00037
Sandwell Metropolitan Borough Council,http://www.sandwell.gov.uk/info/200202/performance_and_spending/3233/government_procurement_cards,08-Dec-20,Total Housing Revenue Account,MACHINE MART/INTER,Total Housing Revenue Account,153.23,Materials & Consumables,2020-21Dec_PC00038
Sandwell Metropolitan Borough Council,http://www.sandwell.gov.uk/info/200202/performance_and_spending/3233/government_procurement_cards,08-Dec-20,Total Housing Revenue Account,CARVER/WOLVERHAMPTON/L,Total Housing Revenue Account,89.88,Materials & Consumables,2020-21Dec_PC00039
Sandwell Metropolitan Borough Council,http://www.sandwell.gov.uk/info/200202/performance_and_spending/3233/government_procurement_cards,08-Dec-20,Total Housing Revenue Account,CARVER/WOLVERHAMPTON/L,Total Housing Revenue Account,89.88,Materials & Consumables,2020-21Dec_PC00040
Sandwell Metropolitan Borough Council,http://www.sandwell.gov.uk/info/200202/performance_and_spending/3233/government_procurement_cards,08-Dec-20,Housing & Communities,Amazon.co.uk MY07M2Y24,Neighbourhoods,40.83,Equipment & Furniture,2020-21Dec_PC00041
Sandwell Metropolitan Borough Council,http://www.sandwell.gov.uk/info/200202/performance_and_spending/3233/government_procurement_cards,08-Dec-20,Resources (Inc SIU),Amazon.co.uk MS31W3CM4,Assistant Chief Executive (Excl SIU),18.83,Materials & Consumables,2020-21Dec_PC00042
Sandwell Metropolitan Borough Council,http://www.sandwell.gov.uk/info/200202/performance_and_spending/3233/government_procurement_cards,08-Dec-20,Childrens Services,WWW.BLOOMANDWILD.COM,Childrens Services,37.5,Professional Services External,2020-21Dec_PC00043
Sandwell Metropolitan Borough Council,http://www.sandwell.gov.uk/info/200202/performance_and_spending/3233/government_procurement_cards,08-Dec-20,Adult Social Care Health and Wellbeing - Total,PAYPAL  VALUEPRODUC,Total Adult Social Care,119.5,Materials & Consumables,2020-21Dec_PC00044
Sandwell Metropolitan Borough Council,http://www.sandwell.gov.uk/info/200202/performance_and_spending/3233/government_procurement_cards,08-Dec-20,Regeneration & Growth,AMZNMktplace,Regeneration And The Economy,6.65,Equipment & Furniture,2020-21Dec_PC00045
Sandwell Metropolitan Borough Council,http://www.sandwell.gov.uk/info/200202/performance_and_spending/3233/government_procurement_cards,08-Dec-20,Childrens Services,YORKSHIRE PURCHASING O,Childrens Services,-110.4,Materials & Consumables,2020-21Dec_PC00046
Sandwell Metropolitan Borough Council,http://www.sandwell.gov.uk/info/200202/performance_and_spending/3233/government_procurement_cards,08-Dec-20,Adult Social Care Health and Wellbeing - Total,OFFICE DEPOT UK,Total Adult Social Care,69.59,Printing Stationery&Gen Office,2020-21Dec_PC00047
Sandwell Metropolitan Borough Council,http://www.sandwell.gov.uk/info/200202/performance_and_spending/3233/government_procurement_cards,08-Dec-20,Adult Social Care Health and Wellbeing - Total,OFFICE DEPOT UK,Total Adult Social Care,10.14,Printing Stationery&Gen Office,2020-21Dec_PC00048
Sandwell Metropolitan Borough Council,http://www.sandwell.gov.uk/info/200202/performance_and_spending/3233/government_procurement_cards,08-Dec-20,Housing & Communities,OFFICE DEPOT UK,Neighbourhoods,31.06,Materials & Consumables,2020-21Dec_PC00049
Sandwell Metropolitan Borough Council,http://www.sandwell.gov.uk/info/200202/performance_and_spending/3233/government_procurement_cards,08-Dec-20,Housing & Communities,OFFICE DEPOT UK,Neighbourhoods,33.49,Printing Stationery&Gen Office,2020-21Dec_PC00050
Sandwell Metropolitan Borough Council,http://www.sandwell.gov.uk/info/200202/performance_and_spending/3233/government_procurement_cards,08-Dec-20,Housing & Communities,OFFICE DEPOT UK,Neighbourhoods,39.38,Printing Stationery&Gen Office,2020-21Dec_PC00051
Sandwell Metropolitan Borough Council,http://www.sandwell.gov.uk/info/200202/performance_and_spending/3233/government_procurement_cards,08-Dec-20,Housing & Communities,AMZNMktplace,Neighbourhoods,14.99,Equipment & Furniture,2020-21Dec_PC00052
Sandwell Metropolitan Borough Council,http://www.sandwell.gov.uk/info/200202/performance_and_spending/3233/government_procurement_cards,09-Dec-20,Housing & Communities,AMZNMKTPLACE AMAZON.CO,Neighbourhoods,13.32,Equipment & Furniture,2020-21Dec_PC00053
Sandwell Metropolitan Borough Council,http://www.sandwell.gov.uk/info/200202/performance_and_spending/3233/government_procurement_cards,09-Dec-20,Individual School Budgets With Inclusion,ARGOS LTD,Individual School Budgets With Inclusion,160.78,Equipment & Furniture,2020-21Dec_PC00054
Sandwell Metropolitan Borough Council,http://www.sandwell.gov.uk/info/200202/performance_and_spending/3233/government_procurement_cards,09-Dec-20,Housing & Communities,OFFICE DEPOT UK,Neighbourhoods,176.54,Printing Stationery&Gen Office,2020-21Dec_PC00055
Sandwell Metropolitan Borough Council,http://www.sandwell.gov.uk/info/200202/performance_and_spending/3233/government_procurement_cards,09-Dec-20,Housing & Communities,OFFICE DEPOT UK,Neighbourhoods,14.35,Printing Stationery&Gen Office,2020-21Dec_PC00056
Sandwell Metropolitan Borough Council,http://www.sandwell.gov.uk/info/200202/performance_and_spending/3233/government_procurement_cards,09-Dec-20,Individual School Budgets With Inclusion,ARGOS LTD,Individual School Budgets With Inclusion,49.99,Equipment & Furniture,2020-21Dec_PC00057
Sandwell Metropolitan Borough Council,http://www.sandwell.gov.uk/info/200202/performance_and_spending/3233/government_procurement_cards,09-Dec-20,Housing & Communities,Amazon.co.uk MS39F64T4,Neighbourhoods,17.16,Equipment & Furniture,2020-21Dec_PC00058
Sandwell Metropolitan Borough Council,http://www.sandwell.gov.uk/info/200202/performance_and_spending/3233/government_procurement_cards,09-Dec-20,Adult Social Care Health and Wellbeing - Total,AMZNMktplace,Total Adult Social Care,45.79,Protective Clothing&Uniforms,2020-21Dec_PC00059
Sandwell Metropolitan Borough Council,http://www.sandwell.gov.uk/info/200202/performance_and_spending/3233/government_procurement_cards,09-Dec-20,Regeneration & Growth,AMZNMktplace,Regeneration And The Economy,32.94,ICT,2020-21Dec_PC00060
Sandwell Metropolitan Borough Council,http://www.sandwell.gov.uk/info/200202/performance_and_spending/3233/government_procurement_cards,09-Dec-20,Adult Social Care Health and Wellbeing - Total,ARGOS LTD,Total Adult Social Care,33.33,Printing Stationery&Gen Office,2020-21Dec_PC00061
